Workbook

Sheet Inch
F3: Flow Cell Selector
M4: Ver1.8.2
B5: Select Industry: | O5: EXAMPLE: Section view of GFC-K60-P40-SS-J15-P10 flowcell.
E6: Set Inch / Metric:
D7: Insert values. Calculator shows three best suited flow cell options for the pipe size and flow rate
E9: Flow rate Q = | F9: 13 | G9: GPM | I9: Pipe Size = | J9: 1 | K9: Inch
F10: =IF(F9>1500,"Out of Range"," ") -> 
C11: Recommended prism flow velocity is 6.1 ft/s or higher for a sugar solution. Other liquids recommended flow velocity depends on medium viscosity, purity and temperature.
C12: Recommended maximum flow in the flow cell is 20 ft/s for all flow cells. With velocities above this there is a risk for cavitation.
B14: Chemical Industry
E15: =ROUND(Inch!$C$137,1) & " ft/s " -> 9.3 ft/s | H15: =ROUND(Inch!$E$137,1) & " ft/s " -> 2.2 ft/s | K15: =ROUND(Inch!$G$137,1) & " ft/s " -> 2 ft/s | O15: Flow rate Q: Inlet flow. Use the flow calculator below to determine flow rate if not provided by the customer.
H16: 0.6811023622 | O16: Pipe size: Installation site's pipe size. Flow cell selector has 7 options of standard pipe sizes, but the options might be limited by chosen industry.
H17: 1.30485391 | O17: Inlet size: "True size" of the pipe connection.
B18: Flow on prism | H18: 2.6 | O18: Flow on prism: Flow velocity measured over the the prism. Always measured from the same surface area.
O19: Max flow in flowcell: Maximum measured flow velocity inside flowcell. Can occur anywhere in flowcell, depending on the model.
O20: Pressure drop: Measured drop of pressure when comparing inlet flow vs. outlet flow pressure.
E21: =Inch!$D$137 -> GFC-K60-P40-SS-J15-P10 | H21: =Inch!$F$137 -> PFC-KSS-A10 | K21: =Inch!$H$137 -> GFC-K60-P40-SS-R10/N10/A10/D25-PXX-SN/WN/WP-PG
B22: Pipe size | E22: =INDEX(H$72:H$121,MATCH(D$137,B$72:B$121,0)) -> 1 | H22: =INDEX(H$72:H$121,MATCH(F$137,B$72:B$121,0)) -> 1 | K22: =INDEX(H$72:H$121,MATCH(H$137,B$72:B$121,0)) -> 1 | M22: in
B23: Inlet diameter | E23: =INDEX(I$72:I$121,MATCH(D$137,B$72:B$121,0)) -> 0.3700787402 | H23: =INDEX(I$72:I$121,MATCH(F$137,B$72:B$121,0)) -> 1.060629921 | K23: =INDEX(I$72:I$121,MATCH(H$137,B$72:B$121,0)) -> 0.8803149606 | M23: in
B24: Pressure drop | E24: =INDEX(K$72:K$121,MATCH(D$137,B$72:B$121,0)) -> 3.478566498 | H24: =INDEX(K$72:K$121,MATCH(F$137,B$72:B$121,0)) -> 0.05406540373 | K24: =INDEX(K$72:K$121,MATCH(H$137,B$72:B$121,0)) -> 0.1780144606 | M24: psi
B25: Flow on prism | E25: =ROUND(Inch!$C$137,1) -> 9.3 | H25: =ROUND(Inch!$E$137,1) -> 2.2 | K25: =ROUND(Inch!$G$137,1) -> 2 | M25: ft/s
B28: Food Industry
E29: =ROUND(Inch!$C$138,1) & " ft/s " -> 1.8 ft/s | H29: =ROUND(Inch!$E$138,1) & " ft/s " -> 1.4 ft/s | K29: =ROUND(Inch!$G$138,1) & " ft/s " -> 1.2 ft/s | O29: Flow rate Q: Inlet flow. Use the flow calculator below to determine flow rate if not provided by the customer.
O30: Pipe size: Installation site's pipe size. Flow cell selector has 7 options of standard pipe sizes, but the options might be limited by chosen industry.
O31: Inlet size: "True size" of the pipe connection.
B32: Flow on prism | O32: Flow on prism: Flow velocity measured over the the prism. Always measured from the same surface area.
O33: Max flow in flowcell: Maximum measured flow velocity inside flowcell. Can occur anywhere in flowcell, depending on the model.
O34: Pressure drop: Measured drop of pressure when comparing inlet flow vs. outlet flow pressure.
E35: =Inch!$D$138 -> AFC-HSS-H10-RI (-NC-SN/WNWP-PG) | H35: =Inch!$F$138 -> AFC-HSS-H10-SI (-NC-SN/WNWP-PG) | K35: =Inch!$H$138 -> AFC-HSS-H15-RI (-NC-SN/WNWP-PG)
B36: Pipe size | E36: =INDEX(H$72:H$121,MATCH(D$138,B$72:B$121,0)) -> 1 | H36: =INDEX(H$72:H$121,MATCH(F$138,B$72:B$121,0)) -> 1 | K36: =INDEX(H$72:H$121,MATCH(H$138,B$72:B$121,0)) -> 1.5 | M36: in
B37: Inlet diameter | E37: =INDEX(I$72:I$121,MATCH(D$138,B$72:B$121,0)) -> 0.8897637795 | H37: =INDEX(I$72:I$121,MATCH(F$138,B$72:B$121,0)) -> 0.8897637795 | K37: =INDEX(I$72:I$121,MATCH(H$138,B$72:B$121,0)) -> 1.401574803 | M37: in
B38: Pressure drop | E38: =INDEX(K$72:K$121,MATCH(D$138,B$72:B$121,0)) -> 0.0642736735 | H38: =INDEX(K$72:K$121,MATCH(F$138,B$72:B$121,0)) -> 0.02703969649 | K38: =INDEX(K$72:K$121,MATCH(H$138,B$72:B$121,0)) -> 0.01628287031 | M38: psi
B39: Flow on prism | E39: =ROUND(Inch!$C$138,2) -> 1.79 | H39: =ROUND(Inch!$E$138,2) -> 1.43 | K39: =ROUND(Inch!$G$138,2) -> 1.2 | M39: ft/s
B42: Semiconductor
E43: =ROUND(Inch!$C$139,1) & " ft/s " -> 3.1 ft/s | H43: =ROUND(Inch!$E$139,1) & " ft/s " -> 2.4 ft/s | K43: =ROUND(Inch!$G$139,1) & " ft/s " -> 9000 ft/s | O43: Flow rate Q: Inlet flow. Use the flow calculator below to determine flow rate if not provided by the customer.
O44: Pipe size: Installation site's pipe size. Flow cell selector has 7 options of standard pipe sizes, but the options might be limited by chosen industry.
O45: Inlet size: "True size" of the pipe connection.
B46: Flow on prism | O46: Flow on prism: Flow velocity measured over the the prism. Always measured from the same surface area.
O47: Max flow in flowcell: Maximum measured flow velocity inside flowcell. Can occur anywhere in flowcell, depending on the model.
O48: Pressure drop: Measured drop of pressure when comparing inlet flow vs. outlet flow pressure.
E49: =Inch!$D$139 -> PR-33-S (1") F2-100 | H49: =Inch!$F$139 -> PR-33-S (3/4") F2-075 | K49: =Inch!$H$139 -> Out of range
B50: Pipe size | E50: =INDEX(H$72:H$121,MATCH(D139,B$72:B$121,0)) -> 1 | H50: =INDEX(H$72:H$121,MATCH(F139,B$72:B$121,0)) -> 0.75 | K50: =INDEX(H$72:H$121,MATCH(H139,B$72:B$121,0)) -> 0 | M50: in
B51: Inlet diameter | E51: =INDEX(I$72:I$121,MATCH(D139,B$72:B$121,0)) -> 0.8661417323 | H51: =INDEX(I$72:I$121,MATCH(F139,B$72:B$121,0)) -> 0.6299212598 | K51: =INDEX(I$72:I$121,MATCH(H139,B$72:B$121,0)) -> 0 | M51: in
B52: Pressure drop | E52: =INDEX(K$72:K$121,MATCH(D139,B$72:B$121,0)) -> 1.068795153 | H52: =INDEX(K$72:K$121,MATCH(F139,B$72:B$121,0)) -> 0.8030649366 | K52: =INDEX(K$72:K$121,MATCH(H139,B$72:B$121,0)) -> 0 | M52: psi
B53: Flow on prism | E53: =ROUND(Inch!$C$139,1) -> 3.1 | H53: =ROUND(Inch!$E$139,1) -> 2.4 | K53: =ROUND(Inch!$G$139,1) -> 9000 | M53: ft/s
B57: Disclaimer: The values represented here should be only considered as a rule of thumb. They are only estimates with water at 20 °C (68 °F). In real life applications the applicable flow rates can differ by features of chosen liquid (concentration, viscosity etc.). For example, black liquor rarely can exceed 0.5 m/s (1.6 ft/s) velocities due to high viscosity, and high velocities with high concentration sulphuric acid can increase corrosion. Moreover, individual conditions of the installation site can affect the flow cell selection (proximity to other equipment and/or pipe bends, temperature)
B59: Flow Calculator:
B61: Flow Calculator
C63: Flow cell inlet diameter | F63: 1 | G63: inch | H63: Flow cell inlet diameter | K63: 22.6 | L63: mm
C64: Flow rate Q | F64: 13.2 | G64: GPM | H64: Velocity v | K64: 1.6 | L64: m/s
C65: Velocity v | F65: =0.003785411784*F64/((0.001*0.5*25.4*F63)^2*PI()*60) -> 1.643533255 | G65: m/s | H65: Flow rate Q | K65: =K66*0.264172052358 -> 10.17337054 | L65: GPM
C66: Velocity v | F66: =F65*3.28083989501 -> 5.392169472 | G66: ft/s | H66: Flow rate Q | K66: =K67*1000/60 -> 38.51039673 | L66: l/min
H67: Flow rate Q | K67: =(K64*9*PI()*(K63)^2)/10000 -> 2.310623804 | L67: m3/h
B69: List All Flow Cells:
B70: Model | F70: PR-Model | H70: Pipe size | I70: Inlet diameter | J70: Flow on prism | K70: Pressure loss | L70: Max velocity within flowcell
H71: in | I71: in | J71: ft/s | K71: psi | L71: ft/s
B72: PMFC-HSS-H04 | F72: PR-23-A/PR-43-A | H72: =12.7/25.4 -> 0.5 | I72: =4/25.4 -> 0.157480315 | J72: =IF(Data!M90<0,0,Data!M90) -> 256.4313027 | K72: =IF(Data!P90<0,0,Data!P90) -> 75.60454718 | L72: =IF(Data!S90<0,0,Data!S90) -> 126.6556254 | M72: =IF(L72<0,0,J72) -> 256.4313027 | N72: =IF(L72>20,"Max velocity over 20 ft/s, risk of cavitation", " ") -> Max velocity over 20 ft/s, risk of cavitation | Q72: =B124 -> 2.4 | R72: 0 - 2.5 ft/s
B73: PMFC-HSS-H05 | F73: PR-23-A/PR-43-A | H73: =12.7/25.4 -> 0.5 | I73: =5/25.4 -> 0.1968503937 | J73: =IF(Data!M95<0,0,Data!M95) -> 37.76697371 | K73: =IF(Data!P95<0,0,Data!P95) -> 22.27829392 | L73: =IF(Data!S95<0,0,Data!S95) -> 71.85490904 | M73: =IF(L73<0,0,J73) -> 37.76697371 | N73: =IF(L73>20,"Max velocity over 20 ft/s, risk of cavitation", " ") -> Max velocity over 20 ft/s, risk of cavitation | Q73: =B125 -> 4 | R73: 2.5 - 5 ft/s
B74: PMFC-HSS-H06 | F74: PR-23-A/PR-43-A | H74: =12.7/25.4 -> 0.5 | I74: =6/25.4 -> 0.2362204724 | J74: =IF(Data!M100<0,0,Data!M100) -> 29.08924067 | K74: =IF(Data!P100<0,0,Data!P100) -> 7.607877223 | L74: =IF(Data!S100<0,0,Data!S100) -> 54.00860347 | M74: 29.08924067 | N74: Max velocity over 20 ft/s, risk of cavitation | Q74: =B126 -> 16.4 | R74: 5 - 16.5 ft/s
B75: AFC-HSS-H10-SI (-NC-SN/WNWP-PG) | F75: PR-23-A/PR-43-A | H75: =25.4/25.4 -> 1 | I75: =22.6/25.4 -> 0.8897637795 | J75: =IF(Data!M10<0,0,Data!M10) -> 1.433202176 | K75: =IF(Data!P10<0,0,Data!P10) -> 0.02703969649 | L75: =IF(Data!S10<0,0,Data!S10) -> 3.259890792 | M75: 1.433202176 | Q75: =B127 -> 18 | R75: 16.5 - 20 ft/s
B76: AFC-HSS-H10-RI (-NC-SN/WNWP-PG) | F76: PR-23-A/PR-43-A | H76: 1 | I76: =22.6/25.4 -> 0.8897637795 | J76: =IF(Data!M5<0,0,Data!M5) -> 1.791650352 | K76: =IF(Data!P5<0,0,Data!P5) -> 0.0642736735 | L76: =IF(Data!S5<0,0,Data!S5) -> 4.852116306 | M76: 1.791650352 | Q76: =B128 -> 21 | R76: over 20 ft/s
B77: AFC-HSS-H15-SI (-NC-SN/WNWP-PG) | F77: PR-23-A/PR-43-A | H77: 1.5 | I77: =35.6/25.4 -> 1.401574803 | J77: =IF(Data!M20<0,0,Data!M20) -> 0.7905579905 | K77: =IF(Data!P20<0,0,Data!P20) -> 0.003768460862 | L77: =IF(Data!S20<0,0,Data!S20) -> 1.386608211 | M77: 0.7905579905
B78: AFC-HSS-H15-RI (-NC-SN/WNWP-PG) | F78: PR-23-A/PR-43-A | H78: 1.5 | I78: =35.6/25.4 -> 1.401574803 | J78: =IF(Data!M15<0,0,Data!M15) -> 1.196276078 | K78: =IF(Data!P15<0,0,Data!P15) -> 0.01628287031 | L78: =IF(Data!S15<0,0,Data!S15) -> 2.322040475 | M78: 1.196276078
B79: AFC-HSS-H20-SI (-NC-SN/WNWP-PG) | F79: PR-23-A/PR-43-A | H79: =50.8/25.4 -> 2 | I79: =48.6/25.4 -> 1.913385827 | J79: =IF(Data!M30<0,0,Data!M30) -> 0.2946715641 | K79: =IF(Data!P30<0,0,Data!P30) -> 0.001167059096 | L79: =IF(Data!S30<0,0,Data!S30) -> 1.107702452 | M79: 0.2946715641
B80: AFC-HSS-H20-RI (-NC-SN/WNWP-PG) | F80: PR-23-A/PR-43-A | H80: =50.8/25.4 -> 2 | I80: =48.6/25.4 -> 1.913385827 | J80: =IF(Data!M25<0,0,Data!M25) -> 0.5829008189 | K80: =IF(Data!P25<0,0,Data!P25) -> 0.003664345283 | L80: =IF(Data!S25<0,0,Data!S25) -> 1.162123601 | M80: 0.5829008189
B81: AFC-HSS-H25-SI (-NC-SN/WNWP-PG) | F81: PR-23-A/PR-43-A | H81: =63.5/25.4 -> 2.5 | I81: =60.3/25.4 -> 2.374015748 | J81: =IF(Data!M35<0,0,Data!M35) -> 0.1821767085 | K81: =IF(Data!P35<0,0,Data!P35) -> 0.0003501177288 | L81: =IF(Data!S35<0,0,Data!S35) -> 0.6025961991 | M81: 0.1821767085
B82: AFC-HSS-H30-SI (-NC-SN/WNWP-PG) | F82: PR-23-A/PR-43-A | H82: =76.2/25.4 -> 3 | I82: =72.8/25.4 -> 2.866141732 | J82: =IF(Data!M40<0,0,Data!M40) -> 0.147665916 | K82: =IF(Data!P40<0,0,Data!P40) -> 8.520632788e-05 | L82: =IF(Data!S40<0,0,Data!S40) -> 0.2406386019 | M82: 0.147665916
B83: AFC-HSS-H40-SI (-NC-SN/WNWP-PG) | F83: PR-23-A/PR-43-A | H83: =101.6/25.4 -> 4 | I83: =97.6/25.4 -> 3.842519685 | J83: =IF(Data!M45<0,0,Data!M45) -> 0.07294717174 | K83: =IF(Data!P45<0,0,Data!P45) -> 3.650058489e-05 | L83: =IF(Data!S45<0,0,Data!S45) -> 0.1322774155 | M83: 0.07294717174
B84: SFC-HHSS-H10-90 | F84: PR-23-A/PR-43-A | H84: 1 | I84: =22.6/25.4 -> 0.8897637795 | J84: =IF(Data!M50<0,0,Data!M50) -> 0.4151384961 | K84: =IF(Data!P50<0,0,Data!P50) -> 0.0305688523 | L84: =IF(Data!S50<0,0,Data!S50) -> 2.710717297 | M84: =IF(L84<0,0,J84) -> 0.4151384961 | N84: =IF(L84>20,"Max velocity over 20 ft/s, risk of cavitation", " ") -> 
B85: SFC-HHSS-H10-180 | F85: PR-23-A/PR-43-A | H85: 1 | I85: =22.6/25.4 -> 0.8897637795 | J85: =IF(Data!M55<0,0,Data!M55) -> 0.2654406173 | K85: =IF(Data!P55<0,0,Data!P55) -> 0.02066983387 | L85: =IF(Data!S55<0,0,Data!S55) -> 2.684010844 | M85: 0.2654406173
B86: SFC-HHSS-H15-90 | F86: PR-23-A/PR-43-A | H86: 1.5 | I86: =35.6/25.4 -> 1.401574803 | J86: =IF(Data!M60<0,0,Data!M60) -> 0.267802714 | K86: =IF(Data!P60<0,0,Data!P60) -> 0 | L86: =IF(Data!S60<0,0,Data!S60) -> 1.061157956 | M86: 0.267802714
B87: SFC-HHSS-H15-180 | F87: PR-23-A/PR-43-A | H87: 1.5 | I87: =35.6/25.4 -> 1.401574803 | J87: =IF(Data!M65<0,0,Data!M65) -> 0.1446784232 | K87: =IF(Data!P65<0,0,Data!P65) -> 0.002526812396 | L87: =IF(Data!S65<0,0,Data!S65) -> 1.066486663 | M87: 0.1446784232
B88: SFC-HHSS-H20-90 | F88: PR-23-A/PR-43-A | H88: =50.8/25.4 -> 2 | I88: =48.6/25.4 -> 1.913385827 | J88: =IF(Data!M70<0,0,Data!M70) -> 0.2250966247 | K88: =IF(Data!P70<0,0,Data!P70) -> 0.00162548918 | L88: =IF(Data!S70<0,0,Data!S70) -> 0.7992407499 | M88: 0.2250966247
B89: SFC-HHSS-H20-180 | F89: PR-23-A/PR-43-A | H89: =50.8/25.4 -> 2 | I89: =48.6/25.4 -> 1.913385827 | J89: =IF(Data!M75<0,0,Data!M75) -> 0.08769284021 | K89: =IF(Data!P75<0,0,Data!P75) -> 0 | L89: =IF(Data!S75<0,0,Data!S75) -> 0.5905241765 | M89: 0.08769284021
B90: SFC-HHSS-H25-90 | F90: PR-23-A/PR-43-A | H90: =63.5/25.4 -> 2.5 | I90: =60.3/25.4 -> 2.374015748 | J90: =IF(Data!M80<0,0,Data!M80) -> 0.09427578585 | K90: =IF(Data!P80<0,0,Data!P80) -> 0.0004640257869 | L90: =IF(Data!S80<0,0,Data!S80) -> 0.4948941318 | M90: 0.09427578585
B91: SFC-HHSS-H25-180 | F91: PR-23-A/PR-43-A | H91: =63.5/25.4 -> 2.5 | I91: =60.3/25.4 -> 2.374015748 | J91: =IF(Data!M85<0,0,Data!M85) -> 0.1624726103 | K91: =IF(Data!P85<0,0,Data!P85) -> 0.0001566436762 | L91: =IF(Data!S85<0,0,Data!S85) -> 0.3687823482 | M91: 0.1624726103
B92: PR-33-S (1/4") F2-025 | F92: PR-33-S/PR-23-MS | H92: =6.35/25.4 -> 0.25 | I92: =4/25.4 -> 0.157480315 | J92: =IF(Data!M105<0,0,Data!M105) -> 36.23050652 | K92: =IF(Data!P105<0,0,Data!P105) -> 56.93132491 | L92: =IF(Data!S105<0,0,Data!S105) -> 98.87906852 | M92: =IF(L92<0,0,J92) -> 36.23050652 | N92: Max velocity over 20 ft/s, risk of cavitation
B93: PR-33-S (3/8") F2-038 | F93: PR-33-S/PR-23-MS | H93: =9.5/25.4 -> 0.374015748 | I93: =6.5/25.4 -> 0.2559055118 | J93: =IF(Data!M125<0,0,Data!M125) -> 18.36618768 | K93: =IF(Data!P125<0,0,Data!P125) -> 10.06725855 | L93: =IF(Data!S125<0,0,Data!S125) -> 44.52244527 | M93: =IF(L93<0,0,J93) -> 18.36618768 | N93: Max velocity over 20 ft/s, risk of cavitation
B94: PR-33-S (1/2") F2-050 | F94: PR-33-S/PR-23-MS | H94: =12.7/25.4 -> 0.5 | I94: =11/25.4 -> 0.4330708661 | J94: =IF(Data!M110<0,0,Data!M110) -> 6.260207215 | K94: =IF(Data!P110<0,0,Data!P110) -> 3.603951385 | L94: =IF(Data!S110<0,0,Data!S110) -> 30.16255845 | M94: =IF(L94<0,0,J94) -> 6.260207215 | N94: Max velocity over 20 ft/s, risk of cavitation
B95: PR-33-S (3/4") F2-075 | F95: PR-33-S/PR-23-MS | H95: =19.05/25.4 -> 0.75 | I95: =16/25.4 -> 0.6299212598 | J95: =IF(Data!M115<0,0,Data!M115) -> 2.389703411 | K95: =IF(Data!P115<0,0,Data!P115) -> 0.8030649366 | L95: =IF(Data!S115<0,0,Data!S115) -> 15.85518988 | M95: 2.389703411
B96: PR-33-S (1") F2-100 | F96: PR-33-S/PR-23-MS | H96: 1 | I96: =22/25.4 -> 0.8661417323 | J96: =IF(Data!M120<0,0,Data!M120) -> 3.056302819 | K96: =IF(Data!P120<0,0,Data!P120) -> 1.068795153 | L96: =IF(Data!S120<0,0,Data!S120) -> 16.99372347 | M96: 3.056302819
B97: WFC-KSS-A/D/J-05-NC-SN/WNWP/PG | F97: PR-23-GC | H97: 0.5 | I97: =8.65*2/25.4 -> 0.6811023622 | J97: =IF(Data!M130<0,0,Data!M130) -> 3.327575756 | K97: =IF(Data!P130<0,0,Data!P130) -> 0.2174986203 | L97: =IF(Data!S130<0,0,Data!S130) -> 8.234359004 | M97: 3.327575756
B98: WFC-KSS-A/D/J-10-NC-SN/WNWP/PG | F98: PR-23-GC | H98: 1 | I98: =2*13.35/25.4 -> 1.051181102 | J98: =IF(Data!M135<0,0,Data!M135) -> 1.47317596 | K98: =IF(Data!P135<0,0,Data!P135) -> 0.07529778326 | L98: =IF(Data!S135<0,0,Data!S135) -> 4.382140021 | M98: 1.47317596
B99: WFC-KSS-A/D/J-15-NC-SN/WNWP/PG | F99: PR-23-GC | H99: 1.5 | I99: =40.9/25.4 -> 1.61023622 | J99: =IF(Data!M140<0,0,Data!M140) -> 0.5270230938 | K99: =IF(Data!P140<0,0,Data!P140) -> 0.01570633539 | L99: =IF(Data!S140<0,0,Data!S140) -> 2.18845462 | M99: 0.5270230938
B100: GFC-K60-P40-SS-J15-P10 | F100: PR-43-GC | H100: 1 | I100: =4.7*2/25.4 -> 0.3700787402 | J100: =IF(Data!M145<0,0,Data!M145) -> 9.250127558 | K100: =IF(Data!P145<0,0,Data!P145) -> 3.478566498 | L100: =IF(Data!S145<0,0,Data!S145) -> 17.50856769 | M100: 9.250127558
B101: GFC-K60-P40-SS-R05/N05/A05/D15-PXX-SN/WN/WP-PG | F101: PR-43-GC | H101: 0.5 | I101: =2*5.97/25.4 -> 0.4700787402 | J101: =IF(Data!M150<0,0,Data!M150) -> 8.679044849 | K101: =IF(Data!P150<0,0,Data!P150) -> 2.672451015 | L101: =IF(Data!S150<0,0,Data!S150) -> 18.45997297 | M101: 8.679044849
B102: GFC-K60-P40-SS-R10/N10/A10/D25-PXX-SN/WN/WP-PG | F102: PR-43-GC | H102: 1 | I102: =2*11.18/25.4 -> 0.8803149606 | J102: =IF(Data!M155<0,0,Data!M155) -> 1.983131091 | K102: =IF(Data!P155<0,0,Data!P155) -> 0.1780144606 | L102: =IF(Data!S155<0,0,Data!S155) -> 6.05060715 | M102: 1.983131091
B103: GFC-K60-P40-SS-D15-P40 | F103: PR-43-GC | J103: =IF(Data!M160<0,0,Data!M160) -> 10.82727774 | K103: =IF(Data!P160<0,0,Data!P160) -> 4.12918036 | L103: =IF(Data!S160<0,0,Data!S160) -> 18.97791357 | M103: 10.82727774
B104: GFC-K60-P40-SS-D25-P40 | F104: PR-43-GC | H104: 2.5 | I104: =2*7.5/25.4 -> 0.5905511811 | J104: =IF(Data!M165<0,0,Data!M165) -> 1.913172429 | K104: =IF(Data!P165<0,0,Data!P165) -> 0.3224095233 | L104: =IF(Data!S165<0,0,Data!S165) -> 8.958885737 | M104: =IF(L104<0,0,J104) -> 1.913172429
B105: PFC-KSS-A10 | F105: PR-23-GC | H105: 1 | I105: =2*13.47/25.4 -> 1.060629921 | J105: =IF(Data!M170<0,0,Data!M170) -> 2.213763224 | K105: =IF(Data!P170<0,0,Data!P170) -> 0.05406540373 | L105: =IF(Data!S170<0,0,Data!S170) -> 3.714499458 | M105: 2.213763224
B106: PFC-23GP-A/D/J-SS-A10/D10/J10 | F106: PR-23-GP | H106: 1 | I106: =2*26.3/25.4 -> 2.070866142 | J106: =IF(Data!M175<0,0,Data!M175) -> 0.3126825515 | K106: =IF(Data!P175<0,0,Data!P175) -> 0.0006988365318 | L106: =IF(Data!S175<0,0,Data!S175) -> 0.5406248836 | M106: 0.3126825515
B107: PFC-23GP-A/D/J-SS-A15/D15/J15 | F107: PR-23-GP | H107: =1.5 -> 1.5 | I107: =50/25.4 -> 1.968503937 | J107: =IF(Data!M180<0,0,Data!M180) -> 0.3259693454 | K107: =IF(Data!P180<0,0,Data!P180) -> 0.0008169413671 | L107: =IF(Data!S180<0,0,Data!S180) -> 0.550770708 | M107: 0.3259693454
B108: SVB-A020/D050-GC-PFA/ETF | F108: PR-23-W2 | H108: 2 | I108: =46/25.4 -> 1.811023622 | J108: =IF(Data!M185<0,0,Data!M185) -> 0.04251774071 | K108: =IF(Data!P185<0,0,Data!P185) -> 0.0005905241765 | L108: =IF(Data!S185<0,0,Data!S185) -> 1.232719218 | M108: 0.04251774071
B109: SVB-A030/D050-GC-PFA/ETF | F109: PR-23-W3 | H109: =76.2/25.4 -> 3 | I109: =70/25.4 -> 2.755905512 | J109: =IF(Data!M190<0,0,Data!M190) -> 0.01919203574 | K109: =IF(Data!P190<0,0,Data!P190) -> 0.0005905241765 | L109: =IF(Data!S190<0,0,Data!S190) -> 0.6867796173 | M109: 0.01919203574
B110: SVB-A040/D050-GC-PFA/ETF | F110: PR-23-W4 | H110: =101.6/25.4 -> 4 | I110: =90/25.4 -> 3.543307087 | J110: =IF(Data!M195<0,0,Data!M195) -> 0.010038911 | K110: =IF(Data!P195<0,0,Data!P195) -> 8.857862648e-05 | L110: =IF(Data!S195<0,0,Data!S195) -> 0.3451613812 | M110: 0.010038911
B111: FTC-SS-A05/D10/J10 | F111: PR-43-GP | H111: 0.5 | I111: =26.7/25.4 -> 1.051181102 | J111: =IF(Data!M200<0,0,Data!M200) -> 1.165989987 | K111: =IF(Data!P200<0,0,Data!P200) -> 0.0008857862648 | L111: =IF(Data!S200<0,0,Data!S200) -> 1.946662948 | M111: 1.165989987
B112: FTC-SS-A10/D10/J10 | F112: PR-43-GP | H112: 1 | I112: =2*12.4/25.4 -> 0.9763779528 | J112: =IF(Data!M205<0,0,Data!M205) -> 1.191382526 | K112: =IF(Data!P205<0,0,Data!P205) -> 0.002066834618 | L112: =IF(Data!S205<0,0,Data!S205) -> 2.240743988 | M112: 1.191382526
B113: FTC-SS-A15/D15/J15 | F113: PR-43-GP | H113: 1.5 | I113: =40.9/25.4 -> 1.61023622 | J113: =IF(Data!M210<0,0,Data!M210) -> 0.4777340588 | K113: =IF(Data!P210<0,0,Data!P210) -> 0.0002952620883 | L113: =IF(Data!S210<0,0,Data!S210) -> 0.8338201372 | M113: 0.4777340588
B114: FTC-SS-A20/D20/J20 | F114: PR-43-GP | H114: 2 | I114: =2*26.3/25.4 -> 2.070866142 | J114: =IF(Data!M215<0,0,Data!M215) -> 0.2698695487 | K114: =IF(Data!P215<0,0,Data!P215) -> 0.000177157253 | L114: =IF(Data!S215<0,0,Data!S215) -> 0.4644472648 | M114: 0.2698695487
B115: CFC-RP-M20-M10-NC-PG/SN/WP | F115: PR-23-RP | H115: 1 | I115: =26.7/25.4 -> 1.051181102 | J115: =IF(Data!M220<0,0,Data!M220) -> 1.374740283 | K115: =IF(Data!P220<0,0,Data!P220) -> 0.004372974295 | L115: =IF(Data!S220<0,0,Data!S220) -> 1.780430392 | M115: 1.374740283
B116: CFC-RP-M20-M20-NC-PG/SN/WP | F116: PR-23-RP | H116: 2 | I116: =2*26.3/25.4 -> 2.070866142 | J116: =IF(Data!M225<0,0,Data!M225) -> 0.4547036159 | K116: =IF(Data!P225<0,0,Data!P225) -> 0.0001476310441 | L116: =IF(Data!S225<0,0,Data!S225) -> 0.5550927259 | M116: 0.4547036159
N117: =IF(L117>20,"Warning! Max velocity over 20 ft/s!", " ") -> 
B120: Out of range | J120: 0
B121: Out of range | H121: 0 | I121: 0 | J121: 9000 | K121: 0 | L121: 0
B124: 2.4 | M124: A-P:n teoria: | O124: Putkikoon muuttaminen tuumiin
B125: 4 | L125: 12.7 | M125: 0.5 | O125: =J9 -> 1
B126: 16.4 | L126: 25.4 | M126: 1
B127: 18 | L127: 38.1 | M127: 1.5
B128: 21 | L128: 50.8 | M128: 2
L129: 63.5 | M129: 2.5
L130: 76.2 | M130: 3
B131: recommended velocity | D131: =1.85*3.2808399 -> 6.069553815 | F131: velocity | G131: =IF(F10="Out of range",0,F9/4.402868) -> 2.952620883 | L131: 101.6 | M131: 4
M134: =INDEX(M125:M131,MATCH(MIN(ABS(M125:M131-O125)),ABS(M125:M131-O125),0)) -> 1
B136: Uusi käytännöllinen tuotteen valinta
B137: Chemical industry | C137: 9.250127558 | D137: =INDEX(B$72:B$121,MATCH(C$137,J$72:J$121,0)) -> GFC-K60-P40-SS-J15-P10 | E137: 2.213763224 | F137: =INDEX(B$72:B$121,MATCH(E$137,J$72:J$121,0)) -> PFC-KSS-A10 | G137: 1.983131091 | H137: =INDEX(B$72:B$121,MATCH(G$137,J$72:J$121,0)) -> GFC-K60-P40-SS-R10/N10/A10/D25-PXX-SN/WN/WP-PG
B138: Food Industry | C138: 1.791650352 | D138: =INDEX(B$72:B$121,MATCH(C$138,J$72:J$121,0)) -> AFC-HSS-H10-RI (-NC-SN/WNWP-PG) | E138: 1.433202176 | F138: =INDEX(B$72:B$121,MATCH(E$138,J$72:J$121,0)) -> AFC-HSS-H10-SI (-NC-SN/WNWP-PG) | G138: 1.196276078 | H138: =INDEX(B$72:B$121,MATCH(G$138,J$72:J$121,0)) -> AFC-HSS-H15-RI (-NC-SN/WNWP-PG)
B139: Semiconductor | C139: 3.056302819 | D139: =INDEX(B$72:B$121,MATCH(C$139,J$72:J$121,0)) -> PR-33-S (1") F2-100 | E139: 2.389703411 | F139: =INDEX(B$72:B$121,MATCH(E$139,J$72:J$121,0)) -> PR-33-S (3/4") F2-075 | G139: 9000 | H139: =INDEX(B$72:B$121,MATCH(G$139,J$72:J$121,0)) -> Out of range
D141: Food Industry | K141: Chemical industry | Q141: Semiconductor
D143: Best | F143: 2nd Best | H143: 3rd best | K143: Best | M143: 2nd Best | O143: 3rd best | R143: Best | T143: 2nd Best | V143: 3rd best
B144: PMFC-HSS-H04 | C144: 0.5 | D144: =IF(J72=0,9000,J72) -> 256.4313027 | E144: =INDEX($F$181:$F$249,MATCH(D144,$E$181:$E$249,1)) -> 10 | F144: =IF(D144=$D$148,9000,D144) -> 9000 | G144: =INDEX($F$181:$F$249,MATCH(F144,$E$181:$E$249,1)) -> 0 | H144: =IF(F144=$F$148,9000,F144) -> 9000 | I144: =INDEX($F$181:$F$249,MATCH(H144,$E$181:$E$249,1)) -> 0 | J144: WFC-05 | K144: =IF(J97=0,9000,J97) -> 3.327575756 | L144: =INDEX($F$181:$F$249,MATCH(K144,$E$181:$E$249,1)) -> 15.75 | M144: =IF(K144=$K$148,9000,K144) -> 3.327575756 | N144: =INDEX($F$181:$F$249,MATCH(M144,$E$181:$E$249,1)) -> 15.75 | O144: =IF(M144=$M$148,9000,M144) -> 9000 | P144: =INDEX($F$181:$F$249,MATCH(O144,$E$181:$E$249,1)) -> 0 | Q144: PR-33-S (1/4") | R144: =IF(J92=0,9000,J92) -> 36.23050652 | S144: =INDEX($F$181:$F$249,MATCH(R144,$E$181:$E$249,1)) -> 10 | T144: =IF(R144=R148,9000,R144) -> 36.23050652 | U144: =INDEX($F$181:$F$249,MATCH(T144,$E$181:$E$249,1)) -> 10 | V144: =IF(T144=T148,9000,T144) -> 36.23050652 | W144: =INDEX($F$181:$F$249,MATCH(V144,$E$181:$E$249,1)) -> 10
B145: PMFC-HSS-05 | D145: =IF(J73=0,9000,J73) -> 37.76697371 | E145: =INDEX($F$181:$F$249,MATCH(D145,$E$181:$E$249,1)) -> 10 | F145: =IF(D145=$D$148,9000,D145) -> 37.76697371 | G145: =INDEX($F$181:$F$249,MATCH(F145,$E$181:$E$249,1)) -> 10 | H145: =IF(F145=$F$148,9000,F145) -> 9000 | I145: =INDEX($F$181:$F$249,MATCH(H145,$E$181:$E$249,1)) -> 0 | J145: GFC-K60-P40-R05 | K145: =IF(J101=0,9000,J101) -> 8.679044849 | L145: =INDEX($F$181:$F$249,MATCH(K145,$E$181:$E$249,1)) -> 80 | M145: =IF(K145=$K$148,9000,K145) -> 9000 | N145: =INDEX($F$181:$F$249,MATCH(M145,$E$181:$E$249,1)) -> 0 | O145: =IF(M145=$M$148,9000,M145) -> 9000 | P145: =INDEX($F$181:$F$249,MATCH(O145,$E$181:$E$249,1)) -> 0 | Q145: PR-33-S (3/8") | R145: =IF(J93=0,9000,J93) -> 18.36618768 | S145: =INDEX($F$181:$F$249,MATCH(R145,$E$181:$E$249,1)) -> 22 | T145: =IF(R145=R148,9000,R145) -> 18.36618768 | U145: =INDEX($F$181:$F$249,MATCH(T145,$E$181:$E$249,1)) -> 22 | V145: =IF(T145=T148,9000,T145) -> 9000 | W145: =INDEX($F$181:$F$249,MATCH(V145,$E$181:$E$249,1)) -> 0
B146: PMFC-HSS-H06 | D146: 29.08924067 | E146: =INDEX($F$181:$F$249,MATCH(D146,$E$181:$E$249,1)) -> 10 | F146: =IF(D146=$D$148,9000,D146) -> 29.08924067 | G146: 10 | H146: =IF(F146=$F$148,9000,F146) -> 29.08924067 | I146: 10 | J146: FTC-A05 | K146: =IF(J111=0,9000,J111) -> 1.165989987 | L146: 4.45 | M146: =IF(K146=$K$148,9000,K146) -> 1.165989987 | N146: 4.45 | O146: =IF(M146=$M$148,9000,M146) -> 1.165989987 | P146: 4.45 | Q146: PR-33-S (1/2") | R146: =IF(J94=0,9000,J94) -> 6.260207215 | S146: 94 | T146: =IF(R146=R148,9000,R146) -> 9000 | U146: 0 | V146: =IF(T146=T148,9000,T146) -> 9000 | W146: 0
Q147: PR-33-S (3/4") | R147: =IF(J95=0,9000,J95) -> 2.389703411 | S147: 9.35 | T147: =IF(R147=R148,9000,R147) -> 2.389703411 | U147: 9.35 | V147: =IF(T147=T148,9000,T147) -> 2.389703411 | W147: 9.35
C148: tulos | D148: =INDEX(D144:D146,MATCH(E148,E144:E146,0)) -> 256.4313027 | E148: =MAX(E144:E147) -> 10 | F148: =INDEX(F144:F146,MATCH(G148,G144:G146,0)) -> 37.76697371 | G148: =MAX(G144:G147) -> 10 | H148: =INDEX(H144:H146,MATCH(I148,I144:I146,0)) -> 29.08924067 | I148: =MAX(I144:I147) -> 10 | K148: =INDEX(K144:K146,MATCH(L148,L144:L146,0)) -> 8.679044849 | L148: =MAX(L144:L147) -> 80 | M148: =INDEX(M144:M146,MATCH(N148,N144:N146,0)) -> 3.327575756 | N148: =MAX(N144:N147) -> 15.75 | O148: =INDEX(O144:O146,MATCH(P148,P144:P146,0)) -> 1.165989987 | P148: =MAX(P144:P147) -> 4.45 | R148: =INDEX(R144:R147,MATCH(S148,S144:S147,0)) -> 6.260207215 | S148: =MAX(S144:S147) -> 94 | T148: =INDEX(T144:T147,MATCH(U148,U144:U147,0)) -> 18.36618768 | U148: =MAX(U144:U147) -> 22 | V148: =INDEX(V144:V147,MATCH(W148,W144:W147,0)) -> 36.23050652 | W148: =MAX(W144:W147) -> 10
B149: SFC-HHSS-H10-90 | C149: 1 | D149: =IF(J84=0,9000,J84) -> 0.4151384961 | E149: =INDEX($F$181:$F$249,MATCH(D149,$E$181:$E$249,1)) -> 1.65 | F149: =IF(D149=$D$156,9000,D149) -> 0.4151384961 | G149: =INDEX($F$181:$F$249,MATCH(F149,$E$181:$E$249,1)) -> 1.65 | H149: =IF(F149=$F$156,9000,F149) -> 0.4151384961 | I149: 1.65 | J149: FTC-A10 | K149: =IF(J112=0,9000,J112) -> 1.191382526 | L149: 4.45 | M149: =IF(K149=$K$156,9000,K149) -> 1.191382526 | N149: 4.45 | O149: =IF(M149=$M$156,9000,M149) -> 1.191382526 | P149: 4.45 | Q149: PR-33-S (3/4") | R149: =IF(J95=0,9000,J95) -> 2.389703411 | S149: 9.35 | T149: =IF(R149=$R$156,9000,R149) -> 2.389703411 | U149: 9.35 | V149: =IF(T149=T$156,9000,T149) -> 9000 | W149: 0
B150: SFC-HHSS-H10-180 | D150: =IF(J85=0,9000,J85) -> 0.2654406173 | E150: 0.95 | F150: 0.2654406173 | G150: 0.95 | H150: 0.2654406173 | I150: 0.95 | J150: WFC-10 | K150: =IF(J98=0,9000,J98) -> 1.47317596 | L150: 5.85 | M150: 1.47317596 | N150: 5.85 | O150: =IF(M150=$M$156,9000,M150) -> 1.47317596 | P150: 5.85 | Q150: PR-33-S (1") | R150: =IF(J96=0,9000,J96) -> 3.056302819 | S150: 12.9 | T150: =IF(R150=$R$156,9000,R150) -> 9000 | U150: 0 | V150: =IF(T150=T$156,9000,T150) -> 9000 | W150: 0
B151: AFC-HSS-H10-SI | D151: =IF(J75=0,9000,J75) -> 1.433202176 | E151: 5.85 | F151: 1.433202176 | G151: 5.85 | H151: 9000 | I151: 0 | J151: PFC-23-GP-A10 | K151: =IF(J106=0,9000,J106) -> 0.3126825515 | L151: 0.95 | M151: 0.3126825515 | N151: 0.95 | O151: =IF(M151=$M$156,9000,M151) -> 0.3126825515 | P151: 0.95 | R151: 9000 | S151: 0 | T151: 9000 | U151: 0 | V151: 9000 | W151: 0
B152: AFC-HSS-H10-RI | D152: =IF(J76=0,9000,J76) -> 1.791650352 | E152: 7.25 | F152: 9000 | G152: 0 | H152: 9000 | I152: 0 | J152: PFC-KSS-A10 | K152: =IF(J105=0,9000,J105) -> 2.213763224 | L152: 8.65 | M152: 2.213763224 | N152: 8.65 | O152: =IF(M152=$M$156,9000,M152) -> 9000 | P152: 0
B153: AFC-HSS-H15-SI | D153: =IF(J77=0,9000,J77) -> 0.7905579905 | E153: 3.05 | F153: 0.7905579905 | G153: 3.05 | H153: 0.7905579905 | I153: 3.05 | J153: CFC-M10 | K153: =IF(J115=0,9000,J115) -> 1.374740283 | L153: 5.15 | M153: 1.374740283 | N153: 5.15 | O153: =IF(M153=$M$156,9000,M153) -> 1.374740283 | P153: 5.15
B154: AFC-HSS-H15-RI | D154: =IF(J78=0,9000,J78) -> 1.196276078 | E154: 4.45 | F154: 1.196276078 | G154: 4.45 | H154: 1.196276078 | I154: 4.45 | J154: GFC-K60-P40J15-P10 | K154: =IF(J100=0,9000,J100) -> 9.250127558 | L154: 76 | M154: 9000 | N154: 0 | O154: =IF(M154=$M$156,9000,M154) -> 9000 | P154: 0
J155: GFC-K60-P40-R10 | K155: =IF(J102=0,9000,J102) -> 1.983131091 | L155: 7.95 | M155: 1.983131091 | N155: 7.95 | O155: =IF(M155=$M$156,9000,M155) -> 1.983131091 | P155: 7.95
C156: tulos | D156: =INDEX(D149:D154,MATCH(E156,E149:E154,0)) -> 1.791650352 | E156: =MAX(E149:E155) -> 7.25 | F156: =INDEX(F149:F154,MATCH(G156,G149:G154,0)) -> 1.433202176 | G156: =MAX(G149:G155) -> 5.85 | H156: =INDEX(H149:H154,MATCH(I156,I149:I154,0)) -> 1.196276078 | I156: =MAX(I149:I155) -> 4.45 | K156: =INDEX(K149:K155,MATCH(L156,L149:L155,0)) -> 9.250127558 | L156: =MAX(L149:L155) -> 76 | M156: =INDEX(M149:M155,MATCH(N156,N149:N155,0)) -> 2.213763224 | N156: =MAX(N149:N155) -> 8.65 | O156: =INDEX(O149:O155,MATCH(P156,P149:P155,0)) -> 1.983131091 | P156: =MAX(P149:P155) -> 7.95 | R156: =INDEX(R149:R151,MATCH(S156,S149:S151,0)) -> 3.056302819 | S156: =MAX(S149:S151) -> 12.9 | T156: =INDEX(T149:T151,MATCH(U156,U149:U151,0)) -> 2.389703411 | U156: =MAX(U149:U151) -> 9.35 | V156: =INDEX(V149:V151,MATCH(W156,W149:W151,0)) -> 9000 | W156: =MAX(W149:W151) -> 0
B157: SFC-HHSS-H15-90 | C157: 1.5 | D157: =IF(J86=0,9000,J86) -> 0.267802714 | E157: 0.95 | F157: =IF(D157=$D$161,9000,D157) -> 0.267802714 | G157: 0.95 | H157: =IF(F157=$F$161,9000,F157) -> 0.267802714 | I157: 0.95 | J157: FTC-A15 | K157: =IF(J113=0,9000,J113) -> 0.4777340588 | L157: 1.65 | M157: =IF(K157=$K$161,9000,K157) -> 9000 | N157: 0 | O157: =IF(M157=$M$161,9000,M157) -> 9000 | P157: 0 | R157: 9000 | T157: 9000 | V157: 9000
B158: SFC-HHSS-H15-180 | D158: =IF(J87=0,9000,J87) -> 0.1446784232 | E158: 0.25 | F158: =IF(D158=$D$161,9000,D158) -> 0.1446784232 | G158: 0.25 | H158: =IF(F158=$F$161,9000,F158) -> 0.1446784232 | I158: 0.25 | J158: WFC-15 | K158: =IF(J99=0,9000,J99) -> 0.5270230938 | L158: 1.65 | M158: =IF(K158=$K$161,9000,K158) -> 0.5270230938 | N158: 1.65 | O158: =IF(M158=$M$161,9000,M158) -> 9000 | P158: 0 | R158: 9000 | T158: 9000 | V158: 9000
B159: AFC-HSS-H15-SI | D159: =IF(J77=0,9000,J77) -> 0.7905579905 | E159: 3.05 | F159: =IF(D159=$D$161,9000,D159) -> 0.7905579905 | G159: 3.05 | H159: =IF(F159=$F$161,9000,F159) -> 9000 | I159: 0 | J159: PFC-23-GP-A15 | K159: =IF(J107=0,9000,J107) -> 0.3259693454 | L159: 0.95 | M159: =IF(K159=$K$161,9000,K159) -> 0.3259693454 | N159: 0.95 | O159: =IF(M159=$M$161,9000,M159) -> 0.3259693454 | P159: 0.95 | R159: 9000 | T159: 9000 | V159: 9000
B160: AFC-HSS-H15-RI | D160: =IF(J78=0,9000,J78) -> 1.196276078 | E160: 4.45 | F160: =IF(D160=$D$161,9000,D160) -> 9000 | G160: 0 | H160: =IF(F160=$F$161,9000,F160) -> 9000 | I160: 0
C161: tulos | D161: =INDEX(D157:D160,MATCH(E161,E157:E160,0)) -> 1.196276078 | E161: =MAX(E157:E160) -> 4.45 | F161: =INDEX(F157:F160,MATCH(G161,G157:G160,0)) -> 0.7905579905 | G161: =MAX(G157:G160) -> 3.05 | H161: =INDEX(H157:H160,MATCH(I161,I157:I160,0)) -> 0.267802714 | I161: =MAX(I157:I160) -> 0.95 | K161: =INDEX(K157:K159,MATCH(L161,L157:L159,0)) -> 0.4777340588 | L161: =MAX(L157:L160) -> 1.65 | M161: =INDEX(M157:M159,MATCH(N161,N157:N159,0)) -> 0.5270230938 | N161: =MAX(N157:N160) -> 1.65 | O161: =INDEX(O157:O159,MATCH(P161,P157:P159,0)) -> 0.3259693454 | P161: =MAX(P157:P160) -> 0.95 | R161: =INDEX(R157:R159,MATCH(MIN(ABS(R157:R159-$D$131)),ABS(R157:R159-$D$131),0)) -> 9000 | T161: =INDEX(T157:T159,MATCH(MIN(ABS(T157:T159-$D$131)),ABS(T157:T159-$D$131),0)) -> 9000 | V161: =INDEX(V157:V159,MATCH(MIN(ABS(V157:V159-$D$131)),ABS(V157:V159-$D$131),0)) -> 9000
B162: SFC-HHSS-H20-90 | C162: 2 | D162: =IF(J88=0,9000,J88) -> 0.2250966247 | E162: 0.95 | F162: =IF(D162=$D$166,9000,D162) -> 0.2250966247 | G162: 0.95 | H162: =IF(F162=$F$166,9000,F162) -> 9000 | I162: 0 | J162: FTC-A20 | K162: =IF(J114=0,9000,J114) -> 0.2698695487 | L162: 0.95 | M162: =IF(K162=$K$166,9000,K162) -> 0.2698695487 | N162: 0.95 | O162: =IF(M162=$M$166,9000,M162) -> 9000 | P162: 0 | R162: 9000 | T162: 9000 | V162: 9000
B163: SFC-HHSS-H20-180 | D163: =IF(J89=0,9000,J89) -> 0.08769284021 | E163: 0.25 | F163: =IF(D163=$D$166,9000,D163) -> 0.08769284021 | G163: 0.25 | H163: =IF(F163=$F$166,9000,F163) -> 0.08769284021 | I163: 0.25 | J163: CFC-M20 | K163: =IF(J116=0,9000,J116) -> 0.4547036159 | L163: 1.65 | M163: =IF(K163=$K$166,9000,K163) -> 9000 | N163: 0 | O163: =IF(M163=$M$166,9000,M163) -> 9000 | P163: 0 | R163: 9000 | T163: 9000 | V163: 9000
B164: AFC-HSS-H20-SI | D164: =IF(J79=0,9000,J79) -> 0.2946715641 | E164: 0.95 | F164: =IF(D164=$D$166,9000,D164) -> 0.2946715641 | G164: 0.95 | H164: =IF(F164=$F$166,9000,F164) -> 0.2946715641 | I164: 0.95 | J164: PR-23-W20 | K164: =IF(J108=0,9000,J108) -> 0.04251774071 | L164: 0.25 | M164: =IF(K164=$K$166,9000,K164) -> 0.04251774071 | N164: 0.25 | O164: =IF(M164=$M$166,9000,M164) -> 0.04251774071 | P164: 0.25 | R164: 9000 | T164: 9000 | V164: 9000
B165: AFC-HSS-H20-RI | D165: =IF(J80=0,9000,J80) -> 0.5829008189 | E165: 2.35 | F165: =IF(D165=$D$166,9000,D165) -> 9000 | G165: 0 | H165: =IF(F165=$F$166,9000,F165) -> 9000 | I165: 0
C166: tulos | D166: =INDEX(D162:D165,MATCH(E166,E162:E165,0)) -> 0.5829008189 | E166: =MAX(E162:E165) -> 2.35 | F166: =INDEX(F162:F165,MATCH(G166,G162:G165,0)) -> 0.2250966247 | G166: =MAX(G162:G165) -> 0.95 | H166: =INDEX(H162:H165,MATCH(I166,I162:I165,0)) -> 0.2946715641 | I166: =MAX(I162:I165) -> 0.95 | K166: =INDEX(K162:K165,MATCH(L166,L162:L165,0)) -> 0.4547036159 | L166: =MAX(L162:L165) -> 1.65 | M166: =INDEX(M162:M165,MATCH(N166,N162:N165,0)) -> 0.2698695487 | N166: =MAX(N162:N165) -> 0.95 | O166: =INDEX(O162:O165,MATCH(P166,P162:P165,0)) -> 0.04251774071 | P166: =MAX(P162:P165) -> 0.25 | R166: =INDEX(R161:R164,MATCH(MIN(ABS(R161:R164-$D$131)),ABS(R161:R164-$D$131),0)) -> 9000 | T166: =INDEX(T161:T164,MATCH(MIN(ABS(T161:T164-$D$131)),ABS(T161:T164-$D$131),0)) -> 9000 | V166: =INDEX(V161:V164,MATCH(MIN(ABS(V161:V164-$D$131)),ABS(V161:V164-$D$131),0)) -> 9000
B167: SFC-HHSS-H25-90 | C167: 2.5 | D167: =IF(J90=0,9000,J90) -> 0.09427578585 | E167: 0.25 | F167: =IF(D167=$D$170,9000,D167) -> 0.09427578585 | G167: 0.25 | H167: =IF(F167=$F$170,9000,F167) -> 9000 | I167: 0 | J167: GFK-K60-P40-D25 | K167: =IF(J104=0,9000,J104) -> 1.913172429 | L167: 7.25 | M167: =IF(K167=$K$170,9000,K167) -> 9000 | N167: 0 | O167: =IF(M167=$M$170,9000,M167) -> 9000 | P167: 0 | R167: 9000 | T167: 9000 | V167: 9000
B168: SFC-HHSS-H25-180 | D168: =IF(J91=0,9000,J91) -> 0.1624726103 | E168: 0.25 | F168: =IF(D168=$D$170,9000,D168) -> 0.1624726103 | G168: 0.25 | H168: =IF(F168=$F$170,9000,F168) -> 0.1624726103 | I168: 0.25 | K168: 9000 | L168: 0 | M168: 9000 | N168: 0 | O168: 9000 | P168: 0 | R168: 9000 | T168: 9000 | V168: 9000
B169: AFC-HSS-H25-SI | D169: =IF(J81=0,9000,J81) -> 0.1821767085 | E169: 0.95 | F169: =IF(D169=$D$170,9000,D169) -> 9000 | G169: 0 | H169: =IF(F169=$F$170,9000,F169) -> 9000 | I169: 0 | K169: 9000 | L169: 0 | M169: 9000 | N169: 0 | O169: 9000 | P169: 0 | R169: 9000 | T169: 9000 | V169: 9000
C170: tulos | D170: =INDEX(D167:D169,MATCH(E170,E167:E169,0)) -> 0.1821767085 | E170: =MAX(E167:E169) -> 0.95 | F170: =INDEX(F167:F169,MATCH(G170,G167:G169,0)) -> 0.09427578585 | G170: =MAX(G167:G169) -> 0.25 | H170: =INDEX(H167:H169,MATCH(I170,I167:I169,0)) -> 0.1624726103 | I170: =MAX(I167:I169) -> 0.25 | K170: =INDEX(K167:K169,MATCH(L170,L167:L169,0)) -> 1.913172429 | L170: =MAX(L167:L169) -> 7.25 | M170: =INDEX(M167:M169,MATCH(N170,N167:N169,0)) -> 9000 | N170: =MAX(N167:N169) -> 0 | O170: =INDEX(O167:O169,MATCH(P170,P167:P169,0)) -> 9000 | P170: =MAX(P167:P169) -> 0 | R170: =INDEX(R167:R169,MATCH(MIN(ABS(R167:R169-$D$131)),ABS(R167:R169-$D$131),0)) -> 9000 | T170: =INDEX(T167:T169,MATCH(MIN(ABS(T167:T169-$D$131)),ABS(T167:T169-$D$131),0)) -> 9000 | V170: =INDEX(V167:V169,MATCH(MIN(ABS(V167:V169-$D$131)),ABS(V167:V169-$D$131),0)) -> 9000
B171: AFC-HSS-H30-SI | C171: 3 | D171: =IF(J82=0,9000,J82) -> 0.147665916 | E171: 0.25 | F171: =IF(D171=$D$174,9000,D171) -> 9000 | G171: 0 | H171: =IF(F171=$F$174,9000,F171) -> 9000 | I171: 0 | J171: PR-23-W30 | K171: =IF(J109=0,9000,J109) -> 0.01919203574 | L171: 0.25 | M171: =IF(K171=$K$174,9000,K171) -> 9000 | N171: 0 | O171: =IF(M171=$M$174,9000,M171) -> 9000 | P171: 0 | R171: 9000 | T171: 9000 | V171: 9000
D172: 9000 | E172: 0 | F172: 9000 | G172: 0 | H172: 9000 | I172: 0 | K172: 9000 | L172: 0 | M172: 9000 | N172: 0 | O172: 9000 | P172: 0 | R172: 9000 | T172: 9000 | V172: 9000
D173: 9000 | E173: 0 | F173: 9000 | G173: 0 | H173: 9000 | I173: 0 | K173: 9000 | L173: 0 | M173: 9000 | N173: 0 | O173: 9000 | P173: 0 | R173: 9000 | T173: 9000 | V173: 9000
C174: tulos | D174: =INDEX(D171:D173,MATCH(E174,E171:E173,0)) -> 0.147665916 | E174: =MAX(E171:E173) -> 0.25 | F174: =INDEX(F171:F173,MATCH(G174,G171:G173,0)) -> 9000 | G174: =MAX(G171:G173) -> 0 | H174: =INDEX(H171:H173,MATCH(I174,I171:I173,0)) -> 9000 | I174: =MAX(I171:I173) -> 0 | K174: =INDEX(K171:K173,MATCH(L174,L171:L173,0)) -> 0.01919203574 | L174: =MAX(L171:L173) -> 0.25 | M174: =INDEX(M171:M173,MATCH(N174,N171:N173,0)) -> 9000 | N174: =MAX(N171:N173) -> 0 | O174: =INDEX(O171:O173,MATCH(P174,P171:P173,0)) -> 9000 | P174: =MAX(P171:P173) -> 0 | R174: =INDEX(R171:R173,MATCH(MIN(ABS(R171:R173-$D$131)),ABS(R171:R173-$D$131),0)) -> 9000 | T174: =INDEX(T171:T173,MATCH(MIN(ABS(T171:T173-$D$131)),ABS(T171:T173-$D$131),0)) -> 9000 | V174: =INDEX(V171:V173,MATCH(MIN(ABS(V171:V173-$D$131)),ABS(V171:V173-$D$131),0)) -> 9000
B175: AFC-HSS-H40-SI | C175: 4 | D175: =IF(J83=0,9000,J83) -> 0.07294717174 | E175: 0.25 | F175: =IF(D175=$D$178,9000,D175) -> 9000 | G175: 0 | H175: =IF(F175=$F$178,9000,F175) -> 9000 | I175: 0 | J175: PR-23-W40 | K175: =IF(J110=0,9000,J110) -> 0.010038911 | L175: 0.25 | M175: =IF(K175=$K$178,9000,K175) -> 9000 | N175: 0 | O175: =IF(M175=$M$178,9000,M175) -> 9000 | P175: 0 | R175: 9000 | T175: 9000 | V175: 9000
D176: 9000 | E176: 0 | F176: 9000 | G176: 0 | H176: 9000 | I176: 0 | K176: 9000 | L176: 0 | M176: 9000 | N176: 0 | O176: 9000 | P176: 0 | R176: 9000 | T176: 9000 | V176: 9000
D177: 9000 | E177: 0 | F177: 9000 | G177: 0 | H177: 9000 | I177: 0 | K177: 9000 | L177: 0 | M177: 9000 | N177: 0 | O177: 9000 | P177: 0 | R177: 9000 | T177: 9000 | V177: 9000
C178: tulos | D178: =INDEX(D175:D177,MATCH(E178,E175:E177,0)) -> 0.07294717174 | E178: =MAX(E175:E177) -> 0.25 | F178: =INDEX(F175:F177,MATCH(G178,G175:G177,0)) -> 9000 | G178: =MAX(G175:G177) -> 0 | H178: =INDEX(H175:H177,MATCH(I178,I175:I177,0)) -> 9000 | I178: =MAX(I175:I177) -> 0 | K178: =INDEX(K175:K177,MATCH(L178,L175:L177,0)) -> 0.010038911 | L178: =MAX(L175:L177) -> 0.25 | M178: =INDEX(M175:M177,MATCH(N178,N175:N177,0)) -> 9000 | N178: =MAX(N175:N177) -> 0 | O178: =INDEX(O175:O177,MATCH(P178,P175:P177,0)) -> 9000 | P178: =MAX(P175:P177) -> 0 | R178: =INDEX(R175:R177,MATCH(MIN(ABS(R175:R177-$D$131)),ABS(R175:R177-$D$131),0)) -> 9000 | T178: =INDEX(T175:T177,MATCH(MIN(ABS(T175:T177-$D$131)),ABS(T175:T177-$D$131),0)) -> 9000 | V178: =INDEX(V175:V177,MATCH(MIN(ABS(V175:V177-$D$131)),ABS(V175:V177-$D$131),0)) -> 9000
E181: 0 | F181: =F182-0.7 -> 0.25 | H181: 0 - 2.5 ft/s
E182: =E181+0.1785 -> 0.1785 | F182: 0.95 | H182: 2.5 - 5 ft/s
E183: =E182+0.1785 -> 0.357 | F183: 1.65 | H183: 5 - 16.5 ft/s
E184: 0.5355 | F184: 2.35 | H184: 16.5 - 20 ft/s
E185: 0.714 | F185: 3.05 | H185: over 20 ft/s
E186: 0.8925 | F186: 3.75
E187: 1.071 | F187: 4.45
E188: 1.2495 | F188: 5.15
E189: 1.428 | F189: 5.85
E190: 1.6065 | F190: 6.55
E191: 1.785 | F191: 7.25
E192: 1.9635 | F192: 7.95
E193: 2.142 | F193: 8.65
E194: 2.3205 | F194: 9.35
E195: 2.5 | F195: =F196-2.85 -> 10.05
E196: =E195+0.3125 -> 2.8125 | F196: 12.9
E197: =E196+0.3125 -> 3.125 | F197: 15.75
E198: 3.4375 | F198: 18.6
E199: 3.75 | F199: 21.45
E200: 4.0625 | F200: 24.3
E201: 4.375 | F201: 27.15
E202: 4.6875 | F202: 30
E203: 5 | F203: 100
E204: =E203+0.338 -> 5.338 | F204: =F203-2 -> 98
E205: =E204+0.338 -> 5.676 | F205: =F204-2 -> 96
E206: 6.014 | F206: 94
E207: 6.352 | F207: 92
E208: 6.69 | F208: 90
E209: 7.028 | F209: 88
E210: 7.366 | F210: 86
E211: 7.704 | F211: 84
E212: 8.042 | F212: 82
E213: 8.38 | F213: 80
E214: 8.718 | F214: 78
E215: 9.056 | F215: 76
E216: 9.394 | F216: 74
E217: 9.732 | F217: 72
E218: 10.07 | F218: 70
E219: 10.408 | F219: 68
E220: 10.746 | F220: 66
E221: 11.084 | F221: 64
E222: 11.422 | F222: 62
E223: 11.76 | F223: 60
E224: 12.098 | F224: 58
E225: 12.436 | F225: 56
E226: 12.774 | F226: 54
... 23 more rows

Sheet Metric (hidden)
F3: Flow Cell Selector
M4: Ver1.8.2
B5: Select Industry: | O5: EXAMPLE: Section view of GFC-K60-P40-SS-J15-P10 flowcell.
E6: Set Inch / Metric:
D7: Insert values. Calculator shows three best suited flow cell options for the pipe size and flow rate
E9: Flow rate Q = | F9: 2.95 | G9: m^3/h | I9: Pipe Size = | J9: 25.4 | K9: mm
F10: =IF(F9>240,"Out of Range"," ") -> 
C11: Recommended prism flow velocity is 1.5 m/s or higher for a sugar solution. Other liquids recommended flow velocity depends on medium viscosity, purity and temperature.
C12: Recommended maximum flow in the flow cell is 6 m/s for all flow cells. With velocities above this there is a risk for cavitation.
B14: Chemical Industry
E15: =ROUND(Metric!$C$137,1) & " m/s" -> 2 m/s | H15: =ROUND(Metric!$E$137,1) & " m/s " -> 2.2 m/s | K15: =ROUND(Metric!$G$137,1) & " m/s " -> 1.5 m/s | O15: Flow rate Q: Inlet flow. Use the flow calculator below to determine flow rate if not provided by the customer.
O16: Pipe size: Installation site's pipe size. Flow cell selector has 7 options of standard pipe sizes, but the options might be limited by chosen industry.
O17: Inlet size: "True size" of the pipe connection.
B18: Flow on prism | O18: Flow on prism: Flow velocity measured over the the prism. Always measured from the same surface area.
O19: Max flow in flowcell: Maximum measured flow velocity inside flowcell. Can occur anywhere in flowcell, depending on the model.
O20: Pressure drop: Measured drop of pressure when comparing inlet flow vs. outlet flow pressure.
E21: =Metric!$D$137 -> GFC-K60-P40-SS-R10/N10/A10/D25-PXX-SN/WN/WP-PG | H21: =Metric!$F$137 -> PFC-KSS-A10 | K21: =Metric!$H$137 -> WFC-KSS-A/D/J-10-NC-SN/WNWP/PG
B22: Pipe size | E22: =INDEX(H$72:H$120,MATCH(D$137,B$72:B$120,0)) -> 25.4 | H22: =INDEX(H$72:H$120,MATCH(F$137,B$72:B$120,0)) -> 25.4 | K22: =INDEX(H$72:H$120,MATCH(H$137,B$72:B$120,0)) -> 25.4 | M22: mm
B23: Inlet diameter | E23: =INDEX(I$72:I$120,MATCH(D$137,B$72:B$120,0)) -> 22.36 | H23: =INDEX(I$72:I$120,MATCH(F$137,B$72:B$120,0)) -> 26.94 | K23: =INDEX(I$72:I$120,MATCH(H$137,B$72:B$120,0)) -> 26.7 | M23: mm
B24: Pressure drop | E24: =INDEX(K$72:K$120,MATCH(D$137,B$72:B$120,0)) -> 0.177708 | H24: =INDEX(K$72:K$120,MATCH(F$137,B$72:B$120,0)) -> 0.05397025 | K24: =INDEX(K$72:K$120,MATCH(H$137,B$72:B$120,0)) -> 0.075166 | M24: bar
B25: Flow on prism | E25: =ROUND(Metric!$C$137,1) -> 2 | H25: =ROUND(Metric!$E$137,1) -> 2.2 | K25: =ROUND(Metric!$G$137,1) -> 1.5 | M25: m/s
B28: Food Industry
E29: =ROUND(Metric!$C$138,1) & " m/s" -> 1.8 m/s | H29: =ROUND(Metric!$E$138,1) & " m/s " -> 1.4 m/s | K29: =ROUND(Metric!$G$138,1) & " m/s " -> 0.4 m/s | O29: Flow rate Q: Inlet flow. Use the flow calculator below to determine flow rate if not provided by the customer.
O30: Pipe size: Installation site's pipe size. Flow cell selector has 7 options of standard pipe sizes, but the options might be limited by chosen industry.
O31: Inlet size: "True size" of the pipe connection.
B32: Flow on prism | O32: Flow on prism: Flow velocity measured over the the prism. Always measured from the same surface area.
O33: Max flow in flowcell: Maximum measured flow velocity inside flowcell. Can occur anywhere in flowcell, depending on the model.
O34: Pressure drop: Measured drop of pressure when comparing inlet flow vs. outlet flow pressure.
E35: =Metric!$D$138 -> AFC-HSS-H10-RI (-NC-SN/WNWP-PG) | H35: =Metric!$F$138 -> AFC-HSS-H10-SI (-NC-SN/WNWP-PG) | K35: =Metric!$H$138 -> SFC-HHSS-H10-90
B36: Pipe size | E36: =INDEX(H$72:H$120,MATCH(D$138,B$72:B$120,0)) -> 25.4 | H36: =INDEX(H$72:H$120,MATCH(F$138,B$72:B$120,0)) -> 25.4 | K36: =INDEX(H$72:H$120,MATCH(H$138,B$72:B$120,0)) -> 25.4 | M36: mm
B37: Inlet diameter | E37: =INDEX(I$72:I$120,MATCH(D$138,B$72:B$120,0)) -> 22.6 | H37: =INDEX(I$72:I$120,MATCH(F$138,B$72:B$120,0)) -> 22.6 | K37: =INDEX(I$72:I$120,MATCH(H$138,B$72:B$120,0)) -> 22.6 | M37: mm
B38: Pressure drop | E38: =INDEX(K$72:K$120,MATCH(D$138,B$72:B$120,0)) -> 0.0641625 | H38: =INDEX(K$72:K$120,MATCH(F$138,B$72:B$120,0)) -> 0.0269925 | K38: =INDEX(K$72:K$120,MATCH(H$138,B$72:B$120,0)) -> 0.03051775 | M38: bar
B39: Flow on prism | E39: =ROUND(Metric!$C$138,1) -> 1.8 | H39: =ROUND(Metric!$E$138,1) -> 1.4 | K39: =ROUND(Metric!$G$138,1) -> 0.4 | M39: m/s
B42: Semiconductor
E43: =ROUND(Metric!$C$139,1) & " m/s " -> 2.4 m/s | H43: =ROUND(Metric!$E$139,1) & " m/s " -> 3.1 m/s | K43: =ROUND(Metric!$G$139,1) & " m/s " -> 9000 m/s | O43: Flow rate Q: Inlet flow. Use the flow calculator below to determine flow rate if not provided by the customer.
O44: Pipe size: Installation site's pipe size. Flow cell selector has 7 options of standard pipe sizes, but the options might be limited by chosen industry.
O45: Inlet size: "True size" of the pipe connection.
B46: Flow on prism | O46: Flow on prism: Flow velocity measured over the the prism. Always measured from the same surface area.
O47: Max flow in flowcell: Maximum measured flow velocity inside flowcell. Can occur anywhere in flowcell, depending on the model.
O48: Pressure drop: Measured drop of pressure when comparing inlet flow vs. outlet flow pressure.
E49: =Metric!$D$139 -> PR-33-S (3/4") F2-075 | H49: =Metric!$F$139 -> PR-33-S (1") F2-100 | K49: =Metric!$H$139 -> Out of range
B50: Pipe size | E50: =INDEX(H$72:H$120,MATCH(D139,B$72:B$120,0)) -> 19.05 | H50: =INDEX(H$72:H$120,MATCH(F139,B$72:B$120,0)) -> 25.4 | K50: =INDEX(H$72:H$120,MATCH(H139,B$72:B$120,0)) -> 0 | M50: mm
B51: Inlet diameter | E51: =INDEX(I$72:I$120,MATCH(D139,B$72:B$120,0)) -> 16 | H51: =INDEX(I$72:I$120,MATCH(F139,B$72:B$120,0)) -> 22 | K51: =INDEX(I$72:I$120,MATCH(H139,B$72:B$120,0)) -> 0 | M51: mm
B52: Pressure drop | E52: =INDEX(K$72:K$120,MATCH(D139,B$72:B$120,0)) -> 0.80164775 | H52: =INDEX(K$72:K$120,MATCH(F139,B$72:B$120,0)) -> 1.066897 | K52: =INDEX(K$72:K$120,MATCH(H139,B$72:B$120,0)) -> 0 | M52: bar
B53: Flow on prism | E53: =ROUND(Metric!$C$139,1) -> 2.4 | H53: =ROUND(Metric!$E$139,1) -> 3.1 | K53: =ROUND(Metric!$G$139,1) -> 9000 | M53: m/s
B57: Disclaimer: The values represented here should be only considered as a rule of thumb. They are only estimates with water at 20 °C (68 °F). In real life applications the applicable flow rates can differ by features of chosen liquid (concentration, viscosity etc.). For example, black liquor rarely can exceed 0.5 m/s velocities due to high viscosity, and high velocities with high concentration sulphuric acid can increase corrosion. Moreover, individual conditions of the installation site can affect the flow cell selection (proximity to other equipment and/or pipe bends, temperature)
B59: Flow Calculator:
B61: Flow Calculator
C63: Flow cell inlet diameter | F63: 1 | G63: inch | H63: Flow cell inlet diameter | K63: 4 | L63: mm
C64: Flow rate Q | F64: 20 | G64: GPM | H64: Velocity v | K64: 5 | L64: m/s
C65: Velocity v | F65: =0.003785411784*F64/((0.001*0.5*25.4*F63)^2*PI()*60) -> 2.490201902 | G65: m/s | H65: Flow rate Q | K65: =K66*0.264172052358 -> 0.9959051748 | L65: GPM
C66: Velocity v | F66: =F65*3.28083989501 -> 8.169953745 | G66: ft/s | H66: Flow rate Q | K66: =K67*1000/60 -> 3.769911184 | L66: l/min
H67: Flow rate Q | K67: =(K64*9*PI()*(K63)^2)/10000 -> 0.2261946711 | L67: m3/h
B69: List All Flow Cells:
B70: Model | F70: PR-Model | H70: Pipe size | I70: Inlet diameter | J70: Flow on prism | K70: Pressure loss | L70: Max velocity within flowcell
H71: mm | I71: mm | J71: m/s | K71: bar | L71: m/s
B72: PMFC-HSS-H04 | F72: PR-23-A/PR-43-A | H72: 12.7 | I72: 4 | J72: =IF(Data!L90<0,0,Data!L90) -> 256.044365 | K72: =IF(Data!O90<0,0,Data!O90) -> 75.47263775 | L72: =IF(Data!R90<0,0,Data!R90) -> 126.5432 | M72: =J72 -> 256.044365 | N72: =IF(L72>6,"Max velocity over 6 m/s, risk of cavitation", " ") -> Max velocity over 6 m/s, risk of cavitation | Q72: =B124 -> 2.4 | R72: 0 - 0.75 m/s
B73: PMFC-HSS-H05 | F73: PR-23-A/PR-43-A | H73: 12.7 | I73: 5 | J73: =IF(Data!L95<0,0,Data!L95) -> 37.73345 | K73: =IF(Data!O95<0,0,Data!O95) -> 22.23876675 | L73: =IF(Data!R95<0,0,Data!R95) -> 71.787011 | M73: =J73 -> 37.73345 | N73: =IF(L73>6,"Max velocity over 6 m/s, risk of cavitation", " ") -> Max velocity over 6 m/s, risk of cavitation | Q73: =B125 -> 4 | R73: 0.75 - 1.5 m/s
B74: PMFC-HSS-H06 | F74: PR-23-A/PR-43-A | H74: 12.7 | I74: 6 | J74: =IF(Data!L100<0,0,Data!L100) -> 29.06341918 | K74: =IF(Data!O100<0,0,Data!O100) -> 7.59437675 | L74: =IF(Data!R100<0,0,Data!R100) -> 53.9558245 | M74: =J74 -> 29.06341918 | N74: Max velocity over 6 m/s, risk of cavitation | Q74: =B126 -> 16.4 | R74: 1.5 - 5 m/s
B75: AFC-HSS-H10-SI (-NC-SN/WNWP-PG) | F75: PR-23-A/PR-43-A | H75: 25.4 | I75: 22.6 | J75: =IF(Data!L10<0,0,Data!L10) -> 1.43193 | K75: =IF(Data!O10<0,0,Data!O10) -> 0.0269925 | L75: =IF(Data!R10<0,0,Data!R10) -> 3.25699175 | M75: =J75 -> 1.43193 | Q75: =B127 -> 18 | R75: 5 - 6 m/s
B76: AFC-HSS-H10-RI (-NC-SN/WNWP-PG) | F76: PR-23-A/PR-43-A | H76: 25.4 | I76: 22.6 | J76: =IF(Data!L5<0,0,Data!L5) -> 1.79006 | K76: =IF(Data!O5<0,0,Data!O5) -> 0.0641625 | L76: =IF(Data!R5<0,0,Data!R5) -> 4.8477645 | M76: 1.79006 | Q76: =B128 -> 21 | R76: over 6 m/s
B77: AFC-HSS-H15-SI (-NC-SN/WNWP-PG) | F77: PR-23-A/PR-43-A | H77: =1.5*25.4 -> 38.1 | I77: 35.6 | J77: =IF(Data!L20<0,0,Data!L20) -> 0.78984775 | K77: =IF(Data!O20<0,0,Data!O20) -> 0.00376125 | L77: =IF(Data!R20<0,0,Data!R20) -> 1.38536425 | M77: 0.78984775
B78: AFC-HSS-H15-RI (-NC-SN/WNWP-PG) | F78: PR-23-A/PR-43-A | H78: =1.5*25.4 -> 38.1 | I78: 35.6 | J78: =IF(Data!L15<0,0,Data!L15) -> 1.19520725 | K78: =IF(Data!O15<0,0,Data!O15) -> 0.0162545 | L78: =IF(Data!R15<0,0,Data!R15) -> 2.3199685 | M78: 1.19520725
B79: AFC-HSS-H20-SI (-NC-SN/WNWP-PG) | F79: PR-23-A/PR-43-A | H79: =50.8 -> 50.8 | I79: 48.6 | J79: =IF(Data!L30<0,0,Data!L30) -> 0.29441 | K79: =IF(Data!O30<0,0,Data!O30) -> 0.00116525 | L79: =IF(Data!R30<0,0,Data!R30) -> 1.10671905 | M79: 0.29441
B80: AFC-HSS-H20-RI (-NC-SN/WNWP-PG) | F80: PR-23-A/PR-43-A | H80: =50.8 -> 50.8 | I80: 48.6 | J80: =IF(Data!L25<0,0,Data!L25) -> 0.5823831 | K80: =IF(Data!O25<0,0,Data!O25) -> 0.003658 | L80: =IF(Data!R25<0,0,Data!R25) -> 1.1610905 | M80: 0.5823831
B81: AFC-HSS-H25-SI (-NC-SN/WNWP-PG) | F81: PR-23-A/PR-43-A | H81: =63.5 -> 63.5 | I81: 60.3 | J81: =IF(Data!L35<0,0,Data!L35) -> 0.182015 | K81: =IF(Data!O35<0,0,Data!O35) -> 0.000349575 | L81: =IF(Data!R35<0,0,Data!R35) -> 0.602061075 | M81: 0.182015
B82: AFC-HSS-H30-SI (-NC-SN/WNWP-PG) | F82: PR-23-A/PR-43-A | H82: =76.2 -> 76.2 | I82: 72.8 | J82: =IF(Data!L40<0,0,Data!L40) -> 0.14753481 | K82: =IF(Data!O40<0,0,Data!O40) -> 8.51075e-05 | L82: =IF(Data!R40<0,0,Data!R40) -> 0.240425 | M82: 0.14753481
B83: AFC-HSS-H40-SI (-NC-SN/WNWP-PG) | F83: PR-23-A/PR-43-A | H83: =101.6 -> 101.6 | I83: 97.6 | J83: =IF(Data!L45<0,0,Data!L45) -> 0.072882405 | K83: =IF(Data!O45<0,0,Data!O45) -> 3.6462e-05 | L83: =IF(Data!R45<0,0,Data!R45) -> 0.13216 | M83: 0.072882405
B84: SFC-HHSS-H10-90 | F84: PR-23-A/PR-43-A | H84: 25.4 | I84: 22.6 | J84: =IF(Data!L50<0,0,Data!L50) -> 0.41477 | K84: =IF(Data!O50<0,0,Data!O50) -> 0.03051775 | L84: =IF(Data!R50<0,0,Data!R50) -> 2.7083065 | M84: 0.41477
B85: SFC-HHSS-H10-180 | F85: PR-23-A/PR-43-A | H85: 25.4 | I85: 22.6 | J85: =IF(Data!L55<0,0,Data!L55) -> 0.265205 | K85: =IF(Data!O55<0,0,Data!O55) -> 0.02063525 | L85: =IF(Data!R55<0,0,Data!R55) -> 2.681628322 | M85: 0.265205
B86: SFC-HHSS-H15-90 | F86: PR-23-A/PR-43-A | H86: =1.5*25.4 -> 38.1 | I86: 35.6 | J86: =IF(Data!L60<0,0,Data!L60) -> 0.267565 | K86: =IF(Data!O60<0,0,Data!O60) -> 0 | L86: =IF(Data!R60<0,0,Data!R60) -> 1.06021525 | M86: 0.267565
B87: SFC-HHSS-H15-180 | F87: PR-23-A/PR-43-A | H87: =1.5*25.4 -> 38.1 | I87: 35.6 | J87: =IF(Data!L65<0,0,Data!L65) -> 0.14455 | K87: =IF(Data!O65<0,0,Data!O65) -> 0.00252225 | L87: =IF(Data!R65<0,0,Data!R65) -> 1.06554 | M87: 0.14455
B88: SFC-HHSS-H20-90 | F88: PR-23-A/PR-43-A | H88: =50.8 -> 50.8 | I88: 48.6 | J88: =IF(Data!L70<0,0,Data!L70) -> 0.2248962 | K88: =IF(Data!O70<0,0,Data!O70) -> 0.0016225 | L88: =IF(Data!R70<0,0,Data!R70) -> 0.798531075 | M88: 0.2248962
B89: SFC-HHSS-H20-180 | F89: PR-23-A/PR-43-A | H89: =50.8 -> 50.8 | I89: 48.6 | J89: =IF(Data!L75<0,0,Data!L75) -> 0.087615 | K89: =IF(Data!O75<0,0,Data!O75) -> 0 | L89: =IF(Data!R75<0,0,Data!R75) -> 0.59 | M89: 0.087615
B90: SFC-HHSS-H25-90 | F90: PR-23-A/PR-43-A | H90: =63.5 -> 63.5 | I90: 60.3 | J90: =IF(Data!L80<0,0,Data!L80) -> 0.094192025 | K90: =IF(Data!O80<0,0,Data!O80) -> 0.00046315 | L90: =IF(Data!R80<0,0,Data!R80) -> 0.49445481 | M90: 0.094192025
B91: SFC-HHSS-H25-180 | F91: PR-23-A/PR-43-A | H91: =63.5 -> 63.5 | I91: 60.3 | J91: =IF(Data!L85<0,0,Data!L85) -> 0.1623283225 | K91: =IF(Data!O85<0,0,Data!O85) -> 0.00015635 | L91: =IF(Data!R85<0,0,Data!R85) -> 0.368455 | M91: 0.1623283225
B92: PR-33-S (1/4") F2-025 | F92: PR-33-S/PR-23-MS | H92: =6.35 -> 6.35 | I92: 4 | J92: =IF(Data!L105<0,0,Data!L105) -> 36.18707475 | K92: =IF(Data!O105<0,0,Data!O105) -> 56.83061425 | L92: =IF(Data!R105<0,0,Data!R105) -> 98.79023425 | M92: 36.18707475 | N92: Max velocity over 6 m/s, risk of cavitation
B93: PR-33-S (3/8") F2-038 | F93: PR-33-S/PR-23-MS | H93: =9.5 -> 9.5 | I93: 6.5 | J93: =IF(Data!L125<0,0,Data!L125) -> 18.349885 | K93: =IF(Data!O125<0,0,Data!O125) -> 10.04939625 | L93: =IF(Data!R125<0,0,Data!R125) -> 44.482755 | M93: 18.349885 | N93: Max velocity over 6 m/s, risk of cavitation
B94: PR-33-S (1/2") F2-050 | F94: PR-33-S/PR-23-MS | H94: =12.7 -> 12.7 | I94: 11 | J94: =IF(Data!L110<0,0,Data!L110) -> 6.25460475 | K94: =IF(Data!O110<0,0,Data!O110) -> 3.59756925 | L94: =IF(Data!R110<0,0,Data!R110) -> 30.13559225 | M94: 6.25460475 | N94: Max velocity over 6 m/s, risk of cavitation
B95: PR-33-S (3/4") F2-075 | F95: PR-33-S/PR-23-MS | H95: =19.05 -> 19.05 | I95: 16 | J95: =IF(Data!L115<0,0,Data!L115) -> 2.38750875 | K95: =IF(Data!O115<0,0,Data!O115) -> 0.80164775 | L95: =IF(Data!R115<0,0,Data!R115) -> 15.84101325 | M95: 2.38750875 | N95: Max velocity over 6 m/s, risk of cavitation
B96: PR-33-S (1") F2-100 | F96: PR-33-S/PR-23-MS | H96: 25.4 | I96: 22 | J96: =IF(Data!L120<0,0,Data!L120) -> 3.05355975 | K96: =IF(Data!O120<0,0,Data!O120) -> 1.066897 | L96: =IF(Data!R120<0,0,Data!R120) -> 16.97850375 | M96: 3.05355975 | N96: Max velocity over 6 m/s, risk of cavitation
B97: WFC-KSS-A/D/J-05-NC-SN/WNWP/PG | F97: PR-23-GC | H97: =0.5*25.4 -> 12.7 | I97: =8.65*2 -> 17.3 | J97: =IF(Data!L130<0,0,Data!L130) -> 3.3246205 | K97: =IF(Data!O130<0,0,Data!O130) -> 0.21712 | L97: =IF(Data!R130<0,0,Data!R130) -> 8.2269895 | M97: 3.3246205 | N97: Max velocity over 6 m/s, risk of cavitation
B98: WFC-KSS-A/D/J-10-NC-SN/WNWP/PG | F98: PR-23-GC | H98: =1*25.4 -> 25.4 | I98: =2*13.35 -> 26.7 | J98: =IF(Data!L135<0,0,Data!L135) -> 1.47185825 | K98: =IF(Data!O135<0,0,Data!O135) -> 0.075166 | L98: =IF(Data!R135<0,0,Data!R135) -> 4.3782425 | M98: 1.47185825
B99: WFC-KSS-A/D/J-15-NC-SN/WNWP/PG | F99: PR-23-GC | H99: =1.5*25.4 -> 38.1 | I99: 40.9 | J99: =IF(Data!L140<0,0,Data!L140) -> 0.526555825 | K99: =IF(Data!O125<0,0,Data!O125) -> 10.04939625 | L99: =IF(Data!R125<0,0,Data!R125) -> 44.482755 | M99: 0.526555825 | N99: Max velocity over 6 m/s, risk of cavitation
B100: GFC-K60-P40-SS-J15-P10 | F100: PR-23-GC | H100: =1*25.4 -> 25.4 | I100: =4.7*2 -> 9.4 | J100: =IF(Data!L145<0,0,Data!L145) -> 9.24189275 | K100: =IF(Data!O145<0,0,Data!O145) -> 3.4724155 | L100: =IF(Data!R145<0,0,Data!R145) -> 17.49298375 | M100: 9.24189275 | N100: Max velocity over 6 m/s, risk of cavitation
B101: GFC-K60-P40-SS-R05/N05/A05/D15-PXX-SN/WN/WP-PG | F101: PR-23-GC | H101: =0.5*25.4 -> 12.7 | I101: =2*5.97 -> 11.94 | J101: =IF(Data!L150<0,0,Data!L150) -> 8.67151025 | K101: =IF(Data!O150<0,0,Data!O150) -> 2.6677145 | L101: =IF(Data!R150<0,0,Data!R150) -> 18.44338525 | M101: 8.67151025 | N101: Max velocity over 6 m/s, risk of cavitation
B102: GFC-K60-P40-SS-R10/N10/A10/D25-PXX-SN/WN/WP-PG | F102: PR-23-GC | H102: =1*25.4 -> 25.4 | I102: =2*11.18 -> 22.36 | J102: =IF(Data!L155<0,0,Data!L155) -> 1.98141175 | K102: =IF(Data!O155<0,0,Data!O155) -> 0.177708 | L102: =IF(Data!R155<0,0,Data!R155) -> 6.045258 | M102: 1.98141175 | N102: Max velocity over 6 m/s, risk of cavitation
B103: GFC-K60-P40-SS-D15-P40 | F103: PR-23-GC | H103: 38.1 | I103: 9.5 | J103: =IF(Data!L160<0,0,Data!L160) -> 10.81763525 | K103: =IF(Data!O160<0,0,Data!O160) -> 4.12187275 | L103: =IF(Data!R160<0,0,Data!R160) -> 18.960771 | M103: 10.81763525 | N103: Max velocity over 6 m/s, risk of cavitation
B104: GFC-K60-P40-SS-D25-P40 | F104: PR-23-GC | H104: =2.5*25.4 -> 63.5 | I104: =2*7.5 -> 15 | J104: =IF(Data!L165<0,0,Data!L165) -> 1.91146725 | K104: =IF(Data!O165<0,0,Data!O165) -> 0.321845 | L104: =IF(Data!R165<0,0,Data!R165) -> 8.9509195 | M104: 1.91146725 | N104: Max velocity over 6 m/s, risk of cavitation
B105: PFC-KSS-A10 | F105: PR-23-GP | H105: =1*25.4 -> 25.4 | I105: =2*13.47 -> 26.94 | J105: =IF(Data!L170<0,0,Data!L170) -> 2.211792 | K105: =IF(Data!O170<0,0,Data!O170) -> 0.05397025 | L105: =IF(Data!R170<0,0,Data!R170) -> 3.711159 | M105: 2.211792
B106: PFC-23GP-A/D/J-SS-A10/D10/J10 | F106: PR-23-GP | H106: =1*25.4 -> 25.4 | I106: =2*26.3 -> 52.6 | J106: =IF(Data!L175<0,0,Data!L175) -> 0.312405 | K106: =IF(Data!O175<0,0,Data!O175) -> 0.000697675 | L106: =IF(Data!R175<0,0,Data!R175) -> 0.540145 | M106: 0.312405
B107: PFC-23GP-A/D/J-SS-A15/D15/J15 | F107: PR-23-GP | H107: =1.5*25.4 -> 38.1 | I107: 50 | J107: =IF(Data!L180<0,0,Data!L180) -> 0.32568 | K107: =IF(Data!O180<0,0,Data!O180) -> 0.000815675 | L107: =IF(Data!R180<0,0,Data!R180) -> 0.5502812 | M107: 0.32568
B108: SVB-A020/D050-GC-PFA/ETF | F108: PR-23-W2 | H108: =2*25.4 -> 50.8 | I108: 46 | J108: =IF(Data!L185<0,0,Data!L185) -> 0.04248 | K108: =IF(Data!O185<0,0,Data!O185) -> 0.00059 | L108: =IF(Data!R185<0,0,Data!R185) -> 1.231625 | M108: 0.04248
B109: SVB-A030/D050-GC-PFA/ETF | F109: PR-23-W3 | H109: =76.2 -> 76.2 | I109: 70 | J109: =IF(Data!L190<0,0,Data!L190) -> 0.019175 | K109: =IF(Data!O190<0,0,Data!O190) -> 0.00059 | L109: =IF(Data!R190<0,0,Data!R190) -> 0.68617 | M109: 0.019175
B110: SVB-A040/D050-GC-PFA/ETF | F110: PR-23-W4 | H110: =101.6 -> 101.6 | I110: 90 | J110: =IF(Data!L195<0,0,Data!L195) -> 0.01003 | K110: =IF(Data!O195<0,0,Data!O195) -> 8.85e-05 | L110: =IF(Data!R195<0,0,Data!R195) -> 0.344855 | M110: 0.01003
B111: FTC-SS-A05/D10/J10 | F111: PR-43-GP | H111: =0.5*25.4 -> 12.7 | I111: 26.7 | J111: =IF(Data!L200<0,0,Data!L200) -> 1.164955 | K111: =IF(Data!O200<0,0,Data!O200) -> 0.000885 | L111: =IF(Data!R200<0,0,Data!R200) -> 1.944935 | M111: 1.164955
B112: FTC-SS-A10/D10/J10 | F112: PR-43-GP | H112: =1*25.4 -> 25.4 | I112: =2*12.4 -> 24.8 | J112: =IF(Data!L205<0,0,Data!L205) -> 1.190325 | K112: =IF(Data!O205<0,0,Data!O205) -> 0.002065 | L112: =IF(Data!R205<0,0,Data!R205) -> 2.238755 | M112: 1.190325
B113: FTC-SS-A15/D15/J15 | F113: PR-43-GP | H113: =1.5*25.4 -> 38.1 | I113: 40.9 | J113: =IF(Data!L210<0,0,Data!L210) -> 0.47731 | K113: =IF(Data!O210<0,0,Data!O210) -> 0.000295 | L113: =IF(Data!R210<0,0,Data!R210) -> 0.83308 | M113: 0.47731
B114: FTC-SS-A20/D20/J20 | F114: PR-43-GP | H114: 50.8 | I114: =2*26.3 -> 52.6 | J114: =IF(Data!L215<0,0,Data!L215) -> 0.26963 | K114: =IF(Data!O215<0,0,Data!O215) -> 0.000177 | L114: =IF(Data!R215<0,0,Data!R215) -> 0.464035 | M114: 0.26963
B115: CFC-RP-M20-M10-NC-PG/SN/WP | F115: PR-23-RP | H115: =1*25.4 -> 25.4 | I115: 26.7 | J115: =IF(Data!L220<0,0,Data!L220) -> 1.37352 | K115: =IF(Data!O220<0,0,Data!O220) -> 0.004366 | L115: =IF(Data!R220<0,0,Data!R220) -> 1.77885 | M115: 1.37352
B116: CFC-RP-M20-M20-NC-PG/SN/WP | F116: PR-23-RP | H116: =2*25.4 -> 50.8 | I116: =2*26.3 -> 52.6 | J116: =IF(Data!L225<0,0,Data!L225) -> 0.4543 | K116: =IF(Data!O225<0,0,Data!O225) -> 0.0001475 | L116: =IF(Data!R225<0,0,Data!R225) -> 0.5546 | M116: 0.4543
B119: Out of range | J119: 0
B120: Out of range | H120: 0 | I120: 0 | J120: 9000 | K120: 0 | L120: 0
B124: 2.4 | J124: 0 - 0.75 m/s | K124: 1 | M124: A-P:n teoria: | O124: Putkikoon muuttaminen tuumiin
B125: 4 | J125: 0.75 - 1.5 m/s | K125: 2 | L125: 12.7 | M125: 0.5
B126: 16.4 | J126: 1.5 - 5 m/s | K126: 3 | L126: 25.4 | M126: 1 | O126: =J9 -> 25.4
B127: 18 | G127: =((9*(23)^2*PI())*1.5)/10000 -> 2.243568394 | J127: 5 - 6 m/s | K127: 4 | L127: 38.1 | M127: 1.5 | O127: =O126/25.4 -> 1
B128: 21 | J128: over 6 m/s | K128: 5 | L128: 50.8 | M128: 2
L129: 63.5 | M129: 2.5
G130: =IF(F9="Out of range",0,F8) -> 0 | L130: 76.2 | M130: 3
B131: recommended velocity | D131: =1.85 -> 1.85 | F131: velocity m^3/h | G131: =IF(F10="Out of range",0,F9) -> 2.95 | L131: 101.6 | M131: 4
I133: 6 | J133: =IF(I133>=6,1,IF(I133>=5,2,IF(I133>=1.5,3,IF(I133>=0.75,2,1)))) -> 1
M134: =INDEX(M125:M131,MATCH(MIN(ABS(M125:M131-O127)),ABS(M125:M131-O127),0)) -> 1
B136: Uusi käytännöllinen tuotteen valinta
B137: Chemical industry | C137: 1.98141175 | D137: =INDEX(B$72:B$120,MATCH(C$137,J$72:J$120,0)) -> GFC-K60-P40-SS-R10/N10/A10/D25-PXX-SN/WN/WP-PG | E137: 2.211792 | F137: =INDEX(B$72:B$120,MATCH(E$137,J$72:J$120,0)) -> PFC-KSS-A10 | G137: 1.47185825 | H137: =INDEX(B$72:B$120,MATCH(G$137,J$72:J$120,0)) -> WFC-KSS-A/D/J-10-NC-SN/WNWP/PG
B138: Food Industry | C138: 1.79006 | D138: =INDEX(B$72:B$120,MATCH(C$138,J$72:J$120,0)) -> AFC-HSS-H10-RI (-NC-SN/WNWP-PG) | E138: 1.43193 | F138: =INDEX(B$72:B$120,MATCH(E$138,J$72:J$120,0)) -> AFC-HSS-H10-SI (-NC-SN/WNWP-PG) | G138: 0.41477 | H138: =INDEX(B$72:B$120,MATCH(G$138,J$72:J$120,0)) -> SFC-HHSS-H10-90
B139: Semiconductor | C139: 2.38750875 | D139: =INDEX(B$72:B$120,MATCH(C$139,J$72:J$120,0)) -> PR-33-S (3/4") F2-075 | E139: 3.05355975 | F139: =INDEX(B$72:B$120,MATCH(E$139,J$72:J$120,0)) -> PR-33-S (1") F2-100 | G139: 9000 | H139: =INDEX(B$72:B$120,MATCH(G$139,J$72:J$120,0)) -> Out of range
D141: Food Industry | K141: Chemical industry | R141: Semiconductor
D143: Best | F143: 2nd Best | H143: 3rd best | K143: Best | M143: 2nd Best | O143: 3rd best | R143: Best | T143: 2nd Best | V143: 3rd best
B144: PMFC-HSS-H04 | C144: 0.5 | D144: =IF((OR(J72=0,J72>6)),9000,J72) -> 9000 | E144: =INDEX($F$181:$F$249,MATCH(D144,$E$181:$E$249,1)) -> 0 | F144: =IF(D144=$D$148,9000,D144) -> 9000 | G144: =INDEX($F$181:$F$249,MATCH(F144,$E$181:$E$249,1)) -> 0 | H144: =IF(F144=$F$148,9000,F144) -> 9000 | I144: =INDEX($F$181:$F$249,MATCH(H144,$E$181:$E$249,1)) -> 0 | J144: WFC-05 | K144: =IF((OR(J97=0,J97>6)),9000,J97) -> 3.3246205 | L144: =INDEX($F$181:$F$249,MATCH(K144,$E$181:$E$249,1)) -> 64 | M144: =IF(K144=$K$148,9000,K144) -> 9000 | N144: =INDEX($F$181:$F$249,MATCH(M144,$E$181:$E$249,1)) -> 0 | O144: =IF(M144=$M$148,9000,M144) -> 9000 | P144: =INDEX($F$181:$F$249,MATCH(O144,$E$181:$E$249,1)) -> 0 | Q144: PR-33-S (1/4") | R144: =IF((OR(J92=0,J92>6)),9000,J92) -> 9000 | S144: =INDEX($F$181:$F$249,MATCH(R144,$E$181:$E$249,1)) -> 0 | T144: =IF(R144=R148,9000,R144) -> 9000 | U144: =INDEX($F$181:$F$249,MATCH(T144,$E$181:$E$249,1)) -> 0 | V144: =IF(T144=T148,9000,T144) -> 9000 | W144: =INDEX($F$181:$F$249,MATCH(V144,$E$181:$E$249,1)) -> 0
B145: PMFC-HSS-05 | D145: =IF((OR(J73=0,J73>6)),9000,J73) -> 9000 | E145: =INDEX($F$181:$F$249,MATCH(D145,$E$181:$E$249,1)) -> 0 | F145: =IF(D145=$D$148,9000,D145) -> 9000 | G145: =INDEX($F$181:$F$249,MATCH(F145,$E$181:$E$249,1)) -> 0 | H145: =IF(F145=$F$148,9000,F145) -> 9000 | I145: =INDEX($F$181:$F$249,MATCH(H145,$E$181:$E$249,1)) -> 0 | J145: GFC-K60-P40-R05 | K145: =IF((OR(J101=0,J101>6)),9000,J101) -> 9000 | L145: =INDEX($F$181:$F$249,MATCH(K145,$E$181:$E$249,1)) -> 0 | M145: =IF(K145=$K$148,9000,K145) -> 9000 | N145: =INDEX($F$181:$F$249,MATCH(M145,$E$181:$E$249,1)) -> 0 | O145: =IF(M145=$M$148,9000,M145) -> 9000 | P145: =INDEX($F$181:$F$249,MATCH(O145,$E$181:$E$249,1)) -> 0 | Q145: PR-33-S (1/2") | R145: =IF((OR(J94=0,J94>6)),9000,J94) -> 9000 | S145: =INDEX($F$181:$F$249,MATCH(R145,$E$181:$E$249,1)) -> 0 | T145: =IF(R145=R148,9000,R145) -> 9000 | U145: =INDEX($F$181:$F$249,MATCH(T145,$E$181:$E$249,1)) -> 0 | V145: =IF(T145=T148,9000,T145) -> 9000 | W145: =INDEX($F$181:$F$249,MATCH(V145,$E$181:$E$249,1)) -> 0
B146: PMFC-HSS-H06 | D146: =IF((OR(J74=0,J74>6)),9000,J74) -> 9000 | E146: =INDEX($F$181:$F$249,MATCH(D146,$E$181:$E$249,1)) -> 0 | F146: =IF(D146=$D$148,9000,D146) -> 9000 | G146: =INDEX($F$181:$F$249,MATCH(F146,$E$181:$E$249,1)) -> 0 | H146: =IF(F146=$F$148,9000,F146) -> 9000 | I146: =INDEX($F$181:$F$249,MATCH(H146,$E$181:$E$249,1)) -> 0 | J146: FTC-A05 | K146: =IF((OR(J111=0,J111>6)),9000,J111) -> 1.164955 | L146: =INDEX($F$181:$F$249,MATCH(K146,$E$181:$E$249,1)) -> 21.45 | M146: =IF(K146=$K$148,9000,K146) -> 1.164955 | N146: =INDEX($F$181:$F$249,MATCH(M146,$E$181:$E$249,1)) -> 21.45 | O146: =IF(M146=$M$148,9000,M146) -> 9000 | P146: =INDEX($F$181:$F$249,MATCH(O146,$E$181:$E$249,1)) -> 0 | Q146: PR-33-S (3/4") | R146: =IF((OR(J95=0,J95>6)),9000,J95) -> 2.38750875 | S146: =INDEX($F$181:$F$249,MATCH(R146,$E$181:$E$249,1)) -> 84 | T146: =IF(R146=R148,9000,R146) -> 9000 | U146: =INDEX($F$181:$F$249,MATCH(T146,$E$181:$E$249,1)) -> 0 | V146: =IF(T146=T148,9000,T146) -> 9000 | W146: =INDEX($F$181:$F$249,MATCH(V146,$E$181:$E$249,1)) -> 0
Q147: PR-33-S (3/8") | R147: =IF((OR(J93=0,J93>6)),9000,J93) -> 9000 | S147: =INDEX($F$181:$F$249,MATCH(R147,$E$181:$E$249,1)) -> 0 | T147: =IF(R147=R148,9000,R147) -> 9000 | U147: =INDEX($F$181:$F$249,MATCH(T147,$E$181:$E$249,1)) -> 0 | V147: =IF(T147=T148,9000,T147) -> 9000 | W147: =INDEX($F$181:$F$249,MATCH(V147,$E$181:$E$249,1)) -> 0
C148: tulos | D148: =INDEX(D144:D147,MATCH(E148,E144:E147,0)) -> 9000 | E148: =MAX(E144:E147) -> 0 | F148: =INDEX(F144:F147,MATCH(G148,G144:G147)) -> 9000 | G148: =MAX(G144:G147) -> 0 | H148: =INDEX(H144:H147,MATCH(I148,I144:I147)) -> 9000 | I148: =MAX(I144:I147) -> 0 | K148: =INDEX(K144:K146,MATCH(L148,L144:L146,0)) -> 3.3246205 | L148: =MAX(L144:L147) -> 64 | M148: =INDEX(M144:M146,MATCH(N148,N144:N146,0)) -> 1.164955 | N148: =MAX(N144:N147) -> 21.45 | O148: =INDEX(O144:O146,MATCH(P148,P144:P146,0)) -> 9000 | P148: =MAX(P144:P147) -> 0 | R148: =INDEX(R144:R147,MATCH(S148,S144:S147,0)) -> 2.38750875 | S148: =MAX(S144:S147) -> 84 | T148: =INDEX(T144:T147,MATCH(U148,U144:U147,0)) -> 9000 | U148: =MAX(U144:U147) -> 0 | V148: =INDEX(V144:V147,MATCH(W148,W144:W147,0)) -> 9000 | W148: =MAX(W144:W147) -> 0
B149: SFC-HHSS-H10-90 | C149: 1 | D149: =IF((OR(J84=0,J84>6)),9000,J84) -> 0.41477 | E149: =INDEX($F$181:$F$249,MATCH(D149,$E$181:$E$249,1)) -> 5.85 | F149: =IF(D149=$D$156,9000,D149) -> 0.41477 | G149: =INDEX($F$181:$F$249,MATCH(F149,$E$181:$E$249,1)) -> 5.85 | H149: =IF(F149=$F$156,9000,F149) -> 0.41477 | I149: =INDEX($F$181:$F$249,MATCH(H149,$E$181:$E$249,1)) -> 5.85 | J149: FTC-A10 | K149: =IF((OR(J112=0,J112>6)),9000,J112) -> 1.190325 | L149: =INDEX($F$181:$F$249,MATCH(K149,$E$181:$E$249,1)) -> 21.45 | M149: =IF(K149=$K$156,9000,K149) -> 1.190325 | N149: =INDEX($F$181:$F$249,MATCH(M149,$E$181:$E$249,1)) -> 21.45 | O149: =IF(M149=$M$156,9000,M149) -> 1.190325 | P149: =INDEX($F$181:$F$249,MATCH(O149,$E$181:$E$249,1)) -> 21.45 | Q149: PR-33-S (3/4") | R149: =IF((OR(J95=0,J95>6)),9000,J95) -> 2.38750875 | S149: =INDEX($F$181:$F$249,MATCH(R149,$E$181:$E$249,1)) -> 84 | T149: =IF(R149=$R$156,9000,R149) -> 9000 | U149: =INDEX($F$181:$F$249,MATCH(T149,$E$181:$E$249,1)) -> 0 | V149: =IF(T149=T$156,9000,T149) -> 9000 | W149: =INDEX($F$181:$F$249,MATCH(V149,$E$181:$E$249,1)) -> 0
B150: SFC-HHSS-H10-180 | D150: =IF((OR(J85=0,J85>6)),9000,J85) -> 0.265205 | E150: =INDEX($F$181:$F$249,MATCH(D150,$E$181:$E$249,1)) -> 3.75 | F150: =IF(D150=$D$156,9000,D150) -> 0.265205 | G150: =INDEX($F$181:$F$249,MATCH(F150,$E$181:$E$249,1)) -> 3.75 | H150: =IF(F150=$F$156,9000,F150) -> 0.265205 | I150: =INDEX($F$181:$F$249,MATCH(H150,$E$181:$E$249,1)) -> 3.75 | J150: WFC-10 | K150: =IF((OR(J98=0,J98>6)),9000,J98) -> 1.47185825 | L150: 30 | M150: 1.47185825 | N150: 30 | O150: =IF(M150=$M$156,9000,M150) -> 1.47185825 | P150: 30 | Q150: PR-33-S (1") | R150: =IF((OR(J96=0,J96>6)),9000,J96) -> 3.05355975 | S150: =INDEX($F$181:$F$249,MATCH(R150,$E$181:$E$249,1)) -> 70 | T150: =IF(R150=$R$156,9000,R150) -> 3.05355975 | U150: =INDEX($F$181:$F$249,MATCH(T150,$E$181:$E$249,1)) -> 70 | V150: =IF(T150=T$156,9000,T150) -> 9000 | W150: =INDEX($F$181:$F$249,MATCH(V150,$E$181:$E$249,1)) -> 0
B151: AFC-HSS-H10-SI | D151: =IF((OR(J75=0,J75>6)),9000,J75) -> 1.43193 | E151: =INDEX($F$181:$F$249,MATCH(D151,$E$181:$E$249,1)) -> 30 | F151: =IF(D151=$D$156,9000,D151) -> 1.43193 | G151: =INDEX($F$181:$F$249,MATCH(F151,$E$181:$E$249,1)) -> 30 | H151: =IF(F151=$F$156,9000,F151) -> 9000 | I151: =INDEX($F$181:$F$249,MATCH(H151,$E$181:$E$249,1)) -> 0 | J151: PFC-23-GP-A10 | K151: =IF((OR(J106=0,J106>6)),9000,J106) -> 0.312405 | L151: 4.45 | M151: 0.312405 | N151: 4.45 | O151: =IF(M151=$M$156,9000,M151) -> 0.312405 | P151: 4.45 | R151: 9000 | S151: =INDEX($F$181:$F$249,MATCH(R151,$E$181:$E$249,1)) -> 0 | T151: 9000 | U151: =INDEX($F$181:$F$249,MATCH(T151,$E$181:$E$249,1)) -> 0 | V151: 9000 | W151: =INDEX($F$181:$F$249,MATCH(V151,$E$181:$E$249,1)) -> 0
B152: AFC-HSS-H10-RI | D152: =IF((OR(J76=0,J76>6)),9000,J76) -> 1.79006 | E152: =INDEX($F$181:$F$249,MATCH(D152,$E$181:$E$249,1)) -> 96 | F152: =IF(D152=$D$156,9000,D152) -> 9000 | G152: =INDEX($F$181:$F$249,MATCH(F152,$E$181:$E$249,1)) -> 0 | H152: =IF(F152=$F$156,9000,F152) -> 9000 | I152: =INDEX($F$181:$F$249,MATCH(H152,$E$181:$E$249,1)) -> 0 | J152: PFC-KSS-A10 | K152: =IF((OR(J105=0,J105>6)),9000,J105) -> 2.211792 | L152: 86 | M152: 2.211792 | N152: 86 | O152: =IF(M152=$M$156,9000,M152) -> 9000 | P152: 0
J153: CFC-M10 | K153: =IF((OR(J115=0,J115>6)),9000,J115) -> 1.37352 | L153: 27.15 | M153: 1.37352 | N153: 27.15 | O153: =IF(M153=$M$156,9000,M153) -> 1.37352 | P153: 27.15
J154: GFC-K60-P40J15-P10 | K154: =IF((OR(J100=0,J100>6)),9000,J100) -> 9000 | L154: 0 | M154: 9000 | N154: 0 | O154: =IF(M154=$M$156,9000,M154) -> 9000 | P154: 0
J155: GFC-K60-P40-R10 | K155: =IF((OR(J102=0,J102>6)),9000,J102) -> 1.98141175 | L155: 92 | M155: 9000 | N155: 0 | O155: =IF(M155=$M$156,9000,M155) -> 9000 | P155: 0
C156: tulos | D156: =INDEX(D149:D152,MATCH(E156,E149:E152,0)) -> 1.79006 | E156: =MAX(E149:E152) -> 96 | F156: =INDEX(F149:F152,MATCH(G156,G149:G152,0)) -> 1.43193 | G156: =MAX(G149:G152) -> 30 | H156: =INDEX(H149:H152,MATCH(I156,I149:I152,0)) -> 0.41477 | I156: =MAX(I149:I152) -> 5.85 | K156: =INDEX(K149:K155,MATCH(L156,L149:L155,0)) -> 1.98141175 | L156: =MAX(L149:L155) -> 92 | M156: =INDEX(M149:M155,MATCH(N156,N149:N155,0)) -> 2.211792 | N156: =MAX(N149:N155) -> 86 | O156: =INDEX(O149:O155,MATCH(P156,P149:P155,0)) -> 1.47185825 | P156: =MAX(P149:P155) -> 30 | R156: =INDEX(R149:R151,MATCH(S156,S149:S151,0)) -> 2.38750875 | S156: =MAX(S149:S151) -> 84 | T156: =INDEX(T149:T151,MATCH(U156,U149:U151,0)) -> 3.05355975 | U156: =MAX(U149:U151) -> 70 | V156: =INDEX(V149:V151,MATCH(W156,W149:W151,0)) -> 9000 | W156: =MAX(W149:W151) -> 0
B157: SFC-HHSS-H15-90 | C157: 1.5 | D157: =IF((OR(J86=0,J86>6)),9000,J86) -> 0.267565 | E157: =INDEX($F$181:$F$249,MATCH(D157,$E$181:$E$249,1)) -> 3.75 | F157: =IF(D157=$D$161,9000,D157) -> 0.267565 | G157: =INDEX($F$181:$F$249,MATCH(F157,$E$181:$E$249,1)) -> 3.75 | H157: =IF(F157=$F$161,9000,F157) -> 0.267565 | I157: =INDEX($F$181:$F$249,MATCH(H157,$E$181:$E$249,1)) -> 3.75 | J157: FTC-A15 | K157: =IF((OR(J113=0,J113>6)),9000,J113) -> 0.47731 | L157: =INDEX($F$181:$F$249,MATCH(K157,$E$181:$E$249,1)) -> 6.55 | M157: =IF(K157=$K$161,9000,K157) -> 0.47731 | N157: =INDEX($F$181:$F$249,MATCH(M157,$E$181:$E$249,1)) -> 6.55 | O157: =IF(M157=$M$161,9000,M157) -> 9000 | P157: =INDEX($F$181:$F$249,MATCH(O157,$E$181:$E$249,1)) -> 0 | R157: 9000 | T157: 9000 | V157: 9000
B158: SFC-HHSS-H15-180 | D158: =IF((OR(J87=0,J87>6)),9000,J87) -> 0.14455 | E158: =INDEX($F$181:$F$249,MATCH(D158,$E$181:$E$249,1)) -> 1.65 | F158: =IF(D158=$D$161,9000,D158) -> 0.14455 | G158: =INDEX($F$181:$F$249,MATCH(F158,$E$181:$E$249,1)) -> 1.65 | H158: =IF(F158=$F$161,9000,F158) -> 0.14455 | I158: =INDEX($F$181:$F$249,MATCH(H158,$E$181:$E$249,1)) -> 1.65 | J158: WFC-15 | K158: =IF((OR(J99=0,J99>6)),9000,J99) -> 0.526555825 | L158: =INDEX($F$181:$F$249,MATCH(K158,$E$181:$E$249,1)) -> 7.25 | M158: =IF(K158=$K$161,9000,K158) -> 9000 | N158: =INDEX($F$181:$F$249,MATCH(M158,$E$181:$E$249,1)) -> 0 | O158: =IF(M158=$M$161,9000,M158) -> 9000 | P158: =INDEX($F$181:$F$249,MATCH(O158,$E$181:$E$249,1)) -> 0 | R158: 9000 | T158: 9000 | V158: 9000
B159: AFC-HSS-H15-SI | D159: =IF((OR(J77=0,J77>6)),9000,J77) -> 0.78984775 | E159: =INDEX($F$181:$F$249,MATCH(D159,$E$181:$E$249,1)) -> 10.05 | F159: =IF(D159=$D$161,9000,D159) -> 0.78984775 | G159: =INDEX($F$181:$F$249,MATCH(F159,$E$181:$E$249,1)) -> 10.05 | H159: =IF(F159=$F$161,9000,F159) -> 9000 | I159: =INDEX($F$181:$F$249,MATCH(H159,$E$181:$E$249,1)) -> 0 | J159: PFC-23-GP-A15 | K159: =IF((OR(J107=0,J107>6)),9000,J107) -> 0.32568 | L159: =INDEX($F$181:$F$249,MATCH(K159,$E$181:$E$249,1)) -> 4.45 | M159: =IF(K159=$K$161,9000,K159) -> 0.32568 | N159: =INDEX($F$181:$F$249,MATCH(M159,$E$181:$E$249,1)) -> 4.45 | O159: =IF(M159=$M$161,9000,M159) -> 0.32568 | P159: =INDEX($F$181:$F$249,MATCH(O159,$E$181:$E$249,1)) -> 4.45 | R159: 9000 | T159: 9000 | V159: 9000
B160: AFC-HSS-H15-RI | D160: =IF((OR(J78=0,J78>6)),9000,J78) -> 1.19520725 | E160: =INDEX($F$181:$F$249,MATCH(D160,$E$181:$E$249,1)) -> 21.45 | F160: =IF(D160=$D$161,9000,D160) -> 9000 | G160: =INDEX($F$181:$F$249,MATCH(F160,$E$181:$E$249,1)) -> 0 | H160: =IF(F160=$F$161,9000,F160) -> 9000 | I160: =INDEX($F$181:$F$249,MATCH(H160,$E$181:$E$249,1)) -> 0
C161: tulos | D161: =INDEX(D157:D160,MATCH(E161,E157:E160,0)) -> 1.19520725 | E161: =MAX(E157:E160) -> 21.45 | F161: =INDEX(F157:F160,MATCH(G161,G157:G160,0)) -> 0.78984775 | G161: =MAX(G157:G160) -> 10.05 | H161: =INDEX(H157:H160,MATCH(I161,I157:I160,0)) -> 0.267565 | I161: =MAX(I157:I160) -> 3.75 | K161: =INDEX(K157:K159,MATCH(L161,L157:L159,0)) -> 0.526555825 | L161: =MAX(L157:L159) -> 7.25 | M161: =INDEX(M157:M159,MATCH(N161,N157:N159,0)) -> 0.47731 | N161: =MAX(N157:N159) -> 6.55 | O161: =INDEX(O157:O159,MATCH(P161,P157:P159,0)) -> 0.32568 | P161: =MAX(P157:P159) -> 4.45 | R161: =INDEX(R157:R159,MATCH(MIN(ABS(R157:R159-$D$131)),ABS(R157:R159-$D$131),0)) -> 9000 | T161: =INDEX(T157:T159,MATCH(MIN(ABS(T157:T159-$D$131)),ABS(T157:T159-$D$131),0)) -> 9000 | V161: =INDEX(V157:V159,MATCH(MIN(ABS(V157:V159-$D$131)),ABS(V157:V159-$D$131),0)) -> 9000
B162: SFC-HHSS-H20-90 | C162: 2 | D162: =IF((OR(J88=0,J88>6)),9000,J88) -> 0.2248962 | E162: =INDEX($F$181:$F$249,MATCH(D162,$E$181:$E$249,1)) -> 3.05 | F162: =IF(D162=$D$166,9000,D162) -> 0.2248962 | G162: =INDEX($F$181:$F$249,MATCH(F162,$E$181:$E$249,1)) -> 3.05 | H162: =IF(F162=$F$166,9000,F162) -> 0.2248962 | I162: =INDEX($F$181:$F$249,MATCH(H162,$E$181:$E$249,1)) -> 3.05 | J162: FTC-A20 | K162: =IF((OR(J114=0,J114>6)),9000,J114) -> 0.26963 | L162: =INDEX($F$181:$F$249,MATCH(K162,$E$181:$E$249,1)) -> 3.75 | M162: =IF(K162=$K$166,9000,K162) -> 0.26963 | N162: =INDEX($F$181:$F$249,MATCH(M162,$E$181:$E$249,1)) -> 3.75 | O162: =IF(M162=$M$166,9000,M162) -> 9000 | P162: =INDEX($F$181:$F$249,MATCH(O162,$E$181:$E$249,1)) -> 0 | R162: 9000 | T162: 9000 | V162: 9000
B163: SFC-HHSS-H20-180 | D163: =IF((OR(J89=0,J89>6)),9000,J89) -> 0.087615 | E163: =INDEX($F$181:$F$249,MATCH(D163,$E$181:$E$249,1)) -> 0.95 | F163: =IF(D163=$D$166,9000,D163) -> 0.087615 | G163: =INDEX($F$181:$F$249,MATCH(F163,$E$181:$E$249,1)) -> 0.95 | H163: =IF(F163=$F$166,9000,F163) -> 0.087615 | I163: =INDEX($F$181:$F$249,MATCH(H163,$E$181:$E$249,1)) -> 0.95 | J163: CFC-M20 | K163: =IF((OR(J116=0,J116>6)),9000,J116) -> 0.4543 | L163: =INDEX($F$181:$F$249,MATCH(K163,$E$181:$E$249,1)) -> 6.55 | M163: =IF(K163=$K$166,9000,K163) -> 9000 | N163: =INDEX($F$181:$F$249,MATCH(M163,$E$181:$E$249,1)) -> 0 | O163: =IF(M163=$M$166,9000,M163) -> 9000 | P163: =INDEX($F$181:$F$249,MATCH(O163,$E$181:$E$249,1)) -> 0 | R163: 9000 | T163: 9000 | V163: 9000
B164: AFC-HSS-H20-SI | D164: =IF((OR(J79=0,J79>6)),9000,J79) -> 0.29441 | E164: =INDEX($F$181:$F$249,MATCH(D164,$E$181:$E$249,1)) -> 3.75 | F164: =IF(D164=$D$166,9000,D164) -> 0.29441 | G164: =INDEX($F$181:$F$249,MATCH(F164,$E$181:$E$249,1)) -> 3.75 | H164: =IF(F164=$F$166,9000,F164) -> 9000 | I164: =INDEX($F$181:$F$249,MATCH(H164,$E$181:$E$249,1)) -> 0 | J164: PR-23-W20 | K164: =IF((OR(J108=0,J108>6)),9000,J108) -> 0.04248 | L164: =INDEX($F$181:$F$249,MATCH(K164,$E$181:$E$249,1)) -> 0.25 | M164: =IF(K164=$K$166,9000,K164) -> 0.04248 | N164: =INDEX($F$181:$F$249,MATCH(M164,$E$181:$E$249,1)) -> 0.25 | O164: =IF(M164=$M$166,9000,M164) -> 0.04248 | P164: =INDEX($F$181:$F$249,MATCH(O164,$E$181:$E$249,1)) -> 0.25 | R164: 9000 | T164: 9000 | V164: 9000
B165: AFC-HSS-H20-RI | D165: =IF((OR(J80=0,J80>6)),9000,J80) -> 0.5823831 | E165: =INDEX($F$181:$F$249,MATCH(D165,$E$181:$E$249,1)) -> 7.95 | F165: =IF(D165=$D$166,9000,D165) -> 9000 | G165: =INDEX($F$181:$F$249,MATCH(F165,$E$181:$E$249,1)) -> 0 | H165: =IF(F165=$F$166,9000,F165) -> 9000 | I165: =INDEX($F$181:$F$249,MATCH(H165,$E$181:$E$249,1)) -> 0
C166: tulos | D166: =INDEX(D162:D165,MATCH(E166,E162:E165,0)) -> 0.5823831 | E166: =MAX(E162:E165) -> 7.95 | F166: =INDEX(F162:F165,MATCH(G166,G162:G165,0)) -> 0.29441 | G166: =MAX(G162:G165) -> 3.75 | H166: =INDEX(H162:H165,MATCH(I166,I162:I165,0)) -> 0.2248962 | I166: =MAX(I162:I165) -> 3.05 | K166: =INDEX(K162:K165,MATCH(L166,L162:L165,0)) -> 0.4543 | L166: =MAX(L162:L165) -> 6.55 | M166: =INDEX(M162:M165,MATCH(N166,N162:N165,0)) -> 0.26963 | N166: =MAX(N162:N165) -> 3.75 | O166: =INDEX(O162:O165,MATCH(P166,P162:P165,0)) -> 0.04248 | P166: =MAX(P162:P165) -> 0.25 | R166: =INDEX(R161:R164,MATCH(MIN(ABS(R161:R164-$D$131)),ABS(R161:R164-$D$131),0)) -> 9000 | T166: =INDEX(T161:T164,MATCH(MIN(ABS(T161:T164-$D$131)),ABS(T161:T164-$D$131),0)) -> 9000 | V166: =INDEX(V161:V164,MATCH(MIN(ABS(V161:V164-$D$131)),ABS(V161:V164-$D$131),0)) -> 9000
B167: SFC-HHSS-H25-90 | C167: 2.5 | D167: =IF((OR(J90=0,J90>6)),9000,J90) -> 0.094192025 | E167: =INDEX($F$181:$F$249,MATCH(D167,$E$181:$E$249,1)) -> 0.95 | F167: =IF(D167=$D$170,9000,D167) -> 0.094192025 | G167: =INDEX($F$181:$F$249,MATCH(F167,$E$181:$E$249,1)) -> 0.95 | H167: =IF(F167=$F$170,9000,F167) -> 0.094192025 | I167: =INDEX($F$181:$F$249,MATCH(H167,$E$181:$E$249,1)) -> 0.95 | J167: GFK-K60-P40-D25 | K167: =IF((OR(J104=0,J104>6)),9000,J104) -> 1.91146725 | L167: =INDEX($F$181:$F$249,MATCH(K167,$E$181:$E$249,1)) -> 92 | M167: =IF(K167=$K$170,9000,K167) -> 9000 | N167: =INDEX($F$181:$F$249,MATCH(M167,$E$181:$E$249,1)) -> 0 | O167: =IF(M167=$M$170,9000,M167) -> 9000 | P167: =INDEX($F$181:$F$249,MATCH(O167,$E$181:$E$249,1)) -> 0 | R167: 9000 | T167: 9000 | V167: 9000
B168: SFC-HHSS-H25-180 | D168: =IF((OR(J91=0,J91>6)),9000,J91) -> 0.1623283225 | E168: =INDEX($F$181:$F$249,MATCH(D168,$E$181:$E$249,1)) -> 2.35 | F168: =IF(D168=$D$170,9000,D168) -> 9000 | G168: =INDEX($F$181:$F$249,MATCH(F168,$E$181:$E$249,1)) -> 0 | H168: =IF(F168=$F$170,9000,F168) -> 9000 | I168: =INDEX($F$181:$F$249,MATCH(H168,$E$181:$E$249,1)) -> 0 | K168: 9000 | L168: =INDEX($F$181:$F$249,MATCH(K168,$E$181:$E$249,1)) -> 0 | M168: 9000 | N168: =INDEX($F$181:$F$249,MATCH(M168,$E$181:$E$249,1)) -> 0 | O168: 9000 | P168: =INDEX($F$181:$F$249,MATCH(O168,$E$181:$E$249,1)) -> 0 | R168: 9000 | T168: 9000 | V168: 9000
B169: AFC-HSS-H25-SI | D169: =IF((OR(J81=0,J81>6)),9000,J81) -> 0.182015 | E169: =INDEX($F$181:$F$249,MATCH(D169,$E$181:$E$249,1)) -> 2.35 | F169: =IF(D169=$D$170,9000,D169) -> 0.182015 | G169: =INDEX($F$181:$F$249,MATCH(F169,$E$181:$E$249,1)) -> 2.35 | H169: =IF(F169=$F$170,9000,F169) -> 9000 | I169: =INDEX($F$181:$F$249,MATCH(H169,$E$181:$E$249,1)) -> 0 | K169: 9000 | L169: =INDEX($F$181:$F$249,MATCH(K169,$E$181:$E$249,1)) -> 0 | M169: 9000 | N169: =INDEX($F$181:$F$249,MATCH(M169,$E$181:$E$249,1)) -> 0 | O169: 9000 | P169: =INDEX($F$181:$F$249,MATCH(O169,$E$181:$E$249,1)) -> 0 | R169: 9000 | T169: 9000 | V169: 9000
C170: tulos | D170: =INDEX(D167:D169,MATCH(E170,E167:E169,0)) -> 0.1623283225 | E170: =MAX(E167:E169) -> 2.35 | F170: =INDEX(F167:F169,MATCH(G170,G167:G169,0)) -> 0.182015 | G170: =MAX(G167:G169) -> 2.35 | H170: =INDEX(H167:H169,MATCH(I170,I167:I169,0)) -> 0.094192025 | I170: =MAX(I167:I169) -> 0.95 | K170: =INDEX(K167:K169,MATCH(L170,L167:L169,0)) -> 1.91146725 | L170: =MAX(L167:L169) -> 92 | M170: =INDEX(M167:M169,MATCH(N170,N167:N169,0)) -> 9000 | N170: =MAX(N167:N169) -> 0 | O170: =INDEX(O167:O169,MATCH(P170,P167:P169,0)) -> 9000 | P170: =MAX(P167:P169) -> 0 | R170: =INDEX(R167:R169,MATCH(MIN(ABS(R167:R169-$D$131)),ABS(R167:R169-$D$131),0)) -> 9000 | T170: =INDEX(T167:T169,MATCH(MIN(ABS(T167:T169-$D$131)),ABS(T167:T169-$D$131),0)) -> 9000 | V170: =INDEX(V167:V169,MATCH(MIN(ABS(V167:V169-$D$131)),ABS(V167:V169-$D$131),0)) -> 9000
B171: AFC-HSS-H30-SI | C171: 3 | D171: =IF((OR(J82=0,J82>6)),9000,J82) -> 0.14753481 | E171: =INDEX($F$181:$F$249,MATCH(D171,$E$181:$E$249,1)) -> 1.65 | F171: =IF(D171=$D$174,9000,D171) -> 9000 | G171: =INDEX($F$181:$F$249,MATCH(F171,$E$181:$E$249,1)) -> 0 | H171: =IF(F171=$F$174,9000,F171) -> 9000 | I171: =INDEX($F$181:$F$249,MATCH(H171,$E$181:$E$249,1)) -> 0 | J171: PR-23-W30 | K171: =IF((OR(J109=0,J109>6)),9000,J109) -> 0.019175 | L171: =INDEX($F$181:$F$249,MATCH(K171,$E$181:$E$249,1)) -> 0.25 | M171: =IF(K171=$K$174,9000,K171) -> 9000 | N171: =INDEX($F$181:$F$249,MATCH(M171,$E$181:$E$249,1)) -> 0 | O171: =IF(M171=$M$174,9000,M171) -> 9000 | P171: =INDEX($F$181:$F$249,MATCH(O171,$E$181:$E$249,1)) -> 0 | R171: 9000 | T171: 9000 | V171: 9000
D172: 9000 | E172: =INDEX($F$181:$F$249,MATCH(D172,$E$181:$E$249,1)) -> 0 | F172: 9000 | G172: =INDEX($F$181:$F$249,MATCH(F172,$E$181:$E$249,1)) -> 0 | H172: 9000 | I172: =INDEX($F$181:$F$249,MATCH(H172,$E$181:$E$249,1)) -> 0 | K172: 9000 | L172: =INDEX($F$181:$F$249,MATCH(K172,$E$181:$E$249,1)) -> 0 | M172: 9000 | N172: =INDEX($F$181:$F$249,MATCH(M172,$E$181:$E$249,1)) -> 0 | O172: 9000 | P172: =INDEX($F$181:$F$249,MATCH(O172,$E$181:$E$249,1)) -> 0 | R172: 9000 | T172: 9000 | V172: 9000
D173: 9000 | E173: =INDEX($F$181:$F$249,MATCH(D173,$E$181:$E$249,1)) -> 0 | F173: 9000 | G173: =INDEX($F$181:$F$249,MATCH(F173,$E$181:$E$249,1)) -> 0 | H173: 9000 | I173: =INDEX($F$181:$F$249,MATCH(H173,$E$181:$E$249,1)) -> 0 | K173: 9000 | L173: =INDEX($F$181:$F$249,MATCH(K173,$E$181:$E$249,1)) -> 0 | M173: 9000 | N173: =INDEX($F$181:$F$249,MATCH(M173,$E$181:$E$249,1)) -> 0 | O173: 9000 | P173: =INDEX($F$181:$F$249,MATCH(O173,$E$181:$E$249,1)) -> 0 | R173: 9000 | T173: 9000 | V173: 9000
C174: tulos | D174: =INDEX(D171:D173,MATCH(E174,E171:E173,0)) -> 0.14753481 | E174: =MAX(E171:E173) -> 1.65 | F174: =INDEX(F167:F170,MATCH(G174,G167:G170,0)) -> 9000 | G174: =MAX(G171:G173) -> 0 | H174: =INDEX(H167:H170,MATCH(I174,I167:I170,0)) -> 9000 | I174: =MAX(I171:I173) -> 0 | K174: =INDEX(K171:K173,MATCH(L174,L171:L173,0)) -> 0.019175 | L174: =MAX(L171:L173) -> 0.25 | M174: =INDEX(M171:M173,MATCH(N174,N171:N173,0)) -> 9000 | N174: =MAX(N171:N173) -> 0 | O174: =INDEX(O171:O173,MATCH(P174,P171:P173,0)) -> 9000 | P174: =MAX(P171:P173) -> 0 | R174: =INDEX(R171:R173,MATCH(MIN(ABS(R171:R173-$D$131)),ABS(R171:R173-$D$131),0)) -> 9000 | T174: =INDEX(T171:T173,MATCH(MIN(ABS(T171:T173-$D$131)),ABS(T171:T173-$D$131),0)) -> 9000 | V174: =INDEX(V171:V173,MATCH(MIN(ABS(V171:V173-$D$131)),ABS(V171:V173-$D$131),0)) -> 9000
B175: AFC-HSS-H40-SI | C175: 4 | D175: =IF((OR(J83=0,J83>6)),9000,J83) -> 0.072882405 | E175: =INDEX($F$181:$F$249,MATCH(D175,$E$181:$E$249,1)) -> 0.95 | F175: =IF(D175=$D$178,9000,D175) -> 9000 | G175: =INDEX($F$181:$F$249,MATCH(F175,$E$181:$E$249,1)) -> 0 | H175: =IF(F175=$F$178,9000,F175) -> 9000 | I175: =INDEX($F$181:$F$249,MATCH(H175,$E$181:$E$249,1)) -> 0 | J175: PR-23-W40 | K175: =IF((OR(J110=0,J110>6)),9000,J110) -> 0.01003 | L175: =INDEX($F$181:$F$249,MATCH(K175,$E$181:$E$249,1)) -> 0.25 | M175: =IF(K175=$K$178,9000,K175) -> 9000 | N175: =INDEX($F$181:$F$249,MATCH(M175,$E$181:$E$249,1)) -> 0 | O175: =IF(M175=$M$178,9000,M175) -> 9000 | P175: =INDEX($F$181:$F$249,MATCH(O175,$E$181:$E$249,1)) -> 0 | R175: 9000 | T175: 9000 | V175: 9000
D176: 9000 | E176: =INDEX($F$181:$F$249,MATCH(D176,$E$181:$E$249,1)) -> 0 | F176: 9000 | G176: =INDEX($F$181:$F$249,MATCH(F176,$E$181:$E$249,1)) -> 0 | H176: 9000 | I176: =INDEX($F$181:$F$249,MATCH(H176,$E$181:$E$249,1)) -> 0 | K176: 9000 | L176: =INDEX($F$181:$F$249,MATCH(K176,$E$181:$E$249,1)) -> 0 | M176: 9000 | N176: =INDEX($F$181:$F$249,MATCH(M176,$E$181:$E$249,1)) -> 0 | O176: 9000 | P176: =INDEX($F$181:$F$249,MATCH(O176,$E$181:$E$249,1)) -> 0 | R176: 9000 | T176: 9000 | V176: 9000
D177: 9000 | E177: =INDEX($F$181:$F$249,MATCH(D177,$E$181:$E$249,1)) -> 0 | F177: 9000 | G177: =INDEX($F$181:$F$249,MATCH(F177,$E$181:$E$249,1)) -> 0 | H177: 9000 | I177: =INDEX($F$181:$F$249,MATCH(H177,$E$181:$E$249,1)) -> 0 | K177: 9000 | L177: =INDEX($F$181:$F$249,MATCH(K177,$E$181:$E$249,1)) -> 0 | M177: 9000 | N177: =INDEX($F$181:$F$249,MATCH(M177,$E$181:$E$249,1)) -> 0 | O177: 9000 | P177: =INDEX($F$181:$F$249,MATCH(O177,$E$181:$E$249,1)) -> 0 | R177: 9000 | T177: 9000 | V177: 9000
C178: tulos | D178: =INDEX(D175:D177,MATCH(E178,E175:E177,0)) -> 0.072882405 | E178: =MAX(E175:E177) -> 0.95 | F178: =INDEX(F175:F177,MATCH(G178,G175:G177,0)) -> 9000 | G178: =MAX(G175:G177) -> 0 | H178: =INDEX(H175:H177,MATCH(I178,I175:I177,0)) -> 9000 | I178: =MAX(I175:I177) -> 0 | K178: =INDEX(K175:K177,MATCH(L178,L175:L177,0)) -> 0.01003 | L178: =MAX(L175:L177) -> 0.25 | M178: =INDEX(M175:M177,MATCH(N178,N175:N177,0)) -> 9000 | N178: =MAX(N175:N177) -> 0 | O178: =INDEX(O175:O177,MATCH(P178,P175:P177,0)) -> 9000 | P178: =MAX(P175:P177) -> 0 | R178: =INDEX(R175:R177,MATCH(MIN(ABS(R175:R177-$D$131)),ABS(R175:R177-$D$131),0)) -> 9000 | T178: =INDEX(T175:T177,MATCH(MIN(ABS(T175:T177-$D$131)),ABS(T175:T177-$D$131),0)) -> 9000 | V178: =INDEX(V175:V177,MATCH(MIN(ABS(V175:V177-$D$131)),ABS(V175:V177-$D$131),0)) -> 9000
E181: 0 | F181: =F182-0.7 -> 0.25 | H181: flow on prism | K181: 1.5 | L181: 100
E182: 0.05 | F182: 0.95 | H182: 1.5 | K182: 1.6 | L182: =L181-2 -> 98
E183: 0.1 | F183: 1.65 | I183: value | K183: 1.7 | L183: =L182-2 -> 96
E184: 0.15 | F184: 2.35 | I184: =INDEX($L$181:$L$249,MATCH(H182,$K$181:$K$249,-1)) -> 100 | K184: 1.8 | L184: 94
E185: 0.2 | F185: 3.05 | K185: 1.9 | L185: 92
E186: 0.25 | F186: 3.75 | K186: 2 | L186: 90
E187: 0.3 | F187: 4.45 | K187: 2.1 | L187: 88
E188: 0.35 | F188: 5.15 | K188: 2.2 | L188: 86
E189: 0.4 | F189: 5.85 | K189: 2.3 | L189: 84
E190: 0.45 | F190: 6.55 | K190: 2.4 | L190: 82
E191: 0.5 | F191: 7.25 | K191: 2.5 | L191: 80
E192: 0.55 | F192: 7.95 | K192: 2.6 | L192: 78
E193: 0.6 | F193: 8.65 | K193: 2.7 | L193: 76
E194: 0.65 | F194: 9.35 | K194: 2.8 | L194: 74
E195: 0.7 | F195: =F196-2.85 -> 10.05 | K195: 2.9 | L195: 72
E196: 0.8 | F196: 12.9 | K196: 3 | L196: 70
E197: 0.9 | F197: 15.75 | K197: 3.1 | L197: 68
E198: 1 | F198: 18.6 | K198: 3.2 | L198: 66
E199: 1.1 | F199: 21.45 | K199: 3.3 | L199: 64
E200: 1.2 | F200: 24.3 | K200: 3.4 | L200: 62
E201: 1.3 | F201: 27.15 | H201: =INDEX($L$181:$L$249,MATCH(M159,$K$181:$K$249,-1)) -> 4.65 | K201: 3.5 | L201: 60
E202: 1.4 | F202: 30 | K202: 3.6 | L202: 58
E203: 1.5 | F203: 100 | K203: 3.7 | L203: 56
E204: 1.6 | F204: =F203-2 -> 98 | K204: 3.8 | L204: 54
E205: 1.7 | F205: =F204-2 -> 96 | K205: 3.9 | L205: 52
E206: 1.8 | F206: 94 | K206: 4 | L206: 50
E207: 1.9 | F207: 92 | K207: 4.1 | L207: 48
E208: 2 | F208: 90 | K208: 4.2 | L208: 46
E209: 2.1 | F209: 88 | K209: 4.3 | L209: 44
E210: 2.2 | F210: 86 | K210: 4.4 | L210: 42
E211: 2.3 | F211: 84 | K211: 4.5 | L211: 40
E212: 2.4 | F212: 82 | K212: 4.6 | L212: 38
E213: 2.5 | F213: 80 | K213: 4.7 | L213: 36
E214: 2.6 | F214: 78 | K214: 4.8 | L214: 34
E215: 2.7 | F215: 76 | K215: 4.9 | L215: 32
E216: 2.8 | F216: 74 | K216: 5 | L216: 30
E217: 2.9 | F217: 72 | K217: 1.4 | L217: 29.5
E218: 3 | F218: 70 | K218: 5.1 | L218: =L216-2 -> 28
E219: 3.1 | F219: 68 | K219: 1.3 | L219: =L217-2.85 -> 26.65
E220: 3.2 | F220: 66 | K220: 5.2 | L220: =L218-2 -> 26
E221: 3.3 | F221: 64 | K221: 5.3 | L221: =L220-2 -> 24
E222: 3.4 | F222: 62 | K222: 1.2 | L222: =L219-2.85 -> 23.8
E223: 3.5 | F223: 60 | K223: 5.4 | L223: =L221-2 -> 22
E224: 3.6 | F224: 58 | K224: 1.1 | L224: =L222-2.85 -> 20.95
E225: 3.7 | F225: 56 | K225: 5.5 | L225: =L223-2 -> 20
E226: 3.8 | F226: 54 | K226: 5.6 | L226: =L225-2 -> 18
... 23 more rows

Sheet Data (hidden)
L1: Results from trendline
B2: Goal (Averaged Value) | BL2: 1244 0.75 [1244] | BM2: 2184 0.75 [2184]
C3: AFC-HSS-H10-RI | D3: Inletflow (m^3/h) | E3: 0.5 | F3: 2.4 | G3: 4.3 | H3: 6.2 | I3: 8.1 | J3: 10 | L3: Metric | M3: Inch
D4: Max Flow [m/s] | E4: 0.735887909 | F4: 3.93483597 | G4: 7.11824169 | H4: 10.3799802 | I4: 13.4394578 | J4: 16.8889761 | BL4: 0.0001835257919 | BM4: 0.000180159459
C5: *'Flow Calc Metric'!G131^2 | D5: VG Av Velocity 1 [m/s] | E5: 0.390161814 | F5: 1.55013515 | G5: 2.63619442 | H5: 3.79096726 | I5: 5.05849778 | J5: 5.89489489 | L5: =0.6068*Metric!G131 -> 1.79006 | M5: =0.6068*Inch!G131 -> 1.791650352 | O5: =0.007*Metric!G131^2 + 0.0011*Metric!G131 -> 0.0641625 | P5: =0.007*Inch!G131^2 + 0.0011*Inch!G131 -> 0.0642736735 | R5: =0.0058*Metric!G131^2 + 1.6262*Metric!G131 -> 4.8477645 | S5: =0.0058*Inch!G131^2 + 1.6262*Inch!G131 -> 4.852116306 | AX5: Mittari 1 | AZ5: Chemical Industry Best | BA5: Chemical Industry 2nd Best | BB5: Chemical Industry 3rd Best | BC5: Food Industry Best | BD5: Food Industry 2nd Best | BE5: Food Industry 3rd Best | BF5: Semiconductor Best | BG5: Semiconductor 2nd Best | BH5: Semiconductor 3rd Best | BK5: 0.7337391382 | BL5: Cannot find goal
C6: *'Flow Calc Inch'!G131^2 | D6: Pressure loss [Pa] | E6: 0.00214916433 | F6: 0.0422296841 | G6: 0.132373794 | H6: 0.276064977 | I6: 0.470810052 | J6: 0.709122015 | AW6: METRIC | BK6: 730.9831895 | BL6: 586.1772582
AX7: 0 | AZ7: =IF(Metric!$C137>6,6,Metric!$C137) -> 1.98141175 | BA7: =IF(Metric!$E137>6,6,Metric!$E137) -> 2.211792 | BB7: =IF(Metric!$G137>6,6,Metric!$G137) -> 1.47185825 | BC7: =IF(Metric!$C138>6,6,Metric!$C138) -> 1.79006 | BD7: =IF(Metric!$E138>6,6,Metric!$E138) -> 1.43193 | BE7: =IF(Metric!$G138>6,6,Metric!$G138) -> 0.41477 | BF7: =IF(Metric!$C139>6,6,Metric!$C139) -> 2.38750875 | BG7: =IF(Metric!$E139>6,6,Metric!$E139) -> 3.05355975 | BH7: =IF(Metric!$G139>6,6,Metric!$G139) -> 6
C8: AFC-HSS-H10-SI | D8: Inletflow (m^3/h) | E8: 0.8 | F8: 3.04 | G8: 5.28 | H8: 7.52 | I8: 9.76 | J8: 12 | AX8: 0.75 | AZ8: 0.1 | BA8: 0.1 | BB8: 0.1 | BC8: 0.1 | BD8: 0.1 | BE8: 0.1 | BF8: 0.1 | BG8: 0.1 | BH8: 0.1
D9: Max Flow [m/s] | E9: 0.876964485 | F9: 3.33743809 | G9: 5.82903832 | H9: 8.34714473 | I9: 10.8196231 | J9: 13.3101352 | AX9: 0.75 | AZ9: =12-(AZ7+AZ8) -> 9.91858825 | BA9: =12-(BA7+BA8) -> 9.688208 | BB9: 10.42814175 | BC9: 10.10994 | BD9: 10.46807 | BE9: 11.48523 | BF9: 9.51249125 | BG9: 8.84644025 | BH9: 5.9
D10: VG Av Velocity 1 [m/s] | E10: 0.366387584 | F10: 1.47466949 | G10: 2.57521017 | H10: 3.68249526 | I10: 4.72700014 | J10: 5.80978043 | L10: =0.4854*Metric!G131 -> 1.43193 | M10: =0.4854*Inch!G131 -> 1.433202176 | O10: =0.003*Metric!G131^2 + 0.0003*Metric!G131 -> 0.0269925 | P10: =0.003*Inch!G131^2 + 0.0003*Inch!G131 -> 0.02703969649 | R10: =0.0007*Metric!G131^2 + 1.102*Metric!G131 -> 3.25699175 | S10: =0.0007*Inch!G131^2 + 1.102*Inch!G131 -> 3.259890792 | AX10: 3.5
D11: Pressure loss [Pa] | E11: 0.00204368687 | F11: 0.0286819828 | G11: 0.0859888109 | H11: 0.174547867 | I11: 0.290762691 | J11: 0.440235341 | AX11: 1
AX12: 6
C13: AFC-HSS-H15-RI | D13: Inletflow (m^3/h) | E13: 1 | F13: 3.8 | G13: 6.6 | H13: 9.4 | I13: 12.2 | J13: 15
D14: Max Flow [m/s] | E14: 0.759164794 | F14: 2.97023177 | G14: 5.2327335 | H14: 7.48286026 | I14: 9.76937089 | J14: 12.0375719 | AW14: INCH | AX14: Mittari 2 | AZ14: Chemical Industry Best | BA14: Chemical Industry 2nd Best | BB14: Chemical Industry 3rd Best | BC14: Food Industry Best | BD14: Food Industry 2nd Best | BE14: Food Industry 3rd Best | BF14: Semiconductor Best | BG14: Semiconductor 2nd Best | BH14: Semiconductor 3rd Best
D15: VG Av Velocity 1 [m/s] | E15: 0.342721242 | F15: 1.44317625 | G15: 2.72804231 | H15: 3.92514584 | I15: 5.06353792 | J15: 6.22142705 | L15: =0.0009*Metric!G131^2 + 0.4025*Metric!G131 -> 1.19520725 | M15: =0.0009*Inch!G131^2 + 0.4025*Inch!G131 -> 1.196276078 | O15: =0.0018*Metric!G131^2 + 0.0002*Metric!G131 -> 0.0162545 | P15: =0.0018*Inch!G131^2 + 0.0002*Inch!G131 -> 0.01628287031 | R15: =0.0014*Metric!G131^2 + 0.7823*Metric!G131 -> 2.3199685 | S15: =0.0014*Inch!G131^2 + 0.7823*Inch!G131 -> 2.322040475
D16: Pressure loss [Pa] | E16: 0.00189761144 | F16: 0.026190105 | G16: 0.0788410063 | H16: 0.160206522 | I16: 0.268210168 | J16: 0.404882232 | AX16: 0 | AZ16: =IF(Inch!C137>20,20,Inch!C137) -> 9.250127558 | BA16: =IF(Inch!E137>20,20,Inch!E137) -> 2.213763224 | BB16: =IF(Inch!G137>20,20,Inch!G137) -> 1.983131091 | BC16: =IF(Inch!C138>20,20,Inch!C138) -> 1.791650352 | BD16: =IF(Inch!E138>20,20,Inch!E138) -> 1.433202176 | BE16: =IF(Inch!G138>20,20,Inch!G138) -> 1.196276078 | BF16: =IF(Inch!C139>20,20,Inch!C139) -> 3.056302819 | BG16: =IF(Inch!E139>20,20,Inch!E139) -> 2.389703411 | BH16: =IF(Inch!G139>20,20,Inch!G139) -> 20
AX17: 2.5 | AZ17: 0.3 | BA17: 0.3 | BB17: 0.3 | BC17: 0.3 | BD17: 0.3 | BE17: 0.3 | BF17: 0.3 | BG17: 0.3 | BH17: 0.3
C18: AFC-HSS-H15-SI | D18: Inletflow (m^3/h) | E18: 2 | F18: 6 | G18: 10 | H18: 14 | I18: 18 | J18: 22 | AX18: 2.5 | AZ18: =40-(AZ16+AZ17) -> 30.44987244 | BA18: 37.48623678 | BB18: 37.71686891 | BC18: 37.90834965 | BD18: 38.26679782 | BE18: 38.50372392 | BF18: 36.64369718 | BG18: 37.31029659 | BH18: 19.7
D19: Max Flow [m/s] | E19: 0.83353322 | F19: 2.61969609 | G19: 5.01465903 | H19: 6.95862552 | I19: 8.72197614 | J19: 11.0678066 | AX19: 11.5
D20: VG Av Velocity 1 [m/s] | E20: 0.379235527 | F20: 1.51034765 | G20: 2.85711444 | H20: 3.98786732 | I20: 5.07770351 | J20: 6.33685711 | L20: =0.0011*Metric!G131^2 + 0.2645*Metric!G131 -> 0.78984775 | M20: =0.0011*Inch!G131^2 + 0.2645*Inch!G131 -> 0.7905579905 | O20: =0.0005*Metric!G131^2 - 0.0002*Metric!G131 -> 0.00376125 | P20: =0.0005*Inch!G131^2 - 0.0002*Inch!G131 -> 0.003768460862 | R20: =0.0017*Metric!G131^2 + 0.4646*Metric!G131 -> 1.38536425 | S20: =0.0017*Inch!G131^2 + 0.4646*Inch!G131 -> 1.386608211 | AX20: 3.5
D21: Pressure loss [Pa] | E21: 0.00159026713 | F21: 0.017018251 | G21: 0.0537235438 | H21: 0.104554833 | I21: 0.1709994 | J21: 0.259976834 | AX21: 20
C23: AFC-HSS-H20-RI | D23: Inletflow (m^3/h) | E23: 2 | F23: 7.6 | G23: 13.2 | H23: 18.8 | I23: 24.4 | J23: 30
D24: Max Flow [m/s] | E24: 0.777093198 | F24: 3.01520281 | G24: 5.24844836 | H24: 7.45721719 | I24: 9.68248469 | J24: 12.0123484
D25: VG Av Velocity 1 [m/s] | E25: 0.382635229 | F25: 1.49788007 | G25: 2.61012559 | H25: 3.72318053 | I25: 4.84875689 | J25: 5.94698293 | L25: =0.00004*Metric!G131^2 + 0.1973*Metric!G131 -> 0.5823831 | M25: =0.00004*Inch!G131^2 + 0.1973*Inch!G131 -> 0.5829008189 | O25: =0.0004*Metric!G131^2 + 0.00006*Metric!G131 -> 0.003658 | P25: =0.0004*Inch!G131^2 + 0.00006*Inch!G131 -> 0.003664345283 | R25: =0.0002*Metric!G131^2 + 0.393*Metric!G131 -> 1.1610905 | S25: =0.0002*Inch!G131^2 + 0.393*Inch!G131 -> 1.162123601
D26: Pressure loss [Pa] | E26: 0.0015688109 | F26: 0.0224022168 | G26: 0.06697001 | H26: 0.135576411 | I26: 0.228054804 | J26: 0.343905602
C28: AFC-HSS-H20-SI | D28: Inletflow (m^3/h) | E28: 4 | F28: 15.2 | G28: 26.4 | H28: 37.6 | I28: 48.8 | J28: 60
D29: Max Flow [m/s] | E29: 1.46740127 | F29: 5.69919534 | G29: 9.92446274 | H29: 14.1347084 | I29: 18.3747423 | J29: 22.5797861
D30: VG Av Velocity 1 [m/s] | E30: 0.403624529 | F30: 1.54586663 | G30: 2.66547874 | H30: 3.77078932 | I30: 4.86545694 | J30: 5.95799372 | L30: =0.0998*Metric!G131 -> 0.29441 | M30: =0.0998*Inch!G131 -> 0.2946715641 | O30: =0.0001*Metric!G131^2 + 0.0001*Metric!G131 -> 0.00116525 | P30: =0.0001*Inch!G131^2 + 0.0001*Inch!G131 -> 0.001167059096 | R30: =0.00002*Metric!G131^2 + 0.3751*Metric!G131 -> 1.10671905 | S30: =0.00002*Inch!G131^2 + 0.3751*Inch!G131 -> 1.107702452
D31: Pressure loss [Pa] | E31: 0.00195874158 | F31: 0.0274963795 | G31: 0.082223087 | H31: 0.165685212 | I31: 0.276612621 | J31: 0.41613443
C33: AFC-HSS-H25-SI | D33: Inletflow (m^3/h) | E33: 6 | F33: 24.8 | G33: 43.6 | H33: 62.4 | I33: 81.2 | J33: 100
D34: Max Flow [m/s] | E34: 1.17203107 | F34: 5.06058501 | G34: 8.95410589 | H34: 12.862336 | I34: 16.7762362 | J34: 20.6867213
D35: VG Av Velocity 1 [m/s] | E35: 0.36736906 | F35: 1.59000814 | G35: 2.7191576 | H35: 3.86586031 | I35: 5.0076368 | J35: 6.1262001 | L35: =0.0617*Metric!G131 -> 0.182015 | M35: =0.0617*Inch!G131 -> 0.1821767085 | O35: =0.00003*Metric!G131^2 + 0.00003*Metric!G131 -> 0.000349575 | P35: =0.00003*Inch!G131^2 + 0.00003*Inch!G131 -> 0.0003501177288 | R35: =0.00003*Metric!G131^2 + 0.204*Metric!G131 -> 0.602061075 | S35: =0.00003*Inch!G131^2 + 0.204*Inch!G131 -> 0.6025961991
D36: Pressure loss [Pa] | E36: 0.00132328422 | F36: 0.0218429822 | G36: 0.0666306436 | H36: 0.135804526 | I36: 0.229231709 | J36: 0.346389378
C38: AFC-HSS-H30-SI | D38: Inletflow (m^3/h) | E38: 8 | F38: 30.4 | G38: 52.8 | H38: 75.2 | I38: 97.6 | J38: 120
D39: Max Flow [m/s] | E39: 0.662999652 | F39: 2.5035481 | G39: 4.33105627 | H39: 6.14763866 | I39: 7.9558574 | J39: 9.75671351
D40: VG Av Velocity 1 [m/s] | E40: 0.388156395 | F40: 1.52117188 | G40: 2.65170651 | H40: 3.78272355 | I40: 4.92043016 | J40: 6.0565686 | L40: =0.000004*Metric!G131^2 + 0.05*Metric!G131 -> 0.14753481 | M40: =0.000004*Inch!G131^2 + 0.05*Inch!G131 -> 0.147665916 | O40: =0.000003*Metric!G131^2 + 0.00002*Metric!G131 -> 8.51075e-05 | P40: =0.000003*Inch!G131^2 + 0.00002*Inch!G131 -> 8.520632788e-05 | R40: =0.0815*Metric!G131 -> 0.240425 | S40: =0.0815*Inch!G131 -> 0.2406386019
D41: Pressure loss [Pa] | E41: 0.000247684743 | F41: 0.00320792111 | G41: 0.00927907494 | H41: 0.0183349615 | I41: 0.0303187708 | J41: 0.045151915
C43: AFC-HSS-H40-SI | D43: Inletflow (m^3/h) | E43: 18 | F43: 64.4 | G43: 110.8 | H43: 157.2 | I43: 203.6 | J43: 250 | BB43: 2.827433388e-05 | BC43: 2.827433388e-05 | BK43: 2.827433388e-05 | BL43: 2.827433388e-05
D44: Max Flow [m/s] | E44: 0.82323128 | F44: 2.92357299 | G44: 5.00427387 | H44: 7.07096043 | I44: 9.12631753 | J44: 11.1725757
D45: VG Av Velocity 1 [m/s] | E45: 0.440554844 | F45: 1.59844522 | G45: 2.76156757 | H45: 3.93898227 | I45: 5.12043632 | J45: 6.30950782 | L45: =0.000002*Metric!G131^2 + 0.0247*Metric!G131 -> 0.072882405 | M45: =0.000002*Inch!G131^2 + 0.0247*Inch!G131 -> 0.07294717174 | O45: =0.0000008*Metric!G131^2 + 0.00001*Metric!G131 -> 3.6462e-05 | P45: =0.0000008*Inch!G131^2 + 0.00001*Inch!G131 -> 3.650058489e-05 | R45: =0.0448*Metric!G131 -> 0.13216 | S45: =0.0448*Inch!G131 -> 0.1322774155
D46: Pressure loss [Pa] | E46: 0.00033187117 | F46: 0.00379621887 | G46: 0.0107545773 | H46: 0.0210651538 | I46: 0.034623037 | J46: 0.0513610282
C48: SFC-HHSS-H10-090 | D48: Inletflow (m^3/h) | E48: 3 | F48: 11.4 | G48: 19.8 | H48: 28.2 | I48: 36.6 | J48: 45
D49: Max Flow [m/s] | E49: 2.66618589 | F49: 10.4601833 | G49: 18.4264449 | H49: 26.2942957 | I49: 34.3804556 | J49: 42.3962926
C50: *'Metric'!G131^2 | D50: VG Av Velocity 1 [m/s] | E50: 0.44236105 | F50: 1.65011302 | G50: 2.8786031 | H50: 4.02392998 | I50: 5.11858881 | J50: 6.25577872 | L50: =0.1406*Metric!G131 -> 0.41477 | M50: =0.1406*Inch!G131 -> 0.4151384961 | O50: =0.0031*Metric!G131^2 + 0.0012*Metric!G131 -> 0.03051775 | P50: =0.0031*Inch!G131^2 + 0.0012*Inch!G131 -> 0.0305688523 | R50: =0.0006*Metric!G131^2 + 0.9163*Metric!G131 -> 2.7083065 | S50: =0.0006*Inch!G131^2 + 0.9163*Inch!G131 -> 2.710717297
C51: *'Inch'!G131^2 | D51: Pressure loss [Pa] | E51: 0.0295558127 | F51: 0.414982923 | G51: 1.2422527 | H51: 2.50928392 | I51: 4.21160918 | J51: 6.34914773
C53: SFC-HHSS-H10-180 | D53: Inletflow (m^3/h) | E53: 6 | F53: 18.8 | G53: 31.6 | H53: 44.4 | I53: 57.2 | J53: 70
D54: Max Flow [m/s] | E54: 5.45830536 | F54: 17.0971909 | G54: 28.7438599 | H54: 40.3733787 | I54: 52.0001347 | J54: 63.6856165
D55: VG Av Velocity 1 [m/s] | E55: 0.528152156 | F55: 1.69435469 | G55: 2.89152123 | H55: 4.02024005 | I55: 5.11923507 | J55: 6.26831924 | L55: =0.0899*Metric!G131 -> 0.265205 | M55: =0.0899*Inch!G131 -> 0.2654406173 | O55: =0.0021*Metric!G131^2 + 0.0008*Metric!G131 -> 0.02063525 | P55: =0.0021*Inch!G131^2 + 0.0008*Inch!G131 -> 0.02066983387 | R55: =0.000009*Metric!G131^2 + 0.909*Metric!G131 -> 2.681628322 | S55: =0.000009*Inch!G131^2 + 0.909*Inch!G131 -> 2.684010844
D56: Pressure loss [Pa] | E56: 0.0786915497 | F56: 0.751014382 | G56: 2.09405023 | H56: 4.10791559 | I56: 6.83438466 | J56: 10.2046806
C58: SFC-HHSS-H15-090 | D58: Inletflow (m^3/h) | E58: 5 | F58: 18 | G58: 31 | H58: 44 | I58: 57 | J58: 70
D59: Max Flow [m/s] | E59: 1.8267139 | F59: 6.54768892 | G59: 11.2643964 | H59: 15.9881531 | I59: 21.0214167 | J59: 25.8145409
D60: VG Av Velocity 1 [m/s] | E60: 0.416489147 | F60: 1.67323894 | G60: 2.79432918 | H60: 4.02274724 | I60: 5.15263241 | J60: 6.33996224 | L60: =0.0907*Metric!G131 -> 0.267565 | M60: =0.0907*Inch!G131 -> 0.267802714 | O60: =0.0008*Metric!G131^2 - 0.0062*Metric!G131 -> -0.011328 | P60: =0.0008*Inch!G131^2 - 0.0062*Inch!G131 -> -0.01133187341 | R60: =0.0001*Metric!G131^2 + 0.3591*Metric!G131 -> 1.06021525 | S60: =0.0001*Inch!G131^2 + 0.3591*Inch!G131 -> 1.061157956
D61: Pressure loss [Pa] | E61: 0.0139104988 | F61: 0.180822675 | G61: 0.548272192 | H61: 1.10627067 | I61: 2.18264521 | J61: 3.28943044
C63: SFC-HHSS-H15-180 | D63: Inletflow (m^3/h) | E63: 8 | F63: 32 | G63: 56 | H63: 80 | I63: 104 | J63: 128
D64: Max Flow [m/s] | E64: 2.89426881 | F64: 11.6236704 | G64: 20.3020116 | H64: 28.9528508 | I64: 37.555756 | J64: 46.1586949
D65: VG Av Velocity 1 [m/s] | E65: 0.390573657 | F65: 1.62748523 | G65: 2.85251522 | H65: 4.05482442 | I65: 5.03204718 | J65: 6.17299242 | L65: =0.049*Metric!G131 -> 0.14455 | M65: =0.049*Inch!G131 -> 0.1446784232 | O65: =0.0003*Metric!G131^2 - 0.00003*Metric!G131 -> 0.00252225 | P65: =0.0003*Inch!G131^2 - 0.00003*Inch!G131 -> 0.002526812396 | R65: =0.3612*Metric!G131 -> 1.06554 | S65: =0.3612*Inch!G131 -> 1.066486663
D66: Pressure loss [Pa] | E66: 0.0180281826 | F66: 0.281906704 | G66: 0.86473359 | H66: 1.76918554 | I66: 2.9706444 | J66: 4.52202635
C68: SFC-HHSS-H20-090 | D68: Inletflow (m^3/h) | E68: 5 | F68: 10 | G68: 27 | H68: 44 | I68: 61 | J68: 78
D69: Max Flow [m/s] | E69: 1.316753 | F69: 2.61397598 | G69: 7.23747493 | H69: 12.0350708 | I69: 16.7174594 | J69: 21.2218164
D70: VG Av Velocity 1 [m/s] | E70: 0.241747236 | F70: 0.684897147 | G70: 2.13935906 | H70: 3.48279909 | I70: 5.00226837 | J70: 6.34926997 | L70: =0.00008*Metric!G131^2 + 0.076*Metric!G131 -> 0.2248962 | M70: =0.00008*Inch!G131^2 + 0.076*Inch!G131 -> 0.2250966247 | O70: =0.0002*Metric!G131^2 - 0.00004*Metric!G131 -> 0.0016225 | P70: =0.0002*Inch!G131^2 - 0.00004*Inch!G131 -> 0.00162548918 | R70: =0.00003*Metric!G131^2 + 0.2706*Metric!G131 -> 0.798531075 | S70: =0.00003*Inch!G131^2 + 0.2706*Inch!G131 -> 0.7992407499
D71: Pressure loss [Pa] | E71: 0.00441518623 | F71: 0.0184572612 | G71: 0.136426142 | H71: 0.366604212 | I71: 0.70481255 | J71: 1.15210498
C73: SFC-HHSS-H20-180 | D73: Inletflow (m/s) | E73: 15 | F73: 52 | G73: 89 | H73: 126 | I73: 163 | J73: 200
D74: Max Flow [m/s] | E74: 3.03237155 | F74: 10.4675414 | G74: 17.8596095 | H74: 25.2298734 | I74: 32.6299456 | J74: 39.9232066
D75: VG Av Velocity 1 [m/s] | E75: 0.435558313 | F75: 1.58929766 | G75: 2.63634768 | H75: 3.75472462 | I75: 4.90296072 | J75: 5.89440284 | L75: =0.0297*Metric!G131 -> 0.087615 | M75: =0.0297*Inch!G131 -> 0.08769284021 | O75: =0.00006*Metric!G131^2 - 0.0002*Metric!G131 -> -6.785e-05 | P75: =0.00006*Inch!G131^2 - 0.0002*Inch!G131 -> -6.744597194e-05 | R75: =0.2*Metric!G131 -> 0.59 | S75: =0.2*Inch!G131 -> 0.5905241765
D76: Pressure loss [Pa] | E76: 0.0137603145 | F76: 0.163949079 | G76: 0.482007045 | H76: 0.966500207 | I76: 1.63556773 | J76: 2.47634531
C78: SFC-HHSS-H25-090 | D78: Inletflow (m/s) | E78: 14 | F78: 47.2 | G78: 80.4 | H78: 113.6 | I78: 146.8 | J78: 180
D79: Max Flow [m/s] | E79: 2.33050041 | F79: 7.91341486 | G79: 13.4979794 | H79: 19.1030549 | I79: 24.7081099 | J79: 30.2919035
D80: VG Av Velocity 1 [m/s] | E80: 0.45169934 | F80: 1.5529963 | G80: 2.61833257 | H80: 3.78020565 | I80: 4.8857107 | J80: 6.10130623 | L80: =0.00001*Metric!G131^2 + 0.0319*Metric!G131 -> 0.094192025 | M80: =0.00001*Inch!G131^2 + 0.0319*Inch!G131 -> 0.09427578585 | O80: =0.00006*Metric!G131^2 - 0.00002*Metric!G131 -> 0.00046315 | P80: =0.00006*Inch!G131^2 - 0.00002*Inch!G131 -> 0.0004640257869 | R80: =0.000004*Metric!G131^2 + 0.1676*Metric!G131 -> 0.49445481 | S80: =0.000004*Inch!G131^2 + 0.1676*Inch!G131 -> 0.4948941318
D81: Pressure loss [Pa] | E81: 0.0123640345 | F81: 0.138345432 | G81: 0.399293988 | H81: 0.796604173 | I81: 1.32716149 | J81: 2.004573
C83: SFC-HHSS-H25-180 | D83: Inletflow (m/s) | E83: 7 | F83: 27.6 | G83: 48.2 | H83: 68.8 | I83: 89.4 | J83: 110
D84: Max Flow [m/s] | E84: 0.881023829 | F84: 3.46895704 | G84: 6.04487259 | H84: 8.61024422 | I84: 11.1651084 | J84: 13.7133218
C85: *'Metric'!G131^2 | D85: VG Av Velocity 1 [m/s] | E85: 0.382781899 | F85: 1.52617923 | G85: 2.67118493 | H85: 3.82494207 | I85: 4.98414514 | J85: 6.1559343 | L85: =0.000009*Metric!G131^2 + 0.055*Metric!G131 -> 0.1623283225 | M85: =0.000009*Inch!G131^2 + 0.055*Inch!G131 -> 0.1624726103 | O85: =0.00002*Metric!G131^2 - 0.000006*Metric!G131 -> 0.00015635 | P85: =0.00002*Inch!G131^2 - 0.000006*Inch!G131 -> 0.0001566436762 | R85: =0.1249*Metric!G131 -> 0.368455 | S85: =0.1249*Inch!G131 -> 0.3687823482
C86: *'Inch'!G131^2 | D86: Pressure loss [Pa] | E86: 0.000776984029 | F86: 0.0117087737 | G86: 0.0355247452 | H86: 0.0724260815 | I86: 0.122368911 | J86: 0.185778065
C88: PMFC-HSS-H04 | D88: Inletflow (m/s) | E88: 0.02 | F88: 0.056 | G88: 0.092 | H88: 0.128 | I88: 0.164 | J88: 0.2
D89: Max Flow | E89: 0.85858673 | F89: 2.40271873 | G89: 3.94674693 | H89: 5.49075177 | I89: 7.03475235 | J89: 8.57872774
D90: VG Av Velocity 1 [m/s] | E90: 0.334717113 | F90: 1.44000823 | G90: 2.60014289 | H90: 3.75142449 | I90: 4.85994075 | J90: 5.96490932 | L90: =20.606*Metric!G131^2 + 26.007*Metric!G131 -> 256.044365 | M90: =20.606*Inch!G131^2 + 26.007*Inch!G131 -> 256.4313027 | O90: =8.3811*Metric!G131^2 + 0.8597*Metric!G131 -> 75.47263775 | P90: =8.3811*Inch!G131^2 + 0.8597*Inch!G131 -> 75.60454718 | R90: =42.896*Metric!G131 -> 126.5432 | S90: =42.896*Inch!G131 -> 126.6556254
D91: Pressure loss [bar] | E91: 0.0200472695 | F91: 0.0725712349 | G91: 0.148694261 | H91: 0.24927264 | I91: 0.36847986 | J91: 0.50542391
C93: PMFC-HSS-H05 | D93: Inletflow (m/s) | E93: 0.03 | F93: 0.108 | G93: 0.186 | H93: 0.264 | I93: 0.342 | J93: 0.42
D94: Max Flow [m/s] | E94: 0.6950371 | F94: 2.31103303 | G94: 3.97854916 | H94: 5.65172079 | I94: 7.35152114 | J94: 9.0307979
D95: VG Av Velocity 1 [m/s] | E95: 0.474809024 | F95: 1.40121533 | G95: 2.41423183 | H95: 3.40519419 | I95: 4.38654498 | J95: 5.36615519 | L95: =12.791*Metric!G131 -> 37.73345 | M95: =12.791*Inch!G131 -> 37.76697371 | O95: =2.5547*Metric!G131^2 + 0.0022*Metric!G131 -> 22.23876675 | P95: =2.5547*Inch!G131^2 + 0.0022*Inch!G131 -> 22.27829392 | R95: =0.5324*Metric!G131^2 + 22.764*Metric!G131 -> 71.787011 | S95: =0.5324*Inch!G131^2 + 22.764*Inch!G131 -> 71.85490904
D96: Pressure loss [Pa] | E96: 0.00238374056 | F96: 0.0300415064 | G96: 0.0888047397 | H96: 0.178172688 | I96: 0.299647427 | J96: 0.450817165
C98: PMFC-HSS-H06 | D98: Inletflow (m/s) | E98: 0.04 | F98: 0.2 | G98: 0.3 | H98: 0.4 | I98: 0.5 | J98: 0.6
D99: Max Flow [m/s] | E99: 0.756363041 | F99: 3.33257023 | G99: 5.00515801 | H99: 6.58195368 | I99: 8.43027898 | J99: 10.0921087
D100: VG Av Velocity 1 [m/s] | E100: 0.394072275 | F100: 1.97036492 | G100: 2.95554383 | H100: 3.94072275 | I100: 4.9259123 | J100: 5.91110186 | L100: =0.00007*Metric!G131^2 + 9.8518*Metric!G131 -> 29.06341918 | M100: =0.00007*Inch!G131^2 + 9.8518*Inch!G131 -> 29.08924067 | O100: =0.8727*Metric!G131^2 - 0.0001*Metric!G131 -> 7.59437675 | P100: =0.8727*Inch!G131^2 - 0.0001*Inch!G131 -> 7.607877223 | R100: =0.6258*Metric!G131^2 + 16.444*Metric!G131 -> 53.9558245 | S100: =0.6258*Inch!G131^2 + 16.444*Inch!G131 -> 54.00860347
D101: Pressure loss [Pa] | E101: 0.00142689945 | F101: 0.0348071346 | G101: 0.0780568794 | H101: 0.139764854 | I101: 0.218790478 | J101: 0.313705678
C103: PR-33-S (1/4") | D103: Inletflow (m^3/h) | E103: 0.1 | F103: 0.22 | G103: 0.34 | H103: 0.46 | I103: 0.58 | J103: 0.7
D104: Max Flow [m/s] | E104: 3.36377659 | F104: 7.28305365 | G104: 11.2421865 | H104: 15.2439406 | I104: 19.2312409 | J104: 23.2314634
D105: VG Av Velocity 1 [m/s] | E105: 0.798715803 | F105: 1.76253036 | G105: 2.86661821 | H105: 4.03567717 | I105: 5.131902 | J105: 6.25758165 | L105: =1.4579*Metric!G131^2 + 7.966*Metric!G131 -> 36.18707475 | M105: =1.4579*Inch!G131^2 + 7.966*Inch!G131 -> 36.23050652 | O105: =6.4897*Metric!G131^2 + 0.12*Metric!G131 -> 56.83061425 | P105: =6.4897*Inch!G131^2 + 0.12*Inch!G131 -> 56.93132491 | R105: =0.1377*Metric!G131^2 + 33.082*Metric!G131 -> 98.79023425 | S105: =0.1377*Inch!G131^2 + 33.082*Inch!G131 -> 98.87906852
D106: Pressure loss [Pa] | E106: 0.0731630262 | F106: 0.337562539 | G106: 0.791796066 | H106: 1.43141234 | I106: 2.25426492 | J106: 3.26178159
C108: PR-33-S (1/2") | D108: Inletflow (m^3/h) | E108: 0.2 | F108: 0.76 | G108: 1.32 | H108: 1.88 | I108: 2.44 | J108: 3
D109: Max Flow [m/s] | E109: 2.00105401 | F109: 7.69716513 | G109: 13.4441669 | H109: 19.1766121 | I109: 24.8847285 | J109: 30.6488013
D110: VG Av Velocity 1 [m/s] | E110: 0.358150612 | F110: 1.60312565 | G110: 2.79675643 | H110: 3.97351664 | I110: 5.17284427 | J110: 6.35495574 | L110: =0.0059*Metric!G131^2 + 2.1028*Metric!G131 -> 6.25460475 | M110: =0.0059*Inch!G131^2 + 2.1028*Inch!G131 -> 6.260207215 | O110: =0.4117*Metric!G131^2 + 0.005*Metric!G131 -> 3.59756925 | P110: =0.4117*Inch!G131^2 + 0.005*Inch!G131 -> 3.603951385 | R110: =0.0249*Metric!G131^2 + 10.142*Metric!G131 -> 30.13559225 | S110: =0.0249*Inch!G131^2 + 10.142*Inch!G131 -> 30.16255845
D111: Pressure loss [Pa] | E111: 0.0167426063 | F111: 0.24041097 | G111: 0.724200309 | H111: 1.46591369 | I111: 2.46158766 | J111: 3.72012355
C113: PR-33-S (3/4") | D113: Inletflow (m^3/h) | E113: 0.8 | F113: 2.04 | G113: 3.28 | H113: 4.52 | I113: 5.76 | J113: 7
D114: Max Flow [m/s] | E114: 4.12279455 | F114: 10.8687451 | G114: 17.6360032 | H114: 24.4626399 | I114: 31.1735959 | J114: 37.9152803
D115: VG Av Velocity 1 [m/s] | E115: 0.56079938 | F115: 1.60961655 | G115: 2.64016495 | H115: 3.77882865 | I115: 4.85857486 | J115: 5.89309344 | L115: =0.0095*Metric!G131^2 + 0.7813*Metric!G131 -> 2.38750875 | M115: =0.0095*Inch!G131^2 + 0.7813*Inch!G131 -> 2.389703411 | O115: =0.0911*Metric!G131^2 + 0.003*Metric!G131 -> 0.80164775 | P115: =0.0911*Inch!G131^2 + 0.003*Inch!G131 -> 0.8030649366 | R115: =0.0133*Metric!G131^2 + 5.3306*Metric!G131 -> 15.84101325 | S115: =0.0133*Inch!G131^2 + 5.3306*Inch!G131 -> 15.85518988
D116: Pressure loss [Pa] | E116: 0.0593091088 | F116: 0.384827601 | G116: 0.99038854 | H116: 1.87485653 | I116: 3.0395489 | J116: 4.48404611
C118: PR-33-S (1") | D118: Inletflow (m^3/h) | E118: 0.4 | F118: 1.52 | G118: 2.64 | H118: 3.76 | I118: 4.88 | J118: 6
D119: Max Flow [m/s] | E119: 2.22159106 | F119: 8.62784439 | G119: 15.1926251 | H119: 21.742955 | I119: 28.2849666 | J119: 34.8157968
C120: *'Metric'!G131^2 | D120: VG Av Velocity 1 [m/s] | E120: 0.385331001 | F120: 1.50641345 | G120: 2.76400116 | H120: 3.90824111 | I120: 5.10683413 | J120: 6.26386981 | L120: =0.0039*Metric!G131^2 + 1.0236*Metric!G131 -> 3.05355975 | M120: =0.0039*Inch!G131^2 + 1.0236*Inch!G131 -> 3.056302819 | O120: =0.1228*Metric!G131^2 - 0.0006*Metric!G131 -> 1.066897 | P120: =0.1228*Inch!G131^2 - 0.0006*Inch!G131 -> 1.068795153 | R120: =0.0175*Metric!G131^2 + 5.7038*Metric!G131 -> 16.97850375 | S120: =0.0175*Inch!G131^2 + 5.7038*Inch!G131 -> 16.99372347
C121: *'Inch'!G131^2 | D121: Pressure loss [Pa] | E121: 0.0199679169 | F121: 0.283171117 | G121: 0.852300849 | H121: 1.73603396 | I121: 2.92351004 | J121: 4.41792218
C123: PR-33-S (3/8") | D123: Inletflow (m/s) | E123: 0.1 | F123: 0.28 | G123: 0.46 | H123: 0.64 | I123: 0.82 | J123: 1
D124: Max Flow [m/s] | E124: 1.52356133 | F124: 4.18792402 | G124: 6.90920611 | H124: 9.62269133 | I124: 12.3334785 | J124: 15.0311732
D125: VG Av Velocity 1 [m/s] | E125: 0.655179463 | F125: 1.75685185 | G125: 2.86045801 | H125: 3.97813165 | I125: 5.09573328 | J125: 6.21909085 | L125: =6.2203*Metric!G131 -> 18.349885 | M125: =6.2203*Inch!G131 -> 18.36618768 | O125: =1.1545*Metric!G131^2 + 0.0008*Metric!G131 -> 10.04939625 | P125: =1.1545*Inch!G131^2 + 0.0008*Inch!G131 -> 10.06725855 | R125: =0.022*Metric!G131^2 + 15.014*Metric!G131 -> 44.482755 | S125: =0.022*Inch!G131^2 + 15.014*Inch!G131 -> 44.52244527
D126: Pressure loss [Pa] | E126: 0.0129584162 | F126: 0.0910661234 | G126: 0.243322231 | H126: 0.47412583 | I126: 0.776883271 | J126: 1.15535444
C128: WFC-05 | D128: Inletflow (m^3/h) | E128: 0.4 | F128: 0.75 | G128: 1.5 | H128: 3 | I128: 4.5 | J128: 6
D129: Max Flow [m/s] | E129: 1.08992838 | F129: 2.03482142 | G129: 4.15510721 | H129: 8.39118528 | I129: 12.6165584 | J129: 16.8660796
D130: VG Av Velocity 1 [m/s] | E130: 0.405702518 | F130: 0.791296738 | G130: 1.7275894 | H130: 3.37260241 | I130: 5.09225554 | J130: 6.75465879 | L130: =0.0002*Metric!G131^2 + 1.1264*Metric!G131 -> 3.3246205 | M130: =0.0002*Inch!G131^2 + 1.1264*Inch!G131 -> 3.327575756 | O130: =0.024*Metric!G131^2 + 0.0028*Metric!G131 -> 0.21712 | P130: =0.024*Inch!G131^2 + 0.0028*Inch!G131 -> 0.2174986203 | R130: =0.0078*Metric!G131^2 + 2.7658*Metric!G131 -> 8.2269895 | S130: =0.0078*Inch!G131^2 + 2.7658*Inch!G131 -> 8.234359004
D131: Pressure loss [Bar] | E131: 0.0042319857 | F131: 0.0141899505 | G131: 0.0575489145 | H131: 0.224297444 | I131: 0.500882105 | J131: 0.880000603
C133: WFC-10 | D133: Inletflow (m^3/h) | E133: 0.8 | F133: 2.64 | G133: 4.48 | H133: 6.32 | I133: 8.16 | J133: 12
D134: Max Flow [m/s] | E134: 1.15300322 | F134: 3.91308083 | G134: 6.67220264 | H134: 9.39709406 | I134: 12.1489731 | J134: 17.914148
D135: VG Av Velocity 1 [m/s] | E135: 0.402017925 | F135: 1.32761497 | G135: 2.23359247 | H135: 3.17580051 | I135: 4.12885067 | J135: 6.12364149 | L135: =0.0013*Metric!G131^2 + 0.4951*Metric!G131 -> 1.47185825 | M135: =0.0013*Inch!G131^2 + 0.4951*Inch!G131 -> 1.47317596 | O135: =0.0084*Metric!G131^2 + 0.0007*Metric!G131 -> 0.075166 | P135: =0.0084*Inch!G131^2 + 0.0007*Inch!G131 -> 0.07529778326 | R135: =0.001*Metric!G131^2 + 1.4812*Metric!G131 -> 4.3782425 | S135: =0.001*Inch!G131^2 + 1.4812*Inch!G131 -> 4.382140021
D136: Pressure loss [Pa] | E136: 0.00550303208 | F136: 0.0596857858 | G136: 0.171396011 | H136: 0.340241255 | I136: 0.565873369 | J136: 1.21779078
C138: WFC-15 | D138: Inletflow (m^3/h) | E138: 2 | F138: 8.6 | G138: 15.2 | H138: 21.8 | I138: 28.4 | J138: 35
D139: Max Flow [m/s] | E139: 1.48530381 | F139: 6.37003843 | G139: 11.3304054 | H139: 16.2576434 | I139: 21.1924491 | J139: 26.2100713
D140: VG Av Velocity 1 [m/s] | E140: 0.422026535 | F140: 1.51424053 | G140: 2.7065575 | H140: 3.84546851 | I140: 5.03769411 | J140: 6.1671494 | L140: =-0.00007*Metric!G131^2 + 0.1787*Metric!G131 -> 0.526555825 | M140: =-0.00007*Inch!G131^2 + 0.1787*Inch!G131 -> 0.5270230938 | O140: =0.0017*Metric!G131^2 + 0.0003*Metric!G131 -> 0.01567925 | P140: =0.0017*Inch!G131^2 + 0.0003*Inch!G131 -> 0.01570633539 | R140: =0.0002*Metric!G131^2 + 0.7406*Metric!G131 -> 2.1865105 | S140: =0.0002*Inch!G131^2 + 0.7406*Inch!G131 -> 2.18845462
D141: Pressure loss [Pa] | E141: 0.00681065034 | F141: 0.126498941 | G141: 0.391940389 | H141: 0.807190647 | I141: 1.36016208 | J141: 2.06836391
C143: GFC-K60-P40J15-P10 | D143: Inletflow (m^3/h) | E143: 0.01 | F143: 0.5 | G143: 1 | H143: 1.5 | I143: 2 | J143: 2.8 | L143: 9.4
D144: Max Flow [m/s] | E144: 0.0751333563 | F144: 2.96276277 | G144: 5.91754228 | H144: 8.88576571 | I144: 11.8437683 | J144: 16.6033406
C145: *Metric!G131^ | D145: VG Av Velocity 1 [m/s] | E145: 0.0338223365 | F145: 1.56085212 | G145: 3.12071736 | H145: 4.68829675 | I145: 6.27309882 | J145: 8.76595073 | L145: =0.0031*Metric!G131^2 + 3.1237*Metric!G131 -> 9.24189275 | M145: =0.0031*Inch!G131^2 + 3.1237*Inch!G131 -> 9.250127558 | O145: =0.3962*Metric!G131^2 + 0.0083*Metric!G131 -> 3.4724155 | P145: =0.3962*Inch!G131^2 + 0.0083*Inch!G131 -> 3.478566498 | R145: =0.0055*Metric!G131^2 + 5.9136*Metric!G131 -> 17.49298375 | S145: =0.0055*Inch!G131^2 + 5.9136*Inch!G131 -> 17.50856769
C146: *Inch!G131^ | D146: Pressure loss [Pa] | E146: 6.60805745e-05 | F146: 0.102385752 | G146: 0.403837957 | H146: 0.90365667 | I146: 1.60328073 | J146: 3.12889354
C148: GFC-K60-P40-R05 | D148: Inletflow (m^3/h) | E148: 0.3 | F148: 0.6 | G148: 0.9 | H148: 1.2 | I148: 1.6 | J148: 2
D149: Max Flow [m/s] | E149: 1.84454124 | F149: 3.7003965 | G149: 5.58621423 | H149: 7.45475673 | I149: 9.95114763 | J149: 12.4491572
D150: VG Av Velocity 1 [m/s] | E150: 0.904232861 | F150: 1.80018431 | G150: 2.68350653 | H150: 3.56880547 | I150: 4.74970176 | J150: 5.92254815 | L150: =-0.0219*Metric!G131^2 + 3.0041*Metric!G131 -> 8.67151025 | M150: =-0.0219*Inch!G131^2 + 3.0041*Inch!G131 -> 8.679044849 | O150: =0.3058*Metric!G131^2 + 0.0022*Metric!G131 -> 2.6677145 | P150: =0.3058*Inch!G131^2 + 0.0022*Inch!G131 -> 2.672451015 | R150: =0.0261*Metric!G131^2 + 6.175*Metric!G131 -> 18.44338525 | S150: =0.0261*Inch!G131^2 + 6.175*Inch!G131 -> 18.45997297
D151: Pressure loss [Pa] | E151: 0.027916753 | F151: 0.110832132 | G151: 0.249567896 | H151: 0.44330901 | I151: 0.787392615 | J151: 1.22719841
C153: GFC-K60-P40-R10 | D153: Inletflow (m^3/h) | E153: 0.5 | F153: 1.8 | G153: 3 | H153: 4.5 | I153: 6 | J153: 8.5
D154: Max Flow [m/s] | E154: 1.03557941 | F154: 3.69429266 | G154: 6.12824654 | H154: 9.20577007 | I154: 12.2614094 | J154: 17.2827587
D155: VG Av Velocity 1 [m/s] | E155: 0.333558519 | F155: 1.21374815 | G155: 1.97445859 | H155: 2.98640682 | I155: 3.98217649 | J155: 5.43836468 | L155: =-0.0053*Metric!G131^2 + 0.6873*Metric!G131 -> 1.98141175 | M155: =-0.0053*Inch!G131^2+0.6873*Inch!G131 -> 1.983131091 | O155: =0.0192*Metric!G131^2 + 0.0036*Metric!G131 -> 0.177708 | P155: =0.0192*Inch!G131^2 + 0.0036*Inch!G131 -> 0.1780144606 | R155: =-0.0028*Metric!G131^2 + 2.0575*Metric!G131 -> 6.045258 | S155: =-0.0028*Inch!G131^2 + 2.0575*Inch!G131 -> 6.05060715
D156: Pressure loss [Pa] | E156: 0.0052856279 | F156: 0.0660138061 | G156: 0.1801734 | H156: 0.405402662 | I156: 0.718283171 | J156: 1.41531018
C158: GFK-K60-P40-D15 | D158: Inletflow (m^3/h) | E158: 0.25 | F158: 0.5 | G158: 0.75 | H158: 1 | I158: 1.3 | J158: 1.6
D159: Max Flow [m/s] | E159: 1.58307703 | F159: 3.16854715 | G159: 4.75083439 | H159: 6.35511046 | I159: 8.2749549 | J159: 10.1998461
D160: VG Av Velocity 1 [m/s] | E160: 0.913321617 | F160: 1.82893476 | G160: 2.74187768 | H160: 3.65995644 | I160: 4.75923178 | J160: 5.85754103 | L160: =0.0041*Metric!G131^2 + 3.6549*Metric!G131 -> 10.81763525 | M160: =0.0041*Inch!G131^2 + 3.6549*Inch!G131 -> 10.82727774 | O160: =0.4711*Metric!G131^2 + 0.0075*Metric!G131 -> 4.12187275 | P160: =0.4711*Inch!G131^2 + 0.0075*Inch!G131 -> 4.12918036 | R160: =0.0384*Metric!G131^2 + 6.3141*Metric!G131 -> 18.960771 | S160: =0.0384*Inch!G131^2 + 6.3141*Inch!G131 -> 18.97791357
D161: Pressure loss [bar] | E161: 0.0306274328 | F161: 0.121090869 | G161: 0.270441973 | H161: 0.4792817 | I161: 0.806379233 | J161: 1.21755115
C163: GFK-K60-P40-D25 | D163: Inletflow (m^3/h) | E163: 0.7 | F163: 2.56 | G163: 4.42 | H163: 6.28 | I163: 8.14 | J163: 10
D164: Max Flow [m/s] | E164: 2.08492037 | F164: 7.7504119 | G164: 13.4200588 | H164: 19.1030115 | I164: 24.8024562 | J164: 30.452768
C165: *'Metric'!G131^2 | D165: VG Av Velocity 1 [m/s] | E165: 0.451375968 | F165: 1.63848848 | G165: 2.8701288 | H165: 4.09054383 | I165: 5.33143822 | J165: 6.52909754 | L165: =0.0009*Metric!G131^2 + 0.6453*Metric!G131 -> 1.91146725 | M165: =0.0009*Inch!G131^2 + 0.6453*Inch!G131 -> 1.913172429 | O165: =0.036*Metric!G131^2 + 0.0029*Metric!G131 -> 0.321845 | P165: =0.036*Inch!G131^2 + 0.0029*Inch!G131 -> 0.3224095233 | R165: =0.0018*Metric!G131^2 + 3.0289*Metric!G131 -> 8.9509195 | S165: =0.0018*Inch!G131^2 + 3.0289*Inch!G131 -> 8.958885737
C166: *'Inch'!G131^2 | D166: Pressure loss [Pa] | E166: 0.0185585257 | F166: 0.241949464 | G166: 0.716378828 | H166: 1.43987546 | I166: 2.41348753 | J166: 3.63096343
C168: PFC-KSS-A10 | D168: Inletflow (m^3/h) | E168: 0.7 | F168: 2.2 | G168: 3.7 | H168: 5.1 | I168: 6.6 | J168: 8
D169: Max Flow [m/s] | E169: 0.859546768 | F169: 2.7609199 | G169: 4.70200097 | H169: 6.46132017 | I169: 8.41470299 | J169: 10.3085646
D170: VG Av Velocity 1 [m/s] | E170: 0.507975775 | F170: 1.64766592 | G170: 2.77610779 | H170: 3.8384607 | I170: 4.9727256 | J170: 6.02920129 | L170: =0.0008*Metric!G131^2 + 0.7474*Metric!G131 -> 2.211792 | M170: =0.0008*Inch!G131^2 + 0.7474*Inch!G131 -> 2.213763224 | O170: =0.0061*Metric!G131^2 + 0.0003*Metric!G131 -> 0.05397025 | P170: =0.0061*Inch!G131^2 + 0.0003*Inch!G131 -> 0.05406540373 | R170: =0.0056*Metric!G131^2 + 1.2415*Metric!G131 -> 3.711159 | S170: =0.0056*Inch!G131^2 + 1.2415*Inch!G131 -> 3.714499458
D171: Pressure loss [Pa] | E171: 0.0029973381 | F171: 0.0299562824 | G171: 0.0843119696 | H171: 0.159421918 | I171: 0.266326378 | J171: 0.390643351
C173: PFC-23-GP-A10 | D173: Inletflow (m^3/h) | E173: 3 | F173: 15 | G173: 25 | H173: 33 | I173: 47 | J173: 55
D174: Max Flow [m/s] | E174: 0.532436751 | F174: 2.74582322 | G174: 4.57974093 | H174: 6.04900829 | I174: 8.6036419 | J174: 10.0644279
D175: VG Av Velocity 1 [m/s] | E175: 0.309957408 | F175: 1.60413633 | G175: 2.66529445 | H175: 3.50847257 | I175: 4.9727018 | J175: 5.80890905 | L175: =0.1059*Metric!G131 -> 0.312405 | M175: =0.1059*Inch!G131 -> 0.3126825515 | O175: =0.00007*Metric!G131^2 + 0.00003*Metric!G131 -> 0.000697675 | P175: =0.00007*Inch!G131^2 + 0.00003*Inch!G131 -> 0.0006988365318 | R175: =0.1831*Metric!G131 -> 0.540145 | S175: =0.1831*Inch!G131 -> 0.5406248836
D176: Pressure loss [Pa] | E176: 0.000698734443 | F176: 0.0163557719 | G176: 0.0450010755 | H176: 0.0780719298 | I176: 0.157719412 | J176: 0.215624864
C178: PFC-23-GP-A15 | D178: Inletflow (m^3/h) | E178: 3 | F178: 13.5 | G178: 24 | H178: 34.5 | I178: 46 | J178: 55
D179: Max Flow [m/s] | E179: 0.550446232 | F179: 2.53119456 | G179: 4.51370302 | H179: 6.52057235 | I179: 8.74206792 | J179: 10.4798812
D180: VG Av Velocity 1 [m/s] | E180: 0.319165266 | F180: 1.50480291 | G180: 2.66270733 | H180: 3.81670781 | I180: 5.07958361 | J180: 6.05524933 | L180: =0.1104*Metric!G131 -> 0.32568 | M180: =0.1104*Inch!G131 -> 0.3259693454 | O180: =0.00007*Metric!G131^2 + 0.00007*Metric!G131 -> 0.000815675 | P180: =0.00007*Inch!G131^2 + 0.00007*Inch!G131 -> 0.0008169413671 | R180: =0.00008*Metric!G131^2 + 0.1863*Metric!G131 -> 0.5502812 | S180: =0.00008*Inch!G131^2 + 0.1863*Inch!G131 -> 0.550770708
D181: Pressure loss [Pa] | E181: 0.000763790198 | F181: 0.0142340472 | G181: 0.0440581248 | H181: 0.0902617188 | I181: 0.159697923 | J181: 0.226908796
C183: PR-23-W2 | D183: Inletflow (m^3/h) | E183: 3 | F183: 9.4 | G183: 15.8 | H183: 22.2 | I183: 28.6 | J183: 35
D184: Max Flow [m/s] | E184: 1.26076052 | F184: 3.94496657 | G184: 6.60439382 | H184: 9.33567394 | I184: 12.0471902 | J184: 14.7565755
D185: VG Av Velocity 1 [m/s] | E185: 0.0401142036 | F185: 0.117303284 | G185: 0.269336426 | H185: 0.394294998 | I185: 0.526389747 | J185: 0.652488659 | L185: =0.0001*Metric!G1312 + 0.0144*Metric!G131 -> 0.04248 | M185: =0.0001*Inch!G1312 + 0.0144*Inch!G131 -> 0.04251774071 | O185: =0.0003*Metric!G1312 + 0.0002*Metric!G131 -> 0.00059 | P185: =0.0003*Inch!G1312 + 0.0002*Inch!G131 -> 0.0005905241765 | R185: =0.0001*Metric!G1312 + 0.4175*Metric!G131 -> 1.231625 | S185: =0.0001*Inch!G1312 + 0.4175*Inch!G131 -> 1.232719218
D186: Pressure loss [Bar] | E186: 0.00260591932 | F186: 0.0244654162 | G186: 0.0680130304 | H186: 0.13257561 | I186: 0.218295985 | J186: 0.325803298
C188: PR-23-W3 | D188: Inletflow (m^3/h) | E188: 5 | F188: 21 | G188: 37 | H188: 53 | I188: 69 | J188: 85
D189: Max Flow [m/s] | E189: 1.13897087 | F189: 4.87532827 | G189: 8.6256565 | H189: 12.3784446 | I189: 16.1415592 | J189: 19.8657111
D190: VG Av Velocity 1 [m/s] | E190: 0.021402568 | F190: 0.121468151 | G190: 0.246132754 | H190: 0.512235952 | I190: 0.689573933 | J190: 0.808478438 | L190: =0.00004*Metric!G1312 + 0.0065*Metric!G131 -> 0.019175 | M190: =0.00004*Inch!G1312 + 0.0065*Inch!G131 -> 0.01919203574 | O190: =0.0001*Metric!G1312 + 0.0002*Metric!G131 -> 0.00059 | P190: =0.0001*Inch!G1312 + 0.0002*Inch!G131 -> 0.0005905241765 | R190: =0.00001*Metric!G1312 + 0.2326*Metric!G131 -> 0.68617 | S190: =0.00001*Inch!G1312 + 0.2326*Inch!G131 -> 0.6867796173
D191: Pressure loss [Bar] | E191: 0.00370155652 | F191: 0.0643562053 | G191: 0.197672354 | H191: 0.400214867 | I191: 0.675741064 | J191: 1.01541568
C193: PR-23-W4 | D193: Inletflow (m^3/h) | E193: 10 | F193: 38 | G193: 66 | H193: 94 | I193: 122 | J193: 150
D194: Max Flow [m/s] | E194: 1.17137826 | F194: 4.45394242 | G194: 7.7277514 | H194: 10.9829712 | I194: 14.2640553 | J194: 17.5160776
D195: VG Av Velocity 1 [m/s] | E195: 0.0243939454 | F195: 0.122003491 | G195: 0.224942999 | H195: 0.324262635 | I195: 0.434500087 | J195: 0.488846847 | L195: =0.0034*Metric!G131 -> 0.01003 | M195: =0.0034*Inch!G131 -> 0.010038911 | O195: =0.00002*Metric!G1312 + 0.00003*Metric!G131 -> 8.85e-05 | P195: =0.00002*Inch!G1312 + 0.00003*Inch!G131 -> 8.857862648e-05 | R195: =0.1169*Metric!G131 -> 0.344855 | S195: =0.1169*Inch!G131 -> 0.3451613812
D196: Pressure loss [Bar] | E196: 0.0017766603 | F196: 0.024862649 | G196: 0.0740496926 | H196: 0.149097492 | I196: 0.2499674 | J196: 0.376289328
C198: FTC-05 | D198: Inletflow (m^3/h) | E198: 1 | F198: 3.8 | G198: 6.6 | H198: 9.4 | I198: 12.2 | J198: 15
D199: Max Flow [m/s] | E199: 0.660943789 | F199: 2.50929131 | G199: 4.35963031 | H199: 6.2120818 | I199: 8.05796355 | J199: 9.9273434
D200: Prism velocity [m/s] | E200: 0.39583439 | F200: 1.49856793 | G200: 2.59111769 | H200: 3.70654539 | I200: 4.7980059 | J200: 5.88762818 | L200: =-0.0001*Metric!G1312 + 0.3949*Metric!G131 -> 1.164955 | M200: =-0.0001*Inch!G1312 + 0.3949*Inch!G131 -> 1.165989987 | O200: =0.0009*Metric!G1312 + 0.0003*Metric!G131 -> 0.000885 | P200: =0.0009*Inch!G1312 + 0.0003*Inch!G131 -> 0.0008857862648 | R200: =0.0001*Metric!G1312 + 0.6593*Metric!G131 -> 1.944935 | S200: =0.0001*Inch!G1312 + 0.6593*Inch!G131 -> 1.946662948
D201: Pressure loss [Bar] | E201: 0.00098493959 | F201: 0.0134782235 | G201: 0.0397039162 | H201: 0.0789325685 | I201: 0.132207704 | J201: 0.198481732
C203: FTC-A10 | D203: Inletflow (m^3/h) | E203: 1 | F203: 3.8 | G203: 6.6 | H203: 9.4 | I203: 12.2 | J203: 15
D204: Max Flow [m/s] | E204: 0.763000283 | F204: 2.88145249 | G204: 5.00642756 | H204: 7.12453392 | I204: 9.24781408 | J204: 11.3657123
D205: Prism velocity [m/s] | E205: 0.391870435 | F205: 1.53252435 | G205: 2.66263428 | H205: 3.79014461 | I205: 4.91919994 | J205: 6.04224345 | L205: =-0.00004*Metric!G1312 + 0.4035*Metric!G131 -> 1.190325 | M205: =-0.00004*Inch!G1312 + 0.4035*Inch!G131 -> 1.191382526 | O205: =0.0011*Metric!G1312 + 0.0007*Metric!G131 -> 0.002065 | P205: =0.0011*Inch!G1312 + 0.0007*Inch!G131 -> 0.002066834618 | R205: =-0.00008*Metric!G1312 + 0.7589*Metric!G131 -> 2.238755 | S205: =-0.00008*Inch!G1312 + 0.7589*Inch!G131 -> 2.240743988
D206: Pressure loss [Bar] | E206: 0.00140989066 | F206: 0.0181740937 | G206: 0.0530302109 | H206: 0.105424877 | I206: 0.174861719 | J206: 0.261423041
C208: FTC-A15 | D208: Inletflow (m^3/h) | E208: 3 | F208: 5 | G208: 14 | H208: 23 | I208: 32 | J208: 41
D209: Max Flow [m/s] | E209: 0.84452995 | F209: 1.40684582 | G209: 3.94584943 | H209: 6.47501185 | I209: 8.99126676 | J209: 11.504529
D210: Prism velocity [m/s] | E210: 0.4808724 | F210: 0.800354324 | G210: 2.24955237 | H210: 3.69829013 | I210: 5.14985938 | J210: 6.55379744 | L210: =-0.00004*Metric!G1312 + 0.1618*Metric!G131 -> 0.47731 | M210: =-0.00004*Inch!G1312 + 0.1618*Inch!G131 -> 0.4777340588 | O210: =0.0001*Metric!G1312 + 0.0001*Metric!G131 -> 0.000295 | P210: =0.0001*Inch!G1312 + 0.0001*Inch!G131 -> 0.0002952620883 | R210: =-0.00004*Metric!G1312 + 0.2824*Metric!G131 -> 0.83308 | S210: =-0.00004*Inch!G1312 + 0.2824*Inch!G131 -> 0.8338201372
D211: Pressure loss [Bar] | E211: 0.00106579865 | F211: 0.00287326538 | G211: 0.0216677407 | H211: 0.0574538545 | I211: 0.109566238 | J211: 0.178707337
C213: FTC-A20 | D213: Inletflow (m^3/h) | E213: 6 | F213: 18.8 | G213: 31.6 | H213: 44.4 | I213: 57.2 | J213: 70
D214: Max Flow [m/s] | E214: 0.940493471 | F214: 2.94333245 | G214: 4.94318854 | H214: 6.92877043 | I214: 8.90515591 | J214: 10.870236
D215: Prism velocity [m/s] | E215: 0.542278319 | F215: 1.70831095 | G215: 2.87431793 | H215: 4.02549631 | I215: 5.17647831 | J215: 6.31198223 | L215: =-0.00002*Metric!G1312 + 0.0914*Metric!G131 -> 0.26963 | M215: =-0.00002*Inch!G1312 + 0.0914*Inch!G131 -> 0.2698695487 | O215: =0.00002*Metric!G1312 + 0.00006*Metric!G131 -> 0.000177 | P215: =0.00002*Inch!G1312 + 0.00006*Inch!G131 -> 0.000177157253 | R215: =-0.00003*Metric!G1312 + 0.1573*Metric!G131 -> 0.464035 | S215: =-0.00003*Inch!G1312 + 0.1573*Inch!G131 -> 0.4644472648
D216: Pressure loss [Bar] | E216: 0.000725917224 | F216: 0.00665141272 | G216: 0.0182107975 | H216: 0.0350821025 | I216: 0.057147893 | J216: 0.0843425653
C218: CFC-M10 | D218: Inletflow (m^3/h) | E218: 0.8 | F218: 3.44 | G218: 6.08 | H218: 8.72 | I218: 11.36 | J218: 14
D219: Max Flow [m/s] | E219: 0.503808945 | F219: 2.08430698 | G219: 3.68307281 | H219: 5.27625341 | I219: 6.86447918 | J219: 8.51060803
D220: Prism velocity [m/s] | E220: 0.366762093 | F220: 1.57919023 | G220: 2.80465583 | H220: 4.0412861 | I220: 5.23365507 | J220: 6.41394416 | L220: =-0.0005*Metric!G1312 + 0.4656*Metric!G131 -> 1.37352 | M220: =-0.0005*Inch!G1312 + 0.4656*Inch!G131 -> 1.374740283 | O220: =0.0004*Metric!G131^2 + 0.0003*Metric!G131 -> 0.004366 | P220: =0.0004*Inch!G131^2 + 0.0003*Inch!G131 -> 0.004372974295 | R220: =0.0003*Metric!G1312 + 0.603*Metric!G131 -> 1.77885 | S220: =0.0003*Inch!G1312 + 0.603*Inch!G131 -> 1.780430392
D221: Pressure loss [Bar] | E221: 0.000410835317 | F221: 0.00596885586 | G221: 0.0178184284 | H221: 0.0356973502 | I221: 0.0587150284 | J221: 0.0882099393
C223: CFC-M20 | D223: Inletflow (m^3/h) | E223: 2 | F223: 9.6 | G223: 17.2 | H223: 24.8 | I223: 32.4 | J223: 40
D224: Max Flow [m/s] | E224: 0.372242143 | F224: 1.79607006 | G224: 3.23164223 | H224: 4.65770235 | I224: 6.08397625 | J224: 7.49819741
D225: Prism velocity [m/s] | E225: 0.238964601 | F225: 1.47005531 | G225: 2.68937684 | H225: 3.89488283 | I225: 5.10092346 | J225: 6.31131379 | L225: =0.0001*Metric!G1312 + 0.154*Metric!G131 -> 0.4543 | M225: =0.0001*Inch!G1312 + 0.154*Inch!G131 -> 0.4547036159 | O225: =0.00003*Metric!G1312 + 0.00005*Metric!G131 -> 0.0001475 | P225: =0.00003*Inch!G1312 + 0.00005*Inch!G131 -> 0.0001476310441 | R225: =-0.00001*Metric!G1312 + 0.188*Metric!G131 -> 0.5546 | S225: =-0.00001*Inch!G1312 + 0.188*Inch!G131 -> 0.5550927259
C226: *'Metric'!G131^2 | D226: Pressure loss [Bar] | E226: 0.000180019633 | F226: 0.00332393855 | G226: 0.0104176166 | H226: 0.0210658152 | I226: 0.0354382901 | J226: 0.0535799321
C227: *'Inch'!G131^2
D238: Inletflow (m/s) | E238: 0.4 | F238: 0.75 | G238: 1.5 | H238: 3 | I238: 4.5 | J238: 6
D239: Max Flow [m/s]
D240: VG Av Velocity 1 [m/s]
D241: Pressure loss [Pa]
D242: Shear Stress Average [Pa]
B246: SG CAD Area 1 [m^2] | D246: 0 | E246: =SQRT(0.0000282743338823081/PI()) -> 0.003 | F246: 2.827433388e-05 | G246: 2.827433388e-05 | H246: 2.827433388e-05 | I246: 2.827433388e-05 | J246: 2.827433388e-05

Sheet CustomerSheetBeta (hidden)
B2: Customer Sheet
B8: Name | I8: qeqe
B9: Address | I9: qweqe
B10: Installation point | I10: qweqe
B11: Process medium | I11: qweqe
B13: Selected Cell
B16: Name | H16: PFC-KSS-A10
B17: Pipe Size | H17: 1 | L17: in
B18: Inlet Diameter | H18: 1.060629921 | L18: in
B19: Pressure drop | H19: 0.2637547926 | L19: psi
B20: Flow on prism | H20: 1.4 | L20: ft/s
